Workbook

Sheet 1. Info
AB1: Algoma Power Inc.
AB2: Atikokan Hydro Inc.
AB3: Attawapiskat Power Corporation
AB4: Bluewater Power Distribution Corp.
AB5: Brant County Power
AB6: Brantford Power Inc.
AB7: Burlington Hydro Inc.
AB8: Cambridge and North Dumfries Hydro
AB9: Canadian Niagara Power Inc. – Eastern Ontario Power/Fort Erie/Port Colborne
AB10: Centre Wellington Hydro Ltd.
AB11: Chapleau Public Utilities Corporation
AB12: COLLUS Power Corp.
AB13: Cooperative Hydro Embrun Inc.
AB14: E.L.K. Energy Inc.
C15: Utility Name | D15: PowerStream Inc. | AB15: Enersource Hydro Mississauga Inc.
AB16: Entegrus Powerlines Inc.
C17: Service Territory | D17: York Region and Simcoe County | AB17: ENWIN Utilities Ltd.
AB18: Erie Thames Powerlines Corp.
C19: Assigned EB Number | D19: ED-2004-0420 | AB19: Espanola Regional Hydro Distribution Corporation
AB20: Essex Powerlines Corporation
C21: Name and Title | D21: Tom Barrett, Manager, Rates Applications | AB21: Festival Hydro Inc.
AB22: Fort Albany Power Corporation
C23: Phone Number | D23: (905) 532-4640 | AB23: Fort Frances Power Corporation
AB24: Greater Sudbury Hydro Inc.
C25: Email Address | D25: tom.barrett@powerstream.ca | AB25: Grimsby Power Inc.
AB26: Guelph Hydro Electric Systems Inc.
C27: Date | D27: 2014-01-22 | AB27: Haldimand County Hydro Inc.
AB28: Halton Hills Hydro Inc.
C29: Last COS Re-based Year | D29: 2013 | AB29: Hearst Power Distribution Co. Ltd.
AB30: Horizon Utilities Corporation
AB31: Hydro 2000 Inc.
A32: Note: Drop-down lists are shaded blue; Input cells are shaded green. | AB32: Hydro Hawkesbury Inc.
AB33: Hydro One Brampton Networks Inc.
AB34: Hydro One Networks Inc.
AB35: Hydro One Remote Communities Inc.
AB36: Hydro Ottawa Limited
AB37: Innisfil Hydro Dist. Systems Limited
AB38: Kashechewan Power Corporation
AB39: Kenora Hydro Electric Corporation Ltd.
AB40: Kingston Hydro Corporation
AB41: Kitchener-Wilmot Hydro Inc.
AB42: Lakefront Utilities Inc.
AB43: Lakeland Power Distribution Ltd.
AB44: London Hydro Inc.
AB45: Midland Power Utility Corporation
AB46: Milton Hydro Distribution Inc.
AB47: Newmarket – Tay Power Distribution Ltd.
AB48: Niagara Peninsula Energy Inc.
AB49: Niagara-on-the-Lake Hydro Inc.
AB50: Norfolk Power Distribution Ltd.
AB51: North Bay Hydro Distribution Limited
AB52: Northern Ontario Wires Inc.
AB53: Oakville Hydro Distribution Inc.
AB54: Orangeville Hydro Limited
AB55: Orillia Power Distribution Corp.
AB56: Oshawa PUC Networks Inc.
AB57: Ottawa River Power Corporation
AB58: Parry Sound Power Corporation
AB59: Peterborough Distribution Inc.
AB60: PowerStream Inc.
AB61: PUC Distribution Inc.
AB62: Renfrew Hydro Inc.
AB63: Rideau St. Lawrence Distribution Inc.
AB64: St. Thomas Energy Inc.
AB65: Sioux Lookout Hydro Inc.
AB66: Thunder Bay Hydro Electricity Distribution
AB67: Tillsonburg Hydro Inc.
AB68: Toronto Hydro-Electric System Limited
AB69: Veridian Connections Inc.
AB70: Wasaga Distribution Inc.
AB71: Waterloo North Hydro Inc.
AB72: Welland Hydro Electric System Corp.
AB73: Wellington North Power Inc.
AB74: West Coast Huron Energy Inc.
AB75: Westario Power Inc.
AB76: Whitby Hydro Electric Corporation
AB77: Woodstock Hydro Services Inc.

Sheet 2. Table of Contents
D20: 1. Info | I20: 7. Current Wholesale
D22: 2. Table of Contents | I22: 8. Forecast Wholesale
D24: 3. Rate Classes | I24: 9. Adj Network to Current WS
D26: 4. RRR Data | I26: 10. Adj Conn. to Current WS
D28: 5. UTRs and Sub-Transmission | I28: 11. Adj Network to Forecast WS
D30: 6. Historical Wholesale | I30: 12. Adj Conn. to Forecast WS
I32: 13. Final 2013 RTS Rates

Sheet 3. Rate Classes
C13: 1. Select the appropriate rate classes that appear on your most recent Board-Approved Tariff of Rates and Charges. 2. Enter the RTS Network and Connection Rate as it appears on the Tariff of Rates and Charges
C22: Rate Class | H22: Unit | J22: RTSR-Network | M22: RTSR-Connection
C24: Residential | H24: kWh | J24: 0.0074 | M24: 0.0032 | Q24: =IF(OR(ISBLANK(C24), ISERROR(FIND("Choose", C24))=FALSE), 0, 1) -> 1 | R24: ="C" & ROW(C24) -> C24 | S24: =IF(OR(C24="General Service Intermediate Rate Class 1,000 To 4,999 kW (formerly General Service > 50 kW Customers)", C24="General Service Intermediate Rate Class 1,000 To 4,999 kW (formerly Large Use Customers)"), "x", "") ->  | AB24: Choose Rate Class
C25: General Service Less Than 50 kW | H25: kWh | J25: 0.0067 | M25: 0.0028 | Q25: 1 | R25: C25 | S25: =IF(OR(C25="General Service Intermediate Rate Class 1,000 To 4,999 kW (formerly General Service > 50 kW Customers)", C25="General Service Intermediate Rate Class 1,000 To 4,999 kW (formerly Large Use Customers)"), "x", "") ->  | AB25: Residential
C26: General Service 50 to 4,999 kW | H26: kW | J26: 2.7151 | M26: 1.0903 | Q26: 1 | R26: C26 | AB26: Residential Regular
C27: General Service 50 to 4,999 kW – Interval Metered | H27: kW | J27: 2.8462 | M27: 1.1797 | Q27: 1 | R27: C27 | AB27: Residential Urban
C28: Large Use | H28: kW | J28: 3.2216 | M28: 1.1183 | Q28: 1 | R28: C28 | AB28: Residential Urban Year-Round
C29: Unmetered Scattered Load | H29: kWh | J29: 0.0067 | M29: 0.0031 | Q29: 1 | R29: C29 | AB29: Residential Suburban
C30: Sentinel Lighting | H30: kW | J30: 2.0984 | M30: 0.8024 | Q30: 1 | R30: C30 | AB30: Residential Suburban Seasonal
C31: Street Lighting | H31: kW | J31: 2.065 | M31: 0.8836 | Q31: 1 | R31: C31 | AB31: Residential Suburban Year Round
C32: Choose Rate Class | Q32: 0 | R32: C32 | AB32: Residential - Time of Use
C33: Choose Rate Class | Q33: 0 | R33: C33 | AB33: Residential - Hensall
C34: Choose Rate Class | Q34: 0 | R34: C34 | AB34: Residential – High Density [R1]
C35: Choose Rate Class | Q35: 0 | R35: C35 | AB35: Residential – Normal Density [R2]
C36: Choose Rate Class | Q36: 0 | R36: C36 | AB36: Seasonal Residential – High Density [R3]
C37: Choose Rate Class | Q37: 0 | R37: C37 | AB37: Seasonal Residential – Normal Density [R4]
C38: Choose Rate Class | Q38: 0 | R38: C38 | AB38: Residential – Urban [UR]
C39: Choose Rate Class | Q39: 0 | R39: C39
C40: Choose Rate Class | Q40: 0 | R40: C40 | AB40: General Service Less Than 50 kW
C41: Choose Rate Class | Q41: 0 | R41: C41 | AB41: General Service Less Than 50 kW – Single Phase energy-billed [G1]
C42: Choose Rate Class | Q42: 0 | R42: C42 | AB42: General Service Less Than 50 kW – Three Phase energy-billed [G3]
C43: Choose Rate Class | Q43: 0 | R43: C43 | AB43: General Service Less Than 50 kW – Transmission Class energy-billed [T]
C44: Choose Rate Class | Q44: 0 | R44: C44 | AB44: General Service Less Than 50 kW – Urban energy-billed [UG]
C45: Choose Rate Class | Q45: 0 | R45: C45 | AB45: Westport Sewage Treatment Plant
S46: =COUNTIF(S24:S45, "x") -> 0 | AB46: Small Commercial and USL - per meter
AB47: Small Commercial and USL - per connection
AB48: Farms – Single Phase energy-billed [F1]
AB50: General Service 50 to 499 kW
AB51: General Service 50 to 699 kW
AB52: General Service 50 to 999 kW
AB53: General Service 50 to 999 kW - Interval Metered
AB54: General Service 50 to 1,000 kW
AB55: General Service 50 to 1,000 kW - Interval Meters
AB56: General Service 50 to 1,000 kW - Non Interval Meters
AB57: General Service 50 to 1,499 kW
AB58: General Service 50 to 1,499 kW - Interval Metered
AB59: General Service 50 to 2,499 kW
AB60: General Service 50 to 2,999 kW
AB61: General Service 50 to 2,999 kW - Time of Use
AB62: General Service 50 to 4,999 kW
AB63: General Service 50 to 4,999 kW – Interval Metered
AB64: General Service 50 to 4,999 kW - Time of Use
AB65: General Service 50 to 4,999 kW (CoGeneration)
AB66: General Service 50 to 4,999 kW (formerly Time of Use)
AB67: General Service 500 to 4,999 kW
AB68: General Service 700 to 4,999 kW
AB69: General Service 1,000 to 2,999 kW
AB70: General Service 1,000 to 4,999 kW
AB71: General Service 1,000 to 4,999 kW - Interval Meters
AB72: General Service 1,000 To 4,999 kW (co-generation)
AB73: General Service Greater Than 1,000 kW
AB74: General Service Intermediate Rate Class 1,000 To 4,999 kW (formerly Large Use Customers)
AB75: General Service Intermediate Rate Class 1,000 To 4,999 kW (formerly General Service > 50 kW Customers)
AB76: General Service 1,500 to 4,999 kW
AB77: General Service Equal To Or Greater Than 1,500 kW
AB78: General Service Equal To Or Greater Than 1,500 kW - Interval Metered
AB79: General Service Intermediate 1,000 To 4,999 kW
AB80: General Service 2,500 to 4,999 kW
AB81: General Service 3,000 to 4,999 kW
AB82: General Service 3,000 to 4,999 kW - Interval Metered
AB83: General Service 3,000 to 4,999 kW - Intermediate Use
AB84: General Service 3,000 to 4,999 kW - Time of Use
AB85: Intermediate With Self Generation
AB86: General Service - Commercial
AB87: General Service - Institutional
AB88: Farms – Three Phase energy-billed [F3]
AB90: Large Use
AB91: Large Use - Regular
AB92: Large Use > 5000 kW
AB93: Large Use - 3TS
AB94: Large Use - Ford Annex
AB96: Unmetered Scattered Load
AB98: Sentinel Lighting
AB100: Street Lighting
AB102: Embedded Distributor
AB103: Low Voltage Wheeling Charge Rate
AB105: Stand-By
AB106: Standby Power
AB107: Standby Power – INTERIM APPROVAL
AB108: Standby Power - APPROVED ON AN INTERIM BASIS
AB109: Standby - General Service 50 - 1,000 kW
AB110: Standby Power General Service 50 to 1,499 kW
AB111: Standby - General Service 1,000 - 5,000 kW
AB112: Standby Power General Service 1,500 to 4,999 kW
AB113: Standby - Large Use
AB114: Standby Power General Service Large Use
AB115: Standby Distribution Service

Sheet 4. RRR Data
B13: In the green shaded cells, enter the most recent reported RRR billing determinants. Please ensure that billing determinants are non-loss adjusted.
B24: Rate Class | D24: Unit | F24: Non-Loss Adjusted Metered kWh | G24: Non-Loss Adjusted Metered kW | H24: Applicable Loss Factor | J24: Load Factor | L24: Loss Adjusted Billed kWh | M24: Billed kW
B27: =IF('3. Rate Classes'!Q24=1,'3. Rate Classes'!C24, 0) -> Residential | D27: =IF(OR(VLOOKUP($B27, '3. Rate Classes'!$C$24:$H$45,6,0)=0, ISERROR(VLOOKUP($B27, '3. Rate Classes'!$C$24:$H$45,6,0))), "", VLOOKUP($B27, '3. Rate Classes'!$C$24:$H$45,6,0)) -> kWh | F27: 2772334986 | H27: 1.0345 | J27: =IF(ISERROR(F27/(G27*30.4*24)), "", IF(D27="kW", F27/(G27*30.4*24), "")) ->  | L27: =IF(OR(H27=0, OR(ISBLANK(H27), TRIM(H27)="")), F27, F27*H27) -> 2867980543 | M27: =IF(OR(H27=0, OR(ISBLANK(H27), TRIM(H27)="")), G27, G27) -> 0
B28: =IF('3. Rate Classes'!Q25=1,'3. Rate Classes'!C25, 0) -> General Service Less Than 50 kW | D28: =IF(OR(VLOOKUP($B28, '3. Rate Classes'!$C$24:$H$45,6,0)=0, ISERROR(VLOOKUP($B28, '3. Rate Classes'!$C$24:$H$45,6,0))), "", VLOOKUP($B28, '3. Rate Classes'!$C$24:$H$45,6,0)) -> kWh | F28: 1019024366 | H28: 1.0345 | L28: =IF(OR(H28=0, OR(ISBLANK(H28), TRIM(H28)="")), F28, F28*H28) -> 1054180707 | M28: =IF(OR(H28=0, OR(ISBLANK(H28), TRIM(H28)="")), G28, G28) -> 0
B29: =IF('3. Rate Classes'!Q26=1,'3. Rate Classes'!C26, 0) -> General Service 50 to 4,999 kW | D29: =IF(OR(VLOOKUP($B29, '3. Rate Classes'!$C$24:$H$45,6,0)=0, ISERROR(VLOOKUP($B29, '3. Rate Classes'!$C$24:$H$45,6,0))), "", VLOOKUP($B29, '3. Rate Classes'!$C$24:$H$45,6,0)) -> kW | G29: 6730682.85 | J29: 0 | L29: 0 | M29: 6730682.85
B30: =IF('3. Rate Classes'!Q27=1,'3. Rate Classes'!C27, 0) -> General Service 50 to 4,999 kW – Interval Metered | D30: =IF(OR(VLOOKUP($B30, '3. Rate Classes'!$C$24:$H$45,6,0)=0, ISERROR(VLOOKUP($B30, '3. Rate Classes'!$C$24:$H$45,6,0))), "", VLOOKUP($B30, '3. Rate Classes'!$C$24:$H$45,6,0)) -> kW | G30: 5358368.3 | J30: 0 | L30: 0 | M30: 5358368.3
B31: =IF('3. Rate Classes'!Q28=1,'3. Rate Classes'!C28, 0) -> Large Use | D31: =IF(OR(VLOOKUP($B31, '3. Rate Classes'!$C$24:$H$45,6,0)=0, ISERROR(VLOOKUP($B31, '3. Rate Classes'!$C$24:$H$45,6,0))), "", VLOOKUP($B31, '3. Rate Classes'!$C$24:$H$45,6,0)) -> kW | G31: 159258.46 | J31: 0 | L31: 0 | M31: 159258.46
B32: =IF('3. Rate Classes'!Q29=1,'3. Rate Classes'!C29, 0) -> Unmetered Scattered Load | D32: =IF(OR(VLOOKUP($B32, '3. Rate Classes'!$C$24:$H$45,6,0)=0, ISERROR(VLOOKUP($B32, '3. Rate Classes'!$C$24:$H$45,6,0))), "", VLOOKUP($B32, '3. Rate Classes'!$C$24:$H$45,6,0)) -> kWh | F32: 12970917.2 | H32: 1.0345 | L32: 13418413.85 | M32: 0
B33: =IF('3. Rate Classes'!Q30=1,'3. Rate Classes'!C30, 0) -> Sentinel Lighting | D33: =IF(OR(VLOOKUP($B33, '3. Rate Classes'!$C$24:$H$45,6,0)=0, ISERROR(VLOOKUP($B33, '3. Rate Classes'!$C$24:$H$45,6,0))), "", VLOOKUP($B33, '3. Rate Classes'!$C$24:$H$45,6,0)) -> kW | G33: 1072.67 | J33: =IF(ISERROR(F33/(G33*30.4*24)), "", IF(D33="kW", F33/(G33*30.4*24), "")) -> 0 | L33: 0 | M33: 1072.67
B34: =IF('3. Rate Classes'!Q31=1,'3. Rate Classes'!C31, 0) -> Street Lighting | D34: =IF(OR(VLOOKUP($B34, '3. Rate Classes'!$C$24:$H$45,6,0)=0, ISERROR(VLOOKUP($B34, '3. Rate Classes'!$C$24:$H$45,6,0))), "", VLOOKUP($B34, '3. Rate Classes'!$C$24:$H$45,6,0)) -> kW | G34: 167382.29 | J34: 0 | L34: 0 | M34: 167382.29
B35: =IF('3. Rate Classes'!Q32=1,'3. Rate Classes'!C32, 0) -> 0 | D35: =IF(OR(VLOOKUP($B35, '3. Rate Classes'!$C$24:$H$45,6,0)=0, ISERROR(VLOOKUP($B35, '3. Rate Classes'!$C$24:$H$45,6,0))), "", VLOOKUP($B35, '3. Rate Classes'!$C$24:$H$45,6,0)) ->  | L35: 0 | M35: 0
B36: =IF('3. Rate Classes'!Q33=1,'3. Rate Classes'!C33, 0) -> 0 | D36: =IF(OR(VLOOKUP($B36, '3. Rate Classes'!$C$24:$H$45,6,0)=0, ISERROR(VLOOKUP($B36, '3. Rate Classes'!$C$24:$H$45,6,0))), "", VLOOKUP($B36, '3. Rate Classes'!$C$24:$H$45,6,0)) ->  | L36: 0 | M36: 0
B37: =IF('3. Rate Classes'!Q34=1,'3. Rate Classes'!C34, 0) -> 0 | D37: =IF(OR(VLOOKUP($B37, '3. Rate Classes'!$C$24:$H$45,6,0)=0, ISERROR(VLOOKUP($B37, '3. Rate Classes'!$C$24:$H$45,6,0))), "", VLOOKUP($B37, '3. Rate Classes'!$C$24:$H$45,6,0)) ->  | L37: 0 | M37: 0
B38: =IF('3. Rate Classes'!Q35=1,'3. Rate Classes'!C35, 0) -> 0 | D38: =IF(OR(VLOOKUP($B38, '3. Rate Classes'!$C$24:$H$45,6,0)=0, ISERROR(VLOOKUP($B38, '3. Rate Classes'!$C$24:$H$45,6,0))), "", VLOOKUP($B38, '3. Rate Classes'!$C$24:$H$45,6,0)) ->  | L38: 0 | M38: 0
B39: =IF('3. Rate Classes'!Q36=1,'3. Rate Classes'!C36, 0) -> 0 | D39: =IF(OR(VLOOKUP($B39, '3. Rate Classes'!$C$24:$H$45,6,0)=0, ISERROR(VLOOKUP($B39, '3. Rate Classes'!$C$24:$H$45,6,0))), "", VLOOKUP($B39, '3. Rate Classes'!$C$24:$H$45,6,0)) ->  | L39: 0 | M39: 0
B40: =IF('3. Rate Classes'!Q37=1,'3. Rate Classes'!C37, 0) -> 0 | D40: =IF(OR(VLOOKUP($B40, '3. Rate Classes'!$C$24:$H$45,6,0)=0, ISERROR(VLOOKUP($B40, '3. Rate Classes'!$C$24:$H$45,6,0))), "", VLOOKUP($B40, '3. Rate Classes'!$C$24:$H$45,6,0)) ->  | L40: 0 | M40: 0
B41: =IF('3. Rate Classes'!Q38=1,'3. Rate Classes'!C38, 0) -> 0 | D41: =IF(OR(VLOOKUP($B41, '3. Rate Classes'!$C$24:$H$45,6,0)=0, ISERROR(VLOOKUP($B41, '3. Rate Classes'!$C$24:$H$45,6,0))), "", VLOOKUP($B41, '3. Rate Classes'!$C$24:$H$45,6,0)) ->  | L41: 0 | M41: 0
B42: =IF('3. Rate Classes'!Q39=1,'3. Rate Classes'!C39, 0) -> 0 | D42: =IF(OR(VLOOKUP($B42, '3. Rate Classes'!$C$24:$H$45,6,0)=0, ISERROR(VLOOKUP($B42, '3. Rate Classes'!$C$24:$H$45,6,0))), "", VLOOKUP($B42, '3. Rate Classes'!$C$24:$H$45,6,0)) ->  | L42: 0 | M42: 0
B43: =IF('3. Rate Classes'!Q40=1,'3. Rate Classes'!C40, 0) -> 0 | D43: =IF(OR(VLOOKUP($B43, '3. Rate Classes'!$C$24:$H$45,6,0)=0, ISERROR(VLOOKUP($B43, '3. Rate Classes'!$C$24:$H$45,6,0))), "", VLOOKUP($B43, '3. Rate Classes'!$C$24:$H$45,6,0)) ->  | L43: 0 | M43: 0
B44: =IF('3. Rate Classes'!Q41=1,'3. Rate Classes'!C41, 0) -> 0 | D44: =IF(OR(VLOOKUP($B44, '3. Rate Classes'!$C$24:$H$45,6,0)=0, ISERROR(VLOOKUP($B44, '3. Rate Classes'!$C$24:$H$45,6,0))), "", VLOOKUP($B44, '3. Rate Classes'!$C$24:$H$45,6,0)) ->  | L44: 0 | M44: 0
B45: =IF('3. Rate Classes'!Q42=1,'3. Rate Classes'!C42, 0) -> 0 | D45: =IF(OR(VLOOKUP($B45, '3. Rate Classes'!$C$24:$H$45,6,0)=0, ISERROR(VLOOKUP($B45, '3. Rate Classes'!$C$24:$H$45,6,0))), "", VLOOKUP($B45, '3. Rate Classes'!$C$24:$H$45,6,0)) ->  | L45: 0 | M45: 0
B46: =IF('3. Rate Classes'!Q43=1,'3. Rate Classes'!C43, 0) -> 0 | D46: =IF(OR(VLOOKUP($B46, '3. Rate Classes'!$C$24:$H$45,6,0)=0, ISERROR(VLOOKUP($B46, '3. Rate Classes'!$C$24:$H$45,6,0))), "", VLOOKUP($B46, '3. Rate Classes'!$C$24:$H$45,6,0)) ->  | L46: 0 | M46: 0
B47: =IF('3. Rate Classes'!Q44=1,'3. Rate Classes'!C44, 0) -> 0 | D47: =IF(OR(VLOOKUP($B47, '3. Rate Classes'!$C$24:$H$45,6,0)=0, ISERROR(VLOOKUP($B47, '3. Rate Classes'!$C$24:$H$45,6,0))), "", VLOOKUP($B47, '3. Rate Classes'!$C$24:$H$45,6,0)) ->  | L47: 0 | M47: 0
B48: =IF('3. Rate Classes'!Q45=1,'3. Rate Classes'!C45, 0) -> 0 | D48: =IF(OR(VLOOKUP($B48, '3. Rate Classes'!$C$24:$H$45,6,0)=0, ISERROR(VLOOKUP($B48, '3. Rate Classes'!$C$24:$H$45,6,0))), "", VLOOKUP($B48, '3. Rate Classes'!$C$24:$H$45,6,0)) ->  | L48: 0 | M48: 0

Sheet 5. UTRs and Sub-Transmission
B18: Uniform Transmission Rates | C18: Unit | E18: Effective January 1, 2012 | G18: Effective January 1, 2013 | I18: Effective January 1, 2014
B20: Rate Description | E20: Rate | G20: Rate | I20: Rate
B22: Network Service Rate | C22: kW | E22: 3.57 | G22: 3.63 | I22: 3.82
B24: Line Connection Service Rate | C24: kW | E24: 0.8 | G24: 0.75 | I24: 0.82
B26: Transformation Connection Service Rate | C26: kW | E26: 1.86 | G26: 1.85 | I26: 1.98
B29: Hydro One Sub-Transmission Rates | C29: Unit | E29: Effective January 1, 2012 | G29: Effective January 1, 2013 | I29: Effective January 1, 2014
B33: Rate Description | E33: Rate | G33: Rate | I33: Rate
B35: Network Service Rate | C35: kW | E35: 2.65 | G35: 3.18 | I35: 3.23
B37: Line Connection Service Rate | C37: kW | E37: 0.64 | G37: 0.7 | I37: 0.65
B39: Transformation Connection Service Rate | C39: kW | E39: 1.5 | G39: 1.63 | I39: 1.62
B41: Both Line and Transformation Connection Service Rate | C41: kW | E41: =E39+E37 -> 2.14 | G41: =G39+G37 -> 2.33 | I41: =I39+I37 -> 2.27
B44: If needed , add extra host here (I) | C44: Unit | E44: Effective January 1, 2012 | G44: Effective January 1, 2013 | I44: Effective January 1, 2014
B48: Rate Description | E48: Rate | G48: Rate | I48: Rate
B50: Network Service Rate | C50: kW
B52: Line Connection Service Rate | C52: kW
B54: Transformation Connection Service Rate | C54: kW
B56: Both Line and Transformation Connection Service Rate | C56: kW | E56: =E54+E52 -> 0 | G56: =G54+G52 -> 0 | I56: =I54+I52 -> 0
B59: If needed , add extra host here (II) | C59: Unit | E59: Effective January 1, 2012 | G59: Effective January 1, 2013 | I59: Effective January 1, 2014
B63: Rate Description | E63: Rate | G63: Rate | I63: Rate
B65: Network Service Rate | C65: kW
B67: Line Connection Service Rate | C67: kW
B69: Transformation Connection Service Rate | C69: kW
B71: Both Line and Transformation Connection Service Rate | C71: kW | E71: =E69+E67 -> 0 | G71: =G69+G67 -> 0 | I71: =I69+I67 -> 0
B75: Hydro One Sub-Transmission Rate Rider 9A | C75: Unit | E75: Effective January 1, 2012 | G75: Effective January 1, 2013 | I75: Effective January 1, 2014
B77: Rate Description | E77: Rate | G77: Rate | I77: Rate
B79: RSVA Transmission network – 4714 – which affects 1584 | C79: kW | E79: 0 | G79: 0.1465 | I79: 0.1465
B81: RSVA Transmission connection – 4716 – which affects 1586 | C81: kW | E81: 0 | G81: 0.0667 | I81: 0.0667
B83: RSVA LV – 4750 – which affects 1550 | C83: kW | E83: 0 | G83: 0.0475 | I83: 0.0475
B85: RARA 1 – 2252 – which affects 1590 | C85: kW | E85: 0 | G85: 0.0419 | I85: 0.0419
B87: RARA 1 – 2252 – which affects 1590 (2008) | C87: kW | E87: 0 | G87: -0.027 | I87: -0.027
B89: RARA 1 – 2252 – which affects 1590 (2009) | C89: kW | E89: 0 | G89: -0.0006 | I89: -0.0006
B91: Hydro One Sub-Transmission Rate Rider 9A | C91: kW | E91: =SUM(E79:E89) -> 0 | G91: =SUM(G79:G89) -> 0.275 | I91: =SUM(I79:I89) -> 0.275
E94: Historical 2012 | G94: Current 2013 | I94: Forecast 2014
B95: Transformer Allowance Credit (if applicable, enter as a negative value) | C95: $

Sheet 6. Historical Wholesale
B21: IESO | D21: Network | H21: Line Connection | L21: Transformation Connection | P21: Total Line
B22: Month | D22: Units Billed | E22: Rate | F22: Amount | H22: Units Billed | I22: Rate | J22: Amount | L22: Units Billed | M22: Rate | N22: Amount | P22: Amount
B24: January | D24: 1154933 | E24: =IF(D24<>0,F24/D24,0) -> 3.57 | F24: 4123110.81 | H24: 1234811 | I24: =IF(H24<>0,J24/H24,0) -> 0.8 | J24: 987848.8 | L24: 331498 | M24: =IF(L24<>0,N24/L24,0) -> 1.86 | N24: 616586.28 | P24: =J24+N24 -> 1604435.08
B25: February | D25: 1055895 | E25: =IF(D25<>0,F25/D25,0) -> 3.57 | F25: 3769545.15 | H25: 1141039 | I25: =IF(H25<>0,J25/H25,0) -> 0.8 | J25: 912831.2 | L25: 294801 | M25: =IF(L25<>0,N25/L25,0) -> 1.86 | N25: 548329.86 | P25: 1461161.06
B26: March | D26: 1064930 | E26: 3.57 | F26: 3801800.1 | H26: 1144616 | I26: 0.8 | J26: 915692.8 | L26: 303070 | M26: 1.86 | N26: 563710.2 | P26: 1479403
B27: April | D27: 984228 | E27: 3.57 | F27: 3513693.96 | H27: =1109019 -> 1109019 | I27: 0.8238858306 | J27: =887215.2+26489.84 -> 913705.04 | L27: 282099 | M27: 1.86 | N27: 524704.14 | P27: 1438409.18
B28: May | D28: 1350088 | E28: 3.57 | F28: 4819814.16 | H28: 1417792 | I28: 0.8 | J28: 1134233.6 | L28: 371536 | M28: 1.86 | N28: 691056.96 | P28: 1825290.56
B29: June | D29: 1633641 | E29: 3.57 | F29: 5832098.37 | H29: 1701680 | I29: 0.8 | J29: 1361344 | L29: 452119 | M29: 1.86 | N29: 840941.34 | P29: 2202285.34
B30: July | D30: 1657603 | E30: 3.57 | F30: 5917642.71 | H30: 1716082 | I30: 0.8 | J30: 1372865.6 | L30: 483306 | M30: 1.86 | N30: 898949.16 | P30: 2271814.76
B31: August | D31: 1435998 | E31: 3.57 | F31: 5126512.86 | H31: 1530233 | I31: 0.8 | J31: 1224186.4 | L31: 434009 | M31: 1.86 | N31: 807256.74 | P31: 2031443.14
B32: September | D32: 1285320 | E32: 3.57 | F32: 4588592.4 | H32: 1362438 | I32: 0.8 | J32: 1089950.4 | L32: 398551 | M32: 1.86 | N32: 741304.86 | P32: 1831255.26
B33: October | D33: 1016134 | E33: 3.57 | F33: 3627598.38 | H33: 1088177 | I33: 0.8 | J33: 870541.6 | L33: 319017 | M33: 1.86 | N33: 593371.62 | P33: 1463913.22
B34: November | D34: 1077478 | E34: 3.57 | F34: 3846596.46 | H34: 1140629 | I34: 0.8 | J34: 912503.2 | L34: 336797 | M34: 1.86 | N34: 626442.42 | P34: 1538945.62
B35: December | D35: 1126108 | E35: 3.57 | F35: 4020205.56 | H35: 1195532 | I35: 0.8 | J35: 956425.6 | L35: 349389 | M35: 1.86 | N35: 649863.54 | P35: 1606289.14
B37: Total | D37: =SUM(D24:D35) -> 14842356 | E37: =IF(D37<>0,F37/D37,0) -> 3.57 | F37: =SUM(F24:F35) -> 52987210.92 | H37: =SUM(H24:H35) -> 15782048 | I37: =IF(H37<>0,J37/H37,0) -> 0.8016784792 | J37: =SUM(J24:J35) -> 12652128.24 | L37: =SUM(L24:L35) -> 4356192 | M37: =IF(L37<>0,N37/L37,0) -> 1.86 | N37: =SUM(N24:N35) -> 8102517.12 | P37: =SUM(P24:P35) -> 20754645.36
B39: Hydro One | D39: Network | H39: Line Connection | L39: Transformation Connection | P39: Total Line
B41: Month | D41: Units Billed | E41: Rate | F41: Amount | H41: Units Billed | I41: Rate | J41: Amount | L41: Units Billed | M41: Rate | N41: Amount | P41: Amount
B43: January | D43: 197202.3396 | E43: =IF(D43<>0,F43/D43,0) -> 2.65 | F43: 522586.2 | H43: 195972.5888 | I43: =IF(H43<>0,J43/H43,0) -> 0.64 | J43: 125422.4568 | L43: 195972.5888 | M43: =IF(L43<>0,N43/L43,0) -> 1.5 | N43: 293958.8832 | P43: =J43+N43 -> 419381.34
B44: February | D44: 190708 | E44: =IF(D44<>0,F44/D44,0) -> 2.65 | F44: 505376.2 | H44: 191480 | I44: =IF(H44<>0,J44/H44,0) -> 0.64 | J44: 122547.2 | L44: 191480 | M44: =IF(L44<>0,N44/L44,0) -> 1.5 | N44: 287220 | P44: 409767.2
B45: March | D45: 181561 | E45: 2.65 | F45: 481136.65 | H45: 184312 | I45: 0.64 | J45: 117959.68 | L45: 184312 | M45: 1.5 | N45: 276468 | P45: 394427.68
B46: April | D46: 190268 | E46: 2.65 | F46: 504210.2 | H46: 193311 | I46: 0.64 | J46: 123719.04 | L46: 193311 | M46: 1.5 | N46: 289966.5 | P46: 413685.54
B47: May | D47: 230412 | E47: 2.65 | F47: 610591.8 | H47: 230467 | I47: 0.64 | J47: 147498.88 | L47: 230467 | M47: 1.5 | N47: 345700.5 | P47: 493199.38
B48: June | D48: 263184 | E48: 2.65 | F48: 697437.6 | H48: 263184 | I48: 0.64 | J48: 168437.76 | L48: 263184 | M48: 1.5 | N48: 394776 | P48: 563213.76
B49: July | D49: 264926 | E49: 2.65 | F49: 702053.9 | H49: 264926 | I49: 0.64 | J49: 169552.64 | L49: 264926 | M49: 1.5 | N49: 397389 | P49: 566941.64
B50: August | D50: 231613 | E50: 2.65 | F50: 613774.45 | H50: 231720 | I50: 0.64 | J50: 148300.8 | L50: 231720 | M50: 1.5 | N50: 347580 | P50: 495880.8
B51: September | D51: 204706 | E51: 2.65 | F51: 542470.9 | H51: 204894 | I51: 0.64 | J51: 131132.16 | L51: 204894 | M51: 1.5 | N51: 307341 | P51: 438473.16
B52: October | D52: 197343 | E52: 2.65 | F52: 522958.95 | H52: 197473 | I52: 0.64 | J52: 126382.72 | L52: 197473 | M52: 1.5 | N52: 296209.5 | P52: 422592.22
B53: November | D53: 202055 | E53: 2.65 | F53: 535445.75 | H53: 202091 | I53: 0.64 | J53: 129338.24 | L53: 202091 | M53: 1.5 | N53: 303136.5 | P53: 432474.74
B54: December | D54: 154623.5358 | E54: 2.65 | F54: 409752.37 | H54: 154696.257 | I54: 0.64 | J54: 99005.60449 | L54: 154696.257 | M54: 1.5 | N54: 232044.3855 | P54: 331049.99
B56: Total | D56: =SUM(D43:D54) -> 2508601.875 | E56: =IF(D56<>0,F56/D56,0) -> 2.65 | F56: =SUM(F43:F54) -> 6647794.97 | H56: =SUM(H43:H54) -> 2514526.846 | I56: =IF(H56<>0,J56/H56,0) -> 0.64 | J56: =SUM(J43:J54) -> 1609297.181 | L56: =SUM(L43:L54) -> 2514526.846 | M56: =IF(L56<>0,N56/L56,0) -> 1.5 | N56: =SUM(N43:N54) -> 3771790.269 | P56: =SUM(P43:P54) -> 5381087.45
B58: Add Extra Host Here (I) | D58: Network | H58: Line Connection | L58: Transformation Connection | P58: Total Line
B59: (if needed)
B60: Month | D60: Units Billed | E60: Rate | F60: Amount | H60: Units Billed | I60: Rate | J60: Amount | L60: Units Billed | M60: Rate | N60: Amount | P60: Amount
B62: January | E62: =IF(D62<>0,F62/D62,0) -> 0 | I62: =IF(H62<>0,J62/H62,0) -> 0 | M62: =IF(L62<>0,N62/L62,0) -> 0 | P62: =J62+N62 -> 0
B63: February | E63: 0 | I63: 0 | M63: 0 | P63: 0
B64: March | E64: 0 | I64: 0 | M64: 0 | P64: 0
B65: April | E65: 0 | I65: 0 | M65: 0 | P65: 0
B66: May | E66: 0 | I66: 0 | M66: 0 | P66: 0
B67: June | E67: 0 | I67: 0 | M67: 0 | P67: 0
B68: July | E68: 0 | I68: 0 | M68: 0 | P68: 0
B69: August | E69: 0 | I69: 0 | M69: 0 | P69: 0
B70: September | E70: 0 | I70: 0 | M70: 0 | P70: 0
B71: October | E71: 0 | I71: 0 | M71: 0 | P71: 0
B72: November | E72: 0 | I72: 0 | M72: 0 | P72: 0
B73: December | E73: 0 | I73: 0 | M73: 0 | P73: 0
B75: Total | D75: =SUM(D62:D73) -> 0 | E75: =IF(D75<>0,F75/D75,0) -> 0 | F75: =SUM(F62:F73) -> 0 | H75: =SUM(H62:H73) -> 0 | I75: =IF(H75<>0,J75/H75,0) -> 0 | J75: =SUM(J62:J73) -> 0 | L75: =SUM(L62:L73) -> 0 | M75: =IF(L75<>0,N75/L75,0) -> 0 | N75: =SUM(N62:N73) -> 0 | P75: =SUM(P62:P73) -> 0
B77: Add Extra Host Here (II) | D77: Network | H77: Line Connection | L77: Transformation Connection | P77: Total Line
B78: (if needed)
B79: Month | D79: Units Billed | E79: Rate | F79: Amount | H79: Units Billed | I79: Rate | J79: Amount | L79: Units Billed | M79: Rate | N79: Amount | P79: Amount
B81: January | E81: =IF(D81<>0,F81/D81,0) -> 0 | I81: =IF(H81<>0,J81/H81,0) -> 0 | M81: =IF(L81<>0,N81/L81,0) -> 0 | P81: =J81+N81 -> 0
B82: February | E82: 0 | I82: 0 | M82: 0 | P82: 0
B83: March | E83: 0 | I83: 0 | M83: 0 | P83: 0
B84: April | E84: 0 | I84: 0 | M84: 0 | P84: 0
B85: May | E85: 0 | I85: 0 | M85: 0 | P85: 0
B86: June | E86: 0 | I86: 0 | M86: 0 | P86: 0
B87: July | E87: 0 | I87: 0 | M87: 0 | P87: 0
B88: August | E88: 0 | I88: 0 | M88: 0 | P88: 0
B89: September | E89: 0 | I89: 0 | M89: 0 | P89: 0
B90: October | E90: 0 | I90: 0 | M90: 0 | P90: 0
B91: November | E91: 0 | I91: 0 | M91: 0 | P91: 0
B92: December | E92: 0 | I92: 0 | M92: 0 | P92: 0
B94: Total | D94: =SUM(D81:D92) -> 0 | E94: =IF(D94<>0,F94/D94,0) -> 0 | F94: =SUM(F81:F92) -> 0 | H94: =SUM(H81:H92) -> 0 | I94: =IF(H94<>0,J94/H94,0) -> 0 | J94: =SUM(J81:J92) -> 0 | L94: =SUM(L81:L92) -> 0 | M94: =IF(L94<>0,N94/L94,0) -> 0 | N94: =SUM(N81:N92) -> 0 | P94: =SUM(P81:P92) -> 0
B96: Total | D96: Network | H96: Line Connection | L96: Transformation Connection | P96: Total Line
B98: Month | D98: Units Billed | E98: Rate | F98: Amount | H98: Units Billed | I98: Rate | J98: Amount | L98: Units Billed | M98: Rate | N98: Amount | P98: Amount
B100: January | D100: =D24+D43+D62+D81 -> 1352135.34 | E100: =IF(D100<>0,F100/D100,0) -> 3.43582249 | F100: =F24+F43+F62+F81 -> 4645697.01 | H100: =H24+H43+H62+H81 -> 1430783.589 | I100: =IF(H100<>0,J100/H100,0) -> 0.7780850057 | J100: =J24+J43+J62+J81 -> 1113271.257 | L100: =L24+L43+L62+L81 -> 527470.5888 | M100: =IF(L100<>0,N100/L100,0) -> 1.726248217 | N100: =N24+N43+N62+N81 -> 910545.1632 | P100: =J100+N100 -> 2023816.42
B101: February | D101: =D25+D44+D63+D82 -> 1246603 | E101: 3.429256427 | F101: =F25+F44+F63+F82 -> 4274921.35 | H101: =H25+H44+H63+H82 -> 1332519 | I101: 0.7770083579 | J101: =J25+J44+J63+J82 -> 1035378.4 | L101: =L25+L44+L63+L82 -> 486281 | M101: 1.718244924 | N101: =N25+N44+N63+N82 -> 835549.86 | P101: 1870928.26
B102: March | D102: 1246491 | E102: 3.435994925 | F102: 4282936.75 | H102: 1328928 | I102: 0.7778092417 | J102: 1033652.48 | L102: 487382 | M102: 1.723859724 | N102: 840178.2 | P102: 1873830.68
B103: April | D103: 1174496 | E103: 3.420960276 | F103: 4017904.16 | H103: 1302330 | I103: 0.7965907873 | J103: 1037424.08 | L103: 475410 | M103: 1.713616962 | N103: 814670.64 | P103: 1852094.72
B104: May | D104: 1580500 | E104: 3.435878494 | F104: 5430405.96 | H104: 1648259 | I104: 0.7776280791 | J104: 1281732.48 | L104: 602003 | M104: 1.722179889 | N104: 1036757.46 | P104: 2318489.94
B105: June | D105: 1896825 | E105: 3.442350227 | F105: 6529535.97 | H105: 1964864 | I105: 0.7785687763 | J105: 1529781.76 | L105: 715303 | M105: 1.727543908 | N105: 1235717.34 | P105: 2765499.1
B106: July | D106: 1922529 | E106: 3.44322328 | F106: 6619696.61 | H106: 1981008 | I106: 0.7786027315 | J106: 1542418.24 | L106: 748232 | M106: 1.732535043 | N106: 1296338.16 | P106: 2838756.4
B107: August | D107: 1667611 | E107: 3.442222023 | F107: 5740287.31 | H107: 1761953 | I107: 0.778957895 | J107: 1372487.2 | L107: 665729 | M107: 1.734694958 | N107: 1154836.74 | P107: 2527323.94
B108: September | D108: 1490026 | E108: 3.443606555 | F108: 5131063.3 | H108: 1567332 | I108: 0.7790835381 | J108: 1221082.56 | L108: 603445 | M108: 1.73776543 | N108: 1048645.86 | P108: 2269728.42
B109: October | D109: 1213477 | E109: 3.420384012 | F109: 4150557.33 | H109: 1285650 | I109: 0.7754243534 | J109: 996924.32 | L109: 516490 | M109: 1.722358845 | N109: 889581.12 | P109: 1886505.44
B110: November | D110: 1279533 | E110: 3.424719964 | F110: 4382042.21 | H110: 1342720 | I110: 0.775918613 | J110: 1041841.44 | L110: 538888 | M110: 1.724994656 | N110: 929578.92 | P110: 1971420.36
B111: December | D111: 1280731.536 | E111: 3.458927813 | F111: 4429957.93 | H111: 1350228.257 | I111: 0.7816687282 | J111: 1055431.204 | L111: 504085.257 | M111: 1.749521362 | N111: 881907.9255 | P111: 1937339.13
B113: Total | D113: =SUM(D100:D111) -> 17350957.88 | E113: =IF(D113<>0,F113/D113,0) -> 3.43698638 | F113: =SUM(F100:F111) -> 59635005.89 | H113: =SUM(H100:H111) -> 18296574.85 | I113: =IF(H113<>0,J113/H113,0) -> 0.7794587534 | J113: =SUM(J100:J111) -> 14261425.42 | L113: =SUM(L100:L111) -> 6870718.846 | M113: =IF(L113<>0,N113/L113,0) -> 1.728248187 | N113: =SUM(N100:N111) -> 11874307.39 | P113: =SUM(P100:P111) -> 26135732.81
N115: Transformer Allowance Credit (if applicable) | P115: ='5. UTRs and Sub-Transmission'!E95 -> 0
N117: Total including deduction for Transformer Allowance Credit | P117: =P113+P115 -> 26135732.81

Sheet 7. Current Wholesale
B13: The purpose of this sheet is to calculate the expected billing when current 2013 Uniform Transmission Rates are applied against historical 2012 transmission units.
B20: IESO | D20: Network | H20: Line Connection | L20: Transformation Connection | P20: Total Line
B22: Month | D22: Units Billed | E22: Rate | F22: Amount | H22: Units Billed | I22: Rate | J22: Amount | L22: Units Billed | M22: Rate | N22: Amount | P22: Amount
B24: January | D24: ='6. Historical Wholesale'!D24 -> 1154933 | E24: ='5. UTRs and Sub-Transmission'!G22 -> 3.63 | F24: =D24*E24 -> 4192406.79 | H24: ='6. Historical Wholesale'!H24 -> 1234811 | I24: ='5. UTRs and Sub-Transmission'!G24 -> 0.75 | J24: =H24*I24 -> 926108.25 | L24: ='6. Historical Wholesale'!L24 -> 331498 | M24: ='5. UTRs and Sub-Transmission'!G26 -> 1.85 | N24: =L24*M24 -> 613271.3 | P24: =J24+N24 -> 1539379.55
B25: February | D25: ='6. Historical Wholesale'!D25 -> 1055895 | E25: =E24 -> 3.63 | F25: =D25*E25 -> 3832898.85 | H25: ='6. Historical Wholesale'!H25 -> 1141039 | I25: =I24 -> 0.75 | J25: =H25*I25 -> 855779.25 | L25: ='6. Historical Wholesale'!L25 -> 294801 | M25: =M24 -> 1.85 | N25: =L25*M25 -> 545381.85 | P25: 1401161.1
B26: March | D26: ='6. Historical Wholesale'!D26 -> 1064930 | E26: =E25 -> 3.63 | F26: 3865695.9 | H26: ='6. Historical Wholesale'!H26 -> 1144616 | I26: =I25 -> 0.75 | J26: 858462 | L26: ='6. Historical Wholesale'!L26 -> 303070 | M26: =M25 -> 1.85 | N26: 560679.5 | P26: 1419141.5
B27: April | D27: ='6. Historical Wholesale'!D27 -> 984228 | E27: 3.63 | F27: 3572747.64 | H27: ='6. Historical Wholesale'!H27 -> 1109019 | I27: 0.75 | J27: 831764.25 | L27: ='6. Historical Wholesale'!L27 -> 282099 | M27: 1.85 | N27: 521883.15 | P27: 1353647.4
B28: May | D28: ='6. Historical Wholesale'!D28 -> 1350088 | E28: 3.63 | F28: 4900819.44 | H28: ='6. Historical Wholesale'!H28 -> 1417792 | I28: 0.75 | J28: 1063344 | L28: ='6. Historical Wholesale'!L28 -> 371536 | M28: 1.85 | N28: 687341.6 | P28: 1750685.6
B29: June | D29: ='6. Historical Wholesale'!D29 -> 1633641 | E29: 3.63 | F29: 5930116.83 | H29: ='6. Historical Wholesale'!H29 -> 1701680 | I29: 0.75 | J29: 1276260 | L29: ='6. Historical Wholesale'!L29 -> 452119 | M29: 1.85 | N29: 836420.15 | P29: 2112680.15
B30: July | D30: ='6. Historical Wholesale'!D30 -> 1657603 | E30: 3.63 | F30: 6017098.89 | H30: ='6. Historical Wholesale'!H30 -> 1716082 | I30: 0.75 | J30: 1287061.5 | L30: ='6. Historical Wholesale'!L30 -> 483306 | M30: 1.85 | N30: 894116.1 | P30: 2181177.6
B31: August | D31: ='6. Historical Wholesale'!D31 -> 1435998 | E31: 3.63 | F31: 5212672.74 | H31: ='6. Historical Wholesale'!H31 -> 1530233 | I31: 0.75 | J31: 1147674.75 | L31: ='6. Historical Wholesale'!L31 -> 434009 | M31: 1.85 | N31: 802916.65 | P31: 1950591.4
B32: September | D32: ='6. Historical Wholesale'!D32 -> 1285320 | E32: 3.63 | F32: 4665711.6 | H32: ='6. Historical Wholesale'!H32 -> 1362438 | I32: 0.75 | J32: 1021828.5 | L32: ='6. Historical Wholesale'!L32 -> 398551 | M32: 1.85 | N32: 737319.35 | P32: 1759147.85
B33: October | D33: ='6. Historical Wholesale'!D33 -> 1016134 | E33: 3.63 | F33: 3688566.42 | H33: ='6. Historical Wholesale'!H33 -> 1088177 | I33: 0.75 | J33: 816132.75 | L33: ='6. Historical Wholesale'!L33 -> 319017 | M33: 1.85 | N33: 590181.45 | P33: 1406314.2
B34: November | D34: ='6. Historical Wholesale'!D34 -> 1077478 | E34: 3.63 | F34: 3911245.14 | H34: ='6. Historical Wholesale'!H34 -> 1140629 | I34: 0.75 | J34: 855471.75 | L34: ='6. Historical Wholesale'!L34 -> 336797 | M34: 1.85 | N34: 623074.45 | P34: 1478546.2
B35: December | D35: ='6. Historical Wholesale'!D35 -> 1126108 | E35: 3.63 | F35: 4087772.04 | H35: ='6. Historical Wholesale'!H35 -> 1195532 | I35: 0.75 | J35: 896649 | L35: ='6. Historical Wholesale'!L35 -> 349389 | M35: 1.85 | N35: 646369.65 | P35: 1543018.65
B37: Total | D37: =SUM(D24:D35) -> 14842356 | E37: =IF(D37<>0,F37/D37,0) -> 3.63 | F37: =SUM(F24:F35) -> 53877752.28 | H37: =SUM(H24:H35) -> 15782048 | I37: =IF(H37<>0,J37/H37,0) -> 0.75 | J37: =SUM(J24:J35) -> 11836536 | L37: =SUM(L24:L35) -> 4356192 | M37: =IF(L37<>0,N37/L37,0) -> 1.85 | N37: =SUM(N24:N35) -> 8058955.2 | P37: =SUM(P24:P35) -> 19895491.2
B39: Hydro One | D39: Network | H39: Line Connection | L39: Transformation Connection | P39: Total Line
B41: Month | D41: Units Billed | E41: Rate | F41: Amount | H41: Units Billed | I41: Rate | J41: Amount | L41: Units Billed | M41: Rate | N41: Amount | P41: Amount
B43: January | D43: ='6. Historical Wholesale'!D43 -> 197202.3396 | E43: ='5. UTRs and Sub-Transmission'!G35+'5. UTRs and Sub-Transmission'!G79 -> 3.3265 | F43: =D43*E43 -> 655993.5828 | H43: ='6. Historical Wholesale'!H43 -> 195972.5888 | I43: ='5. UTRs and Sub-Transmission'!G37+'5. UTRs and Sub-Transmission'!G81 -> 0.7667 | J43: =H43*I43 -> 150252.1838 | L43: ='6. Historical Wholesale'!L43 -> 195972.5888 | M43: ='5. UTRs and Sub-Transmission'!G39 -> 1.63 | N43: =L43*M43 -> 319435.3197 | P43: =J43+N43 -> 469687.5035
B44: February | D44: ='6. Historical Wholesale'!D44 -> 190708 | E44: =E43 -> 3.3265 | F44: =D44*E44 -> 634390.162 | H44: ='6. Historical Wholesale'!H44 -> 191480 | I44: =I43 -> 0.7667 | J44: =H44*I44 -> 146807.716 | L44: ='6. Historical Wholesale'!L44 -> 191480 | M44: =M43 -> 1.63 | N44: =L44*M44 -> 312112.4 | P44: 458920.116
B45: March | D45: ='6. Historical Wholesale'!D45 -> 181561 | E45: =E44 -> 3.3265 | F45: 603962.6665 | H45: ='6. Historical Wholesale'!H45 -> 184312 | I45: =I44 -> 0.7667 | J45: 141312.0104 | L45: ='6. Historical Wholesale'!L45 -> 184312 | M45: =M44 -> 1.63 | N45: 300428.56 | P45: 441740.5704
B46: April | D46: ='6. Historical Wholesale'!D46 -> 190268 | E46: 3.3265 | F46: 632926.502 | H46: ='6. Historical Wholesale'!H46 -> 193311 | I46: 0.7667 | J46: 148211.5437 | L46: ='6. Historical Wholesale'!L46 -> 193311 | M46: =M45 -> 1.63 | N46: 315096.93 | P46: 463308.4737
B47: May | D47: ='6. Historical Wholesale'!D47 -> 230412 | E47: 3.3265 | F47: 766465.518 | H47: ='6. Historical Wholesale'!H47 -> 230467 | I47: 0.7667 | J47: 176699.0489 | L47: ='6. Historical Wholesale'!L47 -> 230467 | M47: 1.63 | N47: 375661.21 | P47: 552360.2589
B48: June | D48: ='6. Historical Wholesale'!D48 -> 263184 | E48: 3.3265 | F48: 875481.576 | H48: ='6. Historical Wholesale'!H48 -> 263184 | I48: 0.7667 | J48: 201783.1728 | L48: ='6. Historical Wholesale'!L48 -> 263184 | M48: 1.63 | N48: 428989.92 | P48: 630773.0928
B49: July | D49: ='6. Historical Wholesale'!D49 -> 264926 | E49: 3.3265 | F49: 881276.339 | H49: ='6. Historical Wholesale'!H49 -> 264926 | I49: 0.7667 | J49: 203118.7642 | L49: ='6. Historical Wholesale'!L49 -> 264926 | M49: 1.63 | N49: 431829.38 | P49: 634948.1442
B50: August | D50: ='6. Historical Wholesale'!D50 -> 231613 | E50: 3.3265 | F50: 770460.6445 | H50: ='6. Historical Wholesale'!H50 -> 231720 | I50: 0.7667 | J50: 177659.724 | L50: ='6. Historical Wholesale'!L50 -> 231720 | M50: 1.63 | N50: 377703.6 | P50: 555363.324
B51: September | D51: ='6. Historical Wholesale'!D51 -> 204706 | E51: 3.3265 | F51: 680954.509 | H51: ='6. Historical Wholesale'!H51 -> 204894 | I51: 0.7667 | J51: 157092.2298 | L51: ='6. Historical Wholesale'!L51 -> 204894 | M51: 1.63 | N51: 333977.22 | P51: 491069.4498
B52: October | D52: ='6. Historical Wholesale'!D52 -> 197343 | E52: 3.3265 | F52: 656461.4895 | H52: ='6. Historical Wholesale'!H52 -> 197473 | I52: 0.7667 | J52: 151402.5491 | L52: ='6. Historical Wholesale'!L52 -> 197473 | M52: 1.63 | N52: 321880.99 | P52: 473283.5391
B53: November | D53: ='6. Historical Wholesale'!D53 -> 202055 | E53: 3.3265 | F53: 672135.9575 | H53: ='6. Historical Wholesale'!H53 -> 202091 | I53: 0.7667 | J53: 154943.1697 | L53: ='6. Historical Wholesale'!L53 -> 202091 | M53: 1.63 | N53: 329408.33 | P53: 484351.4997
B54: December | D54: ='6. Historical Wholesale'!D54 -> 154623.5358 | E54: 3.3265 | F54: 514355.192 | H54: ='6. Historical Wholesale'!H54 -> 154696.257 | I54: 0.7667 | J54: 118605.6202 | L54: ='6. Historical Wholesale'!L54 -> 154696.257 | M54: 1.63 | N54: 252154.8989 | P54: 370760.5192
B56: Total | D56: =SUM(D43:D54) -> 2508601.875 | E56: =IF(D56<>0,F56/D56,0) -> 3.3265 | F56: =SUM(F43:F54) -> 8344864.139 | H56: =SUM(H43:H54) -> 2514526.846 | I56: =IF(H56<>0,J56/H56,0) -> 0.7667 | J56: =SUM(J43:J54) -> 1927887.733 | L56: =SUM(L43:L54) -> 2514526.846 | M56: =IF(L56<>0,N56/L56,0) -> 1.63 | N56: =SUM(N43:N54) -> 4098678.759 | P56: =SUM(P43:P54) -> 6026566.491
B58: ='6. Historical Wholesale'!B58 -> Add Extra Host Here (I) | D58: Network | H58: Line Connection | L58: Transformation Connection | P58: Total Line
B60: Month | D60: Units Billed | E60: Rate | F60: Amount | H60: Units Billed | I60: Rate | J60: Amount | L60: Units Billed | M60: Rate | N60: Amount | P60: Amount
B62: January | D62: ='6. Historical Wholesale'!D62 -> 0 | E62: ='5. UTRs and Sub-Transmission'!G50 -> 0 | F62: =D62*E62 -> 0 | H62: ='6. Historical Wholesale'!H62 -> 0 | I62: ='5. UTRs and Sub-Transmission'!G52 -> 0 | J62: =H62*I62 -> 0 | L62: ='6. Historical Wholesale'!L62 -> 0 | M62: ='5. UTRs and Sub-Transmission'!G54 -> 0 | N62: =L62*M62 -> 0 | P62: =J62+N62 -> 0
B63: February | D63: ='6. Historical Wholesale'!D63 -> 0 | E63: =E62 -> 0 | F63: =D63*E63 -> 0 | H63: ='6. Historical Wholesale'!H63 -> 0 | I63: =I62 -> 0 | J63: =H63*I63 -> 0 | L63: ='6. Historical Wholesale'!L63 -> 0 | M63: =M62 -> 0 | N63: =L63*M63 -> 0 | P63: 0
B64: March | D64: ='6. Historical Wholesale'!D64 -> 0 | E64: =E63 -> 0 | F64: 0 | H64: ='6. Historical Wholesale'!H64 -> 0 | I64: =I63 -> 0 | J64: 0 | L64: ='6. Historical Wholesale'!L64 -> 0 | M64: =M63 -> 0 | N64: 0 | P64: 0
B65: April | D65: ='6. Historical Wholesale'!D65 -> 0 | E65: 0 | F65: 0 | H65: ='6. Historical Wholesale'!H65 -> 0 | I65: 0 | J65: 0 | L65: ='6. Historical Wholesale'!L65 -> 0 | M65: =M64 -> 0 | N65: 0 | P65: 0
B66: May | D66: ='6. Historical Wholesale'!D66 -> 0 | E66: 0 | F66: 0 | H66: ='6. Historical Wholesale'!H66 -> 0 | I66: 0 | J66: 0 | L66: ='6. Historical Wholesale'!L66 -> 0 | M66: 0 | N66: 0 | P66: 0
B67: June | D67: ='6. Historical Wholesale'!D67 -> 0 | E67: 0 | F67: 0 | H67: ='6. Historical Wholesale'!H67 -> 0 | I67: 0 | J67: 0 | L67: ='6. Historical Wholesale'!L67 -> 0 | M67: 0 | N67: 0 | P67: 0
B68: July | D68: ='6. Historical Wholesale'!D68 -> 0 | E68: 0 | F68: 0 | H68: ='6. Historical Wholesale'!H68 -> 0 | I68: 0 | J68: 0 | L68: ='6. Historical Wholesale'!L68 -> 0 | M68: 0 | N68: 0 | P68: 0
B69: August | D69: ='6. Historical Wholesale'!D69 -> 0 | E69: 0 | F69: 0 | H69: ='6. Historical Wholesale'!H69 -> 0 | I69: 0 | J69: 0 | L69: ='6. Historical Wholesale'!L69 -> 0 | M69: 0 | N69: 0 | P69: 0
B70: September | D70: ='6. Historical Wholesale'!D70 -> 0 | E70: 0 | F70: 0 | H70: ='6. Historical Wholesale'!H70 -> 0 | I70: 0 | J70: 0 | L70: ='6. Historical Wholesale'!L70 -> 0 | M70: 0 | N70: 0 | P70: 0
B71: October | D71: ='6. Historical Wholesale'!D71 -> 0 | E71: 0 | F71: 0 | H71: ='6. Historical Wholesale'!H71 -> 0 | I71: 0 | J71: 0 | L71: ='6. Historical Wholesale'!L71 -> 0 | M71: 0 | N71: 0 | P71: 0
B72: November | D72: ='6. Historical Wholesale'!D72 -> 0 | E72: 0 | F72: 0 | H72: ='6. Historical Wholesale'!H72 -> 0 | I72: 0 | J72: 0 | L72: ='6. Historical Wholesale'!L72 -> 0 | M72: 0 | N72: 0 | P72: 0
B73: December | D73: ='6. Historical Wholesale'!D73 -> 0 | E73: 0 | F73: 0 | H73: ='6. Historical Wholesale'!H73 -> 0 | I73: 0 | J73: 0 | L73: ='6. Historical Wholesale'!L73 -> 0 | M73: 0 | N73: 0 | P73: 0
B75: Total | D75: =SUM(D62:D73) -> 0 | E75: =IF(D75<>0,F75/D75,0) -> 0 | F75: =SUM(F62:F73) -> 0 | H75: =SUM(H62:H73) -> 0 | I75: =IF(H75<>0,J75/H75,0) -> 0 | J75: =SUM(J62:J73) -> 0 | L75: =SUM(L62:L73) -> 0 | M75: =IF(L75<>0,N75/L75,0) -> 0 | N75: =SUM(N62:N73) -> 0 | P75: =SUM(P62:P73) -> 0
B77: ='6. Historical Wholesale'!B77 -> Add Extra Host Here (II) | D77: Network | H77: Line Connection | L77: Transformation Connection | P77: Total Line
B79: Month | D79: Units Billed | E79: Rate | F79: Amount | H79: Units Billed | I79: Rate | J79: Amount | L79: Units Billed | M79: Rate | N79: Amount | P79: Amount
B81: January | D81: ='6. Historical Wholesale'!D81 -> 0 | E81: ='5. UTRs and Sub-Transmission'!G65 -> 0 | F81: =D81*E81 -> 0 | H81: ='6. Historical Wholesale'!H81 -> 0 | I81: ='5. UTRs and Sub-Transmission'!G67 -> 0 | J81: =H81*I81 -> 0 | L81: ='6. Historical Wholesale'!L81 -> 0 | M81: ='5. UTRs and Sub-Transmission'!G69 -> 0 | N81: =L81*M81 -> 0 | P81: =J81+N81 -> 0
B82: February | D82: ='6. Historical Wholesale'!D82 -> 0 | E82: =E81 -> 0 | F82: =D82*E82 -> 0 | H82: ='6. Historical Wholesale'!H82 -> 0 | I82: =I81 -> 0 | J82: =H82*I82 -> 0 | L82: ='6. Historical Wholesale'!L82 -> 0 | M82: =M81 -> 0 | N82: =L82*M82 -> 0 | P82: 0
B83: March | D83: ='6. Historical Wholesale'!D83 -> 0 | E83: =E82 -> 0 | F83: 0 | H83: ='6. Historical Wholesale'!H83 -> 0 | I83: =I82 -> 0 | J83: 0 | L83: ='6. Historical Wholesale'!L83 -> 0 | M83: =M82 -> 0 | N83: 0 | P83: 0
B84: April | D84: ='6. Historical Wholesale'!D84 -> 0 | E84: 0 | F84: 0 | H84: ='6. Historical Wholesale'!H84 -> 0 | I84: 0 | J84: 0 | L84: ='6. Historical Wholesale'!L84 -> 0 | M84: =M83 -> 0 | N84: 0 | P84: 0
B85: May | D85: ='6. Historical Wholesale'!D85 -> 0 | E85: 0 | F85: 0 | H85: ='6. Historical Wholesale'!H85 -> 0 | I85: 0 | J85: 0 | L85: ='6. Historical Wholesale'!L85 -> 0 | M85: 0 | N85: 0 | P85: 0
B86: June | D86: ='6. Historical Wholesale'!D86 -> 0 | E86: 0 | F86: 0 | H86: ='6. Historical Wholesale'!H86 -> 0 | I86: 0 | J86: 0 | L86: ='6. Historical Wholesale'!L86 -> 0 | M86: 0 | N86: 0 | P86: 0
B87: July | D87: ='6. Historical Wholesale'!D87 -> 0 | E87: 0 | F87: 0 | H87: ='6. Historical Wholesale'!H87 -> 0 | I87: 0 | J87: 0 | L87: ='6. Historical Wholesale'!L87 -> 0 | M87: 0 | N87: 0 | P87: 0
B88: August | D88: ='6. Historical Wholesale'!D88 -> 0 | E88: 0 | F88: 0 | H88: ='6. Historical Wholesale'!H88 -> 0 | I88: 0 | J88: 0 | L88: ='6. Historical Wholesale'!L88 -> 0 | M88: 0 | N88: 0 | P88: 0
B89: September | D89: ='6. Historical Wholesale'!D89 -> 0 | E89: 0 | F89: 0 | H89: ='6. Historical Wholesale'!H89 -> 0 | I89: 0 | J89: 0 | L89: ='6. Historical Wholesale'!L89 -> 0 | M89: 0 | N89: 0 | P89: 0
B90: October | D90: ='6. Historical Wholesale'!D90 -> 0 | E90: 0 | F90: 0 | H90: ='6. Historical Wholesale'!H90 -> 0 | I90: 0 | J90: 0 | L90: ='6. Historical Wholesale'!L90 -> 0 | M90: 0 | N90: 0 | P90: 0
B91: November | D91: ='6. Historical Wholesale'!D91 -> 0 | E91: 0 | F91: 0 | H91: ='6. Historical Wholesale'!H91 -> 0 | I91: 0 | J91: 0 | L91: ='6. Historical Wholesale'!L91 -> 0 | M91: 0 | N91: 0 | P91: 0
B92: December | D92: ='6. Historical Wholesale'!D92 -> 0 | E92: 0 | F92: 0 | H92: ='6. Historical Wholesale'!H92 -> 0 | I92: 0 | J92: 0 | L92: ='6. Historical Wholesale'!L92 -> 0 | M92: 0 | N92: 0 | P92: 0
B94: Total | D94: =SUM(D81:D92) -> 0 | E94: =IF(D94<>0,F94/D94,0) -> 0 | F94: =SUM(F81:F92) -> 0 | H94: =SUM(H81:H92) -> 0 | I94: =IF(H94<>0,J94/H94,0) -> 0 | J94: =SUM(J81:J92) -> 0 | L94: =SUM(L81:L92) -> 0 | M94: =IF(L94<>0,N94/L94,0) -> 0 | N94: =SUM(N81:N92) -> 0 | P94: =SUM(P81:P92) -> 0
B96: Total | D96: Network | H96: Line Connection | L96: Transformation Connection | P96: Total Line
B98: Month | D98: Units Billed | E98: Rate | F98: Amount | H98: Units Billed | I98: Rate | J98: Amount | L98: Units Billed | M98: Rate | N98: Amount | P98: Amount
B100: January | D100: =D24+D43+D62+D81 -> 1352135.34 | E100: =IF(D100<>0,F100/D100,0) -> 3.585736006 | F100: =F24+F43+F62+F81 -> 4848400.373 | H100: =H24+H43+H62+H81 -> 1430783.589 | I100: =IF(H100<>0,J100/H100,0) -> 0.7522873775 | J100: =J24+J43+J62+J81 -> 1076360.434 | L100: =L24+L43+L62+L81 -> 527470.5888 | M100: =IF(L100<>0,N100/L100,0) -> 1.768262799 | N100: =N24+N43+N62+N81 -> 932706.6197 | P100: =J100+N100 -> 2009067.054
B101: February | D101: =D25+D44+D63+D82 -> 1246603 | E101: 3.583569919 | F101: =F25+F44+F63+F82 -> 4467289.012 | H101: =H25+H44+H63+H82 -> 1332519 | I101: 0.7523997526 | J101: =J25+J44+J63+J82 -> 1002586.966 | L101: =L25+L44+L63+L82 -> 486281 | M101: 1.763371898 | N101: =N25+N44+N63+N82 -> 857494.25 | P101: 1860081.216
B102: March | D102: 1246491 | E102: 3.585792891 | F102: 4469658.566 | H102: 1328928 | I102: 0.7523161604 | J102: 999774.0104 | L102: 487382 | M102: 1.766803165 | N102: 861108.06 | P102: 1860882.07
B103: April | D103: 1174496 | E103: 3.580833091 | F103: 4205674.142 | H103: 1302330 | I103: 0.75247886 | J103: 979975.7937 | L103: 475410 | M103: 1.760543699 | N103: 836980.08 | P103: 1816955.874
B104: May | D104: 1580500 | E104: 3.585754481 | F104: 5667284.958 | H104: 1648259 | I104: 0.7523350692 | J104: 1240043.049 | L104: 602003 | M104: 1.765776599 | N104: 1063002.81 | P104: 2303045.859
B105: June | D105: 1896825 | E105: 3.58788945 | F105: 6805598.406 | H105: 1964864 | I105: 0.752236884 | J105: 1478043.173 | L105: 715303 | M105: 1.76905461 | N105: 1265410.07 | P105: 2743453.243
B106: July | D106: 1922529 | E106: 3.588177463 | F106: 6898375.229 | H106: 1981008 | I106: 0.7522333399 | J106: 1490180.264 | L106: 748232 | M106: 1.772104748 | N106: 1325945.48 | P106: 2816125.744
B107: August | D107: 1667611 | E107: 3.587847157 | F107: 5983133.385 | H107: 1761953 | I107: 0.7521962697 | J107: 1325334.474 | L107: 665729 | M107: 1.773424697 | N107: 1180620.25 | P107: 2505954.724
B108: September | D108: 1490026 | E108: 3.588303901 | F108: 5346666.109 | H108: 1567332 | I108: 0.7521831557 | J108: 1178920.73 | L108: 603445 | M108: 1.775301096 | N108: 1071296.57 | P108: 2250217.3
B109: October | D109: 1213477 | E109: 3.580642987 | F109: 4345027.91 | H109: 1285650 | I109: 0.7525650831 | J109: 967535.2991 | L109: 516490 | M109: 1.765885961 | N109: 912062.44 | P109: 1879597.739
B110: November | D110: 1279533 | E110: 3.58207338 | F110: 4583381.098 | H110: 1342720 | I110: 0.7525134948 | J110: 1010414.92 | L110: 538888 | M110: 1.767496734 | N110: 952482.78 | P110: 1962897.7
B111: December | D111: 1280731.536 | E111: 3.593358251 | F111: 4602127.232 | H111: 1350228.257 | I111: 0.7519133265 | J111: 1015254.62 | L111: 504085.257 | M111: 1.782485277 | N111: 898524.5489 | P111: 1913779.169
B113: Total | D113: =SUM(D100:D111) -> 17350957.88 | E113: =IF(D113<>0,F113/D113,0) -> 3.586119963 | F113: =SUM(F100:F111) -> 62222616.42 | H113: =SUM(H100:H111) -> 18296574.85 | I113: =IF(H113<>0,J113/H113,0) -> 0.7522951071 | J113: =SUM(J100:J111) -> 13764423.73 | L113: =SUM(L100:L111) -> 6870718.846 | M113: =IF(L113<>0,N113/L113,0) -> 1.769485003 | N113: =SUM(N100:N111) -> 12157633.96 | P113: =SUM(P100:P111) -> 25922057.69
N115: Transformer Allowance Credit (if applicable) | P115: ='5. UTRs and Sub-Transmission'!G95 -> 0
N117: Total including deduction for Transformer Allowance Credit | P117: =P113+P115 -> 25922057.69

Sheet 8. Forecast Wholesale
B13: The purpose of this sheet is to calculate the expected billing when forecasted 2014 Uniform Transmission Rates are applied against historical 2012 transmission units.
B20: IESO | D20: Network | H20: Line Connection | L20: Transformation Connection | P20: Total Line
B22: Month | D22: Units Billed | E22: Rate | F22: Amount | H22: Units Billed | I22: Rate | J22: Amount | L22: Units Billed | M22: Rate | N22: Amount | P22: Amount
B24: January | D24: ='6. Historical Wholesale'!D24 -> 1154933 | E24: ='5. UTRs and Sub-Transmission'!I22 -> 3.82 | F24: =D24*E24 -> 4411844.06 | H24: ='6. Historical Wholesale'!H24 -> 1234811 | I24: ='5. UTRs and Sub-Transmission'!I24 -> 0.82 | J24: =H24*I24 -> 1012545.02 | L24: ='6. Historical Wholesale'!L24 -> 331498 | M24: ='5. UTRs and Sub-Transmission'!I26 -> 1.98 | N24: =L24*M24 -> 656366.04 | P24: =J24+N24 -> 1668911.06
B25: February | D25: ='6. Historical Wholesale'!D25 -> 1055895 | E25: =E24 -> 3.82 | F25: 4033518.9 | H25: ='6. Historical Wholesale'!H25 -> 1141039 | I25: =I24 -> 0.82 | J25: 935651.98 | L25: ='6. Historical Wholesale'!L25 -> 294801 | M25: =M24 -> 1.98 | N25: 583705.98 | P25: 1519357.96
B26: March | D26: ='6. Historical Wholesale'!D26 -> 1064930 | E26: 3.82 | F26: 4068032.6 | H26: ='6. Historical Wholesale'!H26 -> 1144616 | I26: 0.82 | J26: 938585.12 | L26: ='6. Historical Wholesale'!L26 -> 303070 | M26: 1.98 | N26: 600078.6 | P26: 1538663.72
B27: April | D27: ='6. Historical Wholesale'!D27 -> 984228 | E27: 3.82 | F27: 3759750.96 | H27: ='6. Historical Wholesale'!H27 -> 1109019 | I27: 0.82 | J27: 909395.58 | L27: ='6. Historical Wholesale'!L27 -> 282099 | M27: 1.98 | N27: 558556.02 | P27: 1467951.6
B28: May | D28: ='6. Historical Wholesale'!D28 -> 1350088 | E28: 3.82 | F28: 5157336.16 | H28: ='6. Historical Wholesale'!H28 -> 1417792 | I28: 0.82 | J28: 1162589.44 | L28: ='6. Historical Wholesale'!L28 -> 371536 | M28: 1.98 | N28: 735641.28 | P28: 1898230.72
B29: June | D29: ='6. Historical Wholesale'!D29 -> 1633641 | E29: 3.82 | F29: 6240508.62 | H29: ='6. Historical Wholesale'!H29 -> 1701680 | I29: 0.82 | J29: 1395377.6 | L29: ='6. Historical Wholesale'!L29 -> 452119 | M29: 1.98 | N29: 895195.62 | P29: 2290573.22
B30: July | D30: ='6. Historical Wholesale'!D30 -> 1657603 | E30: 3.82 | F30: 6332043.46 | H30: ='6. Historical Wholesale'!H30 -> 1716082 | I30: 0.82 | J30: 1407187.24 | L30: ='6. Historical Wholesale'!L30 -> 483306 | M30: 1.98 | N30: 956945.88 | P30: 2364133.12
B31: August | D31: ='6. Historical Wholesale'!D31 -> 1435998 | E31: 3.82 | F31: 5485512.36 | H31: ='6. Historical Wholesale'!H31 -> 1530233 | I31: 0.82 | J31: 1254791.06 | L31: ='6. Historical Wholesale'!L31 -> 434009 | M31: 1.98 | N31: 859337.82 | P31: 2114128.88
B32: September | D32: ='6. Historical Wholesale'!D32 -> 1285320 | E32: 3.82 | F32: 4909922.4 | H32: ='6. Historical Wholesale'!H32 -> 1362438 | I32: 0.82 | J32: 1117199.16 | L32: ='6. Historical Wholesale'!L32 -> 398551 | M32: 1.98 | N32: 789130.98 | P32: 1906330.14
B33: October | D33: ='6. Historical Wholesale'!D33 -> 1016134 | E33: 3.82 | F33: 3881631.88 | H33: ='6. Historical Wholesale'!H33 -> 1088177 | I33: 0.82 | J33: 892305.14 | L33: ='6. Historical Wholesale'!L33 -> 319017 | M33: 1.98 | N33: 631653.66 | P33: 1523958.8
B34: November | D34: ='6. Historical Wholesale'!D34 -> 1077478 | E34: 3.82 | F34: 4115965.96 | H34: ='6. Historical Wholesale'!H34 -> 1140629 | I34: 0.82 | J34: 935315.78 | L34: ='6. Historical Wholesale'!L34 -> 336797 | M34: 1.98 | N34: 666858.06 | P34: 1602173.84
B35: December | D35: ='6. Historical Wholesale'!D35 -> 1126108 | E35: 3.82 | F35: 4301732.56 | H35: ='6. Historical Wholesale'!H35 -> 1195532 | I35: 0.82 | J35: 980336.24 | L35: ='6. Historical Wholesale'!L35 -> 349389 | M35: 1.98 | N35: 691790.22 | P35: 1672126.46
B37: Total | D37: =SUM(D24:D35) -> 14842356 | E37: =IF(D37<>0,F37/D37,0) -> 3.82 | F37: =SUM(F24:F35) -> 56697799.92 | H37: =SUM(H24:H35) -> 15782048 | I37: =IF(H37<>0,J37/H37,0) -> 0.82 | J37: =SUM(J24:J35) -> 12941279.36 | L37: =SUM(L24:L35) -> 4356192 | M37: =IF(L37<>0,N37/L37,0) -> 1.98 | N37: =SUM(N24:N35) -> 8625260.16 | P37: =SUM(P24:P35) -> 21566539.52
B39: Hydro One | D39: Network | H39: Line Connection | L39: Transformation Connection | P39: Total Line
B41: Month | D41: Units Billed | E41: Rate | F41: Amount | H41: Units Billed | I41: Rate | J41: Amount | L41: Units Billed | M41: Rate | N41: Amount | P41: Amount
B43: January | D43: ='6. Historical Wholesale'!D43 -> 197202.3396 | E43: ='5. UTRs and Sub-Transmission'!I35+'5. UTRs and Sub-Transmission'!I79 -> 3.3765 | F43: =D43*E43 -> 665853.6997 | H43: ='6. Historical Wholesale'!H43 -> 195972.5888 | I43: ='5. UTRs and Sub-Transmission'!I37+'5. UTRs and Sub-Transmission'!I81 -> 0.7167 | J43: =H43*I43 -> 140453.5544 | L43: ='6. Historical Wholesale'!L43 -> 195972.5888 | M43: ='5. UTRs and Sub-Transmission'!I39 -> 1.62 | N43: =L43*M43 -> 317475.5938 | P43: =J43+N43 -> 457929.1482
B44: February | D44: ='6. Historical Wholesale'!D44 -> 190708 | E44: =E43 -> 3.3765 | F44: 643925.562 | H44: ='6. Historical Wholesale'!H44 -> 191480 | I44: =I43 -> 0.7167 | J44: 137233.716 | L44: ='6. Historical Wholesale'!L44 -> 191480 | M44: =M43 -> 1.62 | N44: 310197.6 | P44: 447431.316
B45: March | D45: ='6. Historical Wholesale'!D45 -> 181561 | E45: 3.3765 | F45: 613040.7165 | H45: ='6. Historical Wholesale'!H45 -> 184312 | I45: 0.7167 | J45: 132096.4104 | L45: ='6. Historical Wholesale'!L45 -> 184312 | M45: 1.62 | N45: 298585.44 | P45: 430681.8504
B46: April | D46: ='6. Historical Wholesale'!D46 -> 190268 | E46: 3.3765 | F46: 642439.902 | H46: ='6. Historical Wholesale'!H46 -> 193311 | I46: 0.7167 | J46: 138545.9937 | L46: ='6. Historical Wholesale'!L46 -> 193311 | M46: 1.62 | N46: 313163.82 | P46: 451709.8137
B47: May | D47: ='6. Historical Wholesale'!D47 -> 230412 | E47: 3.3765 | F47: 777986.118 | H47: ='6. Historical Wholesale'!H47 -> 230467 | I47: 0.7167 | J47: 165175.6989 | L47: ='6. Historical Wholesale'!L47 -> 230467 | M47: 1.62 | N47: 373356.54 | P47: 538532.2389
B48: June | D48: ='6. Historical Wholesale'!D48 -> 263184 | E48: 3.3765 | F48: 888640.776 | H48: ='6. Historical Wholesale'!H48 -> 263184 | I48: 0.7167 | J48: 188623.9728 | L48: ='6. Historical Wholesale'!L48 -> 263184 | M48: 1.62 | N48: 426358.08 | P48: 614982.0528
B49: July | D49: ='6. Historical Wholesale'!D49 -> 264926 | E49: 3.3765 | F49: 894522.639 | H49: ='6. Historical Wholesale'!H49 -> 264926 | I49: 0.7167 | J49: 189872.4642 | L49: ='6. Historical Wholesale'!L49 -> 264926 | M49: 1.62 | N49: 429180.12 | P49: 619052.5842
B50: August | D50: ='6. Historical Wholesale'!D50 -> 231613 | E50: 3.3765 | F50: 782041.2945 | H50: ='6. Historical Wholesale'!H50 -> 231720 | I50: 0.7167 | J50: 166073.724 | L50: ='6. Historical Wholesale'!L50 -> 231720 | M50: 1.62 | N50: 375386.4 | P50: 541460.124
B51: September | D51: ='6. Historical Wholesale'!D51 -> 204706 | E51: 3.3765 | F51: 691189.809 | H51: ='6. Historical Wholesale'!H51 -> 204894 | I51: 0.7167 | J51: 146847.5298 | L51: ='6. Historical Wholesale'!L51 -> 204894 | M51: 1.62 | N51: 331928.28 | P51: 478775.8098
B52: October | D52: ='6. Historical Wholesale'!D52 -> 197343 | E52: 3.3765 | F52: 666328.6395 | H52: ='6. Historical Wholesale'!H52 -> 197473 | I52: 0.7167 | J52: 141528.8991 | L52: ='6. Historical Wholesale'!L52 -> 197473 | M52: 1.62 | N52: 319906.26 | P52: 461435.1591
B53: November | D53: ='6. Historical Wholesale'!D53 -> 202055 | E53: 3.3765 | F53: 682238.7075 | H53: ='6. Historical Wholesale'!H53 -> 202091 | I53: 0.7167 | J53: 144838.6197 | L53: ='6. Historical Wholesale'!L53 -> 202091 | M53: 1.62 | N53: 327387.42 | P53: 472226.0397
B54: December | D54: ='6. Historical Wholesale'!D54 -> 154623.5358 | E54: 3.3765 | F54: 522086.3688 | H54: ='6. Historical Wholesale'!H54 -> 154696.257 | I54: 0.7167 | J54: 110870.8074 | L54: ='6. Historical Wholesale'!L54 -> 154696.257 | M54: 1.62 | N54: 250607.9364 | P54: 361478.7438
B56: Total | D56: =SUM(D43:D54) -> 2508601.875 | E56: =IF(D56<>0,F56/D56,0) -> 3.3765 | F56: =SUM(F43:F54) -> 8470294.233 | H56: =SUM(H43:H54) -> 2514526.846 | I56: =IF(H56<>0,J56/H56,0) -> 0.7167 | J56: =SUM(J43:J54) -> 1802161.39 | L56: =SUM(L43:L54) -> 2514526.846 | M56: =IF(L56<>0,N56/L56,0) -> 1.62 | N56: =SUM(N43:N54) -> 4073533.49 | P56: =SUM(P43:P54) -> 5875694.881
B58: ='6. Historical Wholesale'!B58 -> Add Extra Host Here (I) | D58: Network | H58: Line Connection | L58: Transformation Connection | P58: Total Line
B60: Month | D60: Units Billed | E60: Rate | F60: Amount | H60: Units Billed | I60: Rate | J60: Amount | L60: Units Billed | M60: Rate | N60: Amount | P60: Amount
B62: January | D62: ='6. Historical Wholesale'!D62 -> 0 | E62: ='5. UTRs and Sub-Transmission'!I50 -> 0 | F62: =D62*E62 -> 0 | H62: ='6. Historical Wholesale'!H62 -> 0 | I62: ='5. UTRs and Sub-Transmission'!I52 -> 0 | J62: =H62*I62 -> 0 | L62: ='6. Historical Wholesale'!L62 -> 0 | M62: ='5. UTRs and Sub-Transmission'!I54 -> 0 | N62: =L62*M62 -> 0 | P62: =J62+N62 -> 0
B63: February | D63: ='6. Historical Wholesale'!D63 -> 0 | E63: =E62 -> 0 | F63: 0 | H63: ='6. Historical Wholesale'!H63 -> 0 | I63: =I62 -> 0 | J63: 0 | L63: ='6. Historical Wholesale'!L63 -> 0 | M63: =M62 -> 0 | N63: 0 | P63: 0
B64: March | D64: ='6. Historical Wholesale'!D64 -> 0 | E64: 0 | F64: 0 | H64: ='6. Historical Wholesale'!H64 -> 0 | I64: 0 | J64: 0 | L64: ='6. Historical Wholesale'!L64 -> 0 | M64: 0 | N64: 0 | P64: 0
B65: April | D65: ='6. Historical Wholesale'!D65 -> 0 | E65: 0 | F65: 0 | H65: ='6. Historical Wholesale'!H65 -> 0 | I65: 0 | J65: 0 | L65: ='6. Historical Wholesale'!L65 -> 0 | M65: 0 | N65: 0 | P65: 0
B66: May | D66: ='6. Historical Wholesale'!D66 -> 0 | E66: 0 | F66: 0 | H66: ='6. Historical Wholesale'!H66 -> 0 | I66: 0 | J66: 0 | L66: ='6. Historical Wholesale'!L66 -> 0 | M66: 0 | N66: 0 | P66: 0
B67: June | D67: ='6. Historical Wholesale'!D67 -> 0 | E67: 0 | F67: 0 | H67: ='6. Historical Wholesale'!H67 -> 0 | I67: 0 | J67: 0 | L67: ='6. Historical Wholesale'!L67 -> 0 | M67: 0 | N67: 0 | P67: 0
B68: July | D68: ='6. Historical Wholesale'!D68 -> 0 | E68: 0 | F68: 0 | H68: ='6. Historical Wholesale'!H68 -> 0 | I68: 0 | J68: 0 | L68: ='6. Historical Wholesale'!L68 -> 0 | M68: 0 | N68: 0 | P68: 0
B69: August | D69: ='6. Historical Wholesale'!D69 -> 0 | E69: 0 | F69: 0 | H69: ='6. Historical Wholesale'!H69 -> 0 | I69: 0 | J69: 0 | L69: ='6. Historical Wholesale'!L69 -> 0 | M69: 0 | N69: 0 | P69: 0
B70: September | D70: ='6. Historical Wholesale'!D70 -> 0 | E70: 0 | F70: 0 | H70: ='6. Historical Wholesale'!H70 -> 0 | I70: 0 | J70: 0 | L70: ='6. Historical Wholesale'!L70 -> 0 | M70: 0 | N70: 0 | P70: 0
B71: October | D71: ='6. Historical Wholesale'!D71 -> 0 | E71: 0 | F71: 0 | H71: ='6. Historical Wholesale'!H71 -> 0 | I71: 0 | J71: 0 | L71: ='6. Historical Wholesale'!L71 -> 0 | M71: 0 | N71: 0 | P71: 0
B72: November | D72: ='6. Historical Wholesale'!D72 -> 0 | E72: 0 | F72: 0 | H72: ='6. Historical Wholesale'!H72 -> 0 | I72: 0 | J72: 0 | L72: ='6. Historical Wholesale'!L72 -> 0 | M72: 0 | N72: 0 | P72: 0
B73: December | D73: ='6. Historical Wholesale'!D73 -> 0 | E73: 0 | F73: 0 | H73: ='6. Historical Wholesale'!H73 -> 0 | I73: 0 | J73: 0 | L73: ='6. Historical Wholesale'!L73 -> 0 | M73: 0 | N73: 0 | P73: 0
B75: Total | D75: =SUM(D62:D73) -> 0 | E75: =IF(D75<>0,F75/D75,0) -> 0 | F75: =SUM(F62:F73) -> 0 | H75: =SUM(H62:H73) -> 0 | I75: =IF(H75<>0,J75/H75,0) -> 0 | J75: =SUM(J62:J73) -> 0 | L75: =SUM(L62:L73) -> 0 | M75: =IF(L75<>0,N75/L75,0) -> 0 | N75: =SUM(N62:N73) -> 0 | P75: =SUM(P62:P73) -> 0
B77: ='6. Historical Wholesale'!B77 -> Add Extra Host Here (II) | D77: Network | H77: Line Connection | L77: Transformation Connection | P77: Total Line
B79: Month | D79: Units Billed | E79: Rate | F79: Amount | H79: Units Billed | I79: Rate | J79: Amount | L79: Units Billed | M79: Rate | N79: Amount | P79: Amount
B81: January | D81: ='6. Historical Wholesale'!D81 -> 0 | E81: ='5. UTRs and Sub-Transmission'!I65 -> 0 | F81: =D81*E81 -> 0 | H81: ='6. Historical Wholesale'!H81 -> 0 | I81: ='5. UTRs and Sub-Transmission'!I67 -> 0 | J81: =H81*I81 -> 0 | L81: ='6. Historical Wholesale'!L81 -> 0 | M81: ='5. UTRs and Sub-Transmission'!I69 -> 0 | N81: =L81*M81 -> 0 | P81: =J81+N81 -> 0
B82: February | D82: ='6. Historical Wholesale'!D82 -> 0 | E82: =E81 -> 0 | F82: 0 | H82: ='6. Historical Wholesale'!H82 -> 0 | I82: =I81 -> 0 | J82: 0 | L82: ='6. Historical Wholesale'!L82 -> 0 | M82: =M81 -> 0 | N82: 0 | P82: 0
B83: March | D83: ='6. Historical Wholesale'!D83 -> 0 | E83: 0 | F83: 0 | H83: ='6. Historical Wholesale'!H83 -> 0 | I83: 0 | J83: 0 | L83: ='6. Historical Wholesale'!L83 -> 0 | M83: 0 | N83: 0 | P83: 0
B84: April | D84: ='6. Historical Wholesale'!D84 -> 0 | E84: 0 | F84: 0 | H84: ='6. Historical Wholesale'!H84 -> 0 | I84: 0 | J84: 0 | L84: ='6. Historical Wholesale'!L84 -> 0 | M84: 0 | N84: 0 | P84: 0
B85: May | D85: ='6. Historical Wholesale'!D85 -> 0 | E85: 0 | F85: 0 | H85: ='6. Historical Wholesale'!H85 -> 0 | I85: 0 | J85: 0 | L85: ='6. Historical Wholesale'!L85 -> 0 | M85: 0 | N85: 0 | P85: 0
B86: June | D86: ='6. Historical Wholesale'!D86 -> 0 | E86: 0 | F86: 0 | H86: ='6. Historical Wholesale'!H86 -> 0 | I86: 0 | J86: 0 | L86: ='6. Historical Wholesale'!L86 -> 0 | M86: 0 | N86: 0 | P86: 0
B87: July | D87: ='6. Historical Wholesale'!D87 -> 0 | E87: 0 | F87: 0 | H87: ='6. Historical Wholesale'!H87 -> 0 | I87: 0 | J87: 0 | L87: ='6. Historical Wholesale'!L87 -> 0 | M87: 0 | N87: 0 | P87: 0
B88: August | D88: ='6. Historical Wholesale'!D88 -> 0 | E88: 0 | F88: 0 | H88: ='6. Historical Wholesale'!H88 -> 0 | I88: 0 | J88: 0 | L88: ='6. Historical Wholesale'!L88 -> 0 | M88: 0 | N88: 0 | P88: 0
B89: September | D89: ='6. Historical Wholesale'!D89 -> 0 | E89: 0 | F89: 0 | H89: ='6. Historical Wholesale'!H89 -> 0 | I89: 0 | J89: 0 | L89: ='6. Historical Wholesale'!L89 -> 0 | M89: 0 | N89: 0 | P89: 0
B90: October | D90: ='6. Historical Wholesale'!D90 -> 0 | E90: 0 | F90: 0 | H90: ='6. Historical Wholesale'!H90 -> 0 | I90: 0 | J90: 0 | L90: ='6. Historical Wholesale'!L90 -> 0 | M90: 0 | N90: 0 | P90: 0
B91: November | D91: ='6. Historical Wholesale'!D91 -> 0 | E91: 0 | F91: 0 | H91: ='6. Historical Wholesale'!H91 -> 0 | I91: 0 | J91: 0 | L91: ='6. Historical Wholesale'!L91 -> 0 | M91: 0 | N91: 0 | P91: 0
B92: December | D92: ='6. Historical Wholesale'!D92 -> 0 | E92: 0 | F92: 0 | H92: ='6. Historical Wholesale'!H92 -> 0 | I92: 0 | J92: 0 | L92: ='6. Historical Wholesale'!L92 -> 0 | M92: 0 | N92: 0 | P92: 0
B94: Total | D94: =SUM(D81:D92) -> 0 | E94: =IF(D94<>0,F94/D94,0) -> 0 | F94: =SUM(F81:F92) -> 0 | H94: =SUM(H81:H92) -> 0 | I94: =IF(H94<>0,J94/H94,0) -> 0 | J94: =SUM(J81:J92) -> 0 | L94: =SUM(L81:L92) -> 0 | M94: =IF(L94<>0,N94/L94,0) -> 0 | N94: =SUM(N81:N92) -> 0 | P94: =SUM(P81:P92) -> 0
B96: Total | D96: Network | H96: Line Connection | L96: Transformation Connection | P96: Total Line
B98: Month | D98: Units Billed | E98: Rate | F98: Amount | H98: Units Billed | I98: Rate | J98: Amount | L98: Units Billed | M98: Rate | N98: Amount | P98: Amount
B100: January | D100: =D24+D43 -> 1352135.34 | E100: =IF(D100<>0,F100/D100,0) -> 3.75531769 | F100: =F24+F43 -> 5077697.76 | H100: =H24+H43 -> 1430783.589 | I100: =IF(H100<>0,J100/H100,0) -> 0.8058511318 | J100: =J24+J43 -> 1152998.574 | L100: =L24+L43 -> 527470.5888 | M100: =IF(L100<>0,N100/L100,0) -> 1.846248217 | N100: =N24+N43 -> 973841.6338 | P100: =J100+N100 -> 2126840.208
B101: February | D101: 1246603 | E101: 3.752152419 | F101: 4677444.462 | H101: 1332519 | I101: 0.805156021 | J101: 1072885.696 | L101: 486281 | M101: 1.838244924 | N101: 893903.58 | P101: 1966789.276
B102: March | D102: 1246491 | E102: 3.755400814 | F102: 4681073.316 | H102: 1328928 | I102: 0.8056730917 | J102: 1070681.53 | L102: 487382 | M102: 1.843859724 | N102: 898664.04 | P102: 1969345.57
B103: April | D103: 1174496 | E103: 3.748153133 | F103: 4402190.862 | H103: 1302330 | I103: 0.8046666925 | J103: 1047941.574 | L103: 475410 | M103: 1.833616962 | N103: 871719.84 | P103: 1919661.414
B104: May | D104: 1580500 | E104: 3.755344687 | F104: 5935322.278 | H104: 1648259 | I104: 0.8055561286 | J104: 1327765.139 | L104: 602003 | M104: 1.842179889 | N104: 1108997.82 | P104: 2436762.959
B105: June | D105: 1896825 | E105: 3.758464485 | F105: 7129149.396 | H105: 1964864 | I105: 0.8061634662 | J105: 1584001.573 | L105: 715303 | M105: 1.847543908 | N105: 1321553.7 | P105: 2905555.273
B106: July | D106: 1922529 | E106: 3.758885353 | F106: 7226566.099 | H106: 1981008 | I106: 0.8061853885 | J106: 1597059.704 | L106: 748232 | M106: 1.852535043 | N106: 1386126 | P106: 2983185.704
B107: August | D107: 1667611 | E107: 3.758402682 | F107: 6267553.654 | H107: 1761953 | I107: 0.806414691 | J107: 1420864.784 | L107: 665729 | M107: 1.854694958 | N107: 1234724.22 | P107: 2655589.004
B108: September | D108: 1490026 | E108: 3.759070116 | F108: 5601112.209 | H108: 1567332 | I108: 0.8064958093 | J108: 1264046.69 | L108: 603445 | M108: 1.85776543 | N108: 1121059.26 | P108: 2385105.95
B109: October | D109: 1213477 | E109: 3.747875336 | F109: 4547960.52 | H109: 1285650 | I109: 0.8041333482 | J109: 1033834.039 | L109: 516490 | M109: 1.842358845 | N109: 951559.92 | P109: 1985393.959
B110: November | D110: 1279533 | E110: 3.749965548 | F110: 4798204.668 | H110: 1342720 | I110: 0.8044524545 | J110: 1080154.4 | L110: 538888 | M110: 1.844994656 | N110: 994245.48 | P110: 2074399.88
B111: December | D111: 1280731.536 | E111: 3.766455962 | F111: 4823818.929 | H111: 1350228.257 | I111: 0.8081648727 | J111: 1091207.047 | L111: 504085.257 | M111: 1.869521362 | N111: 942398.1564 | P111: 2033605.204
B113: Total | D113: =SUM(D100:D111) -> 17350957.88 | E113: =IF(D113<>0,F113/D113,0) -> 3.75587876 | F113: =SUM(F100:F111) -> 65168094.15 | H113: =SUM(H100:H111) -> 18296574.85 | I113: =IF(H113<>0,J113/H113,0) -> 0.8058033197 | J113: =SUM(J100:J111) -> 14743440.75 | L113: =SUM(L100:L111) -> 6870718.846 | M113: =IF(L113<>0,N113/L113,0) -> 1.848248187 | N113: =SUM(N100:N111) -> 12698793.65 | P113: =SUM(P100:P111) -> 27442234.4
N115: Transformer Allowance Credit (if applicable) | P115: ='5. UTRs and Sub-Transmission'!I95 -> 0
N117: Total including deduction for Transformer Allowance Credit | P117: =P113+P115 -> 27442234.4

Sheet 9. Adj Network to Current WS
B13: The purpose of this sheet is to re-align the current RTS Network Rates to recover current wholesale network costs.
B22: Rate Class | D22: Unit | F22: Current RTSR-Network | H22: Loss Adjusted Billed kWh | J22: Loss Adjusted Billed kW | L22: Billed Amount | N22: Billed Amount % | P22: Current Wholesale Billing | R22: Proposed RTSR Network
B25: =IF('3. Rate Classes'!Q24=1,'3. Rate Classes'!C24, 0) -> Residential | D25: =IF(ISERROR(VLOOKUP($B25, '3. Rate Classes'!$C$24:$H$45,6,0)), "", VLOOKUP($B25, '3. Rate Classes'!$C$24:$H$45,6,0)) -> kWh | F25: =IF(ISERROR(VLOOKUP($B25,'3. Rate Classes'!$C$24:$N$45, 8,0)), "", VLOOKUP($B25,'3. Rate Classes'!$C$24:$N$45, 8,0)) -> 0.0074 | H25: =VLOOKUP('9. Adj Network to Current WS'!$B25, '4. RRR Data'!$B$27:$M$49,11,0) -> 2867980543 | J25: =VLOOKUP('9. Adj Network to Current WS'!$B25, '4. RRR Data'!$B$27:$M$49,12,0) -> 0 | L25: =IF(F25="", "", IF(D25="kWh", F25*H25, F25*J25)) -> 21223056.02 | N25: =IF(ISERROR(L25/$L$49), "", L25/$L$49) -> 0.3381492249 | P25: =IF(ISERROR('7. Current Wholesale'!$F$113*N25), "", '7. Current Wholesale'!$F$113*N25) -> 21040529.51 | R25: =IF(D25="","",IF(D25="kWh",IF(H25<>0,P25/H25,),IF(J25<>0,P25/J25,0))) -> 0.007336357132
B26: =IF('3. Rate Classes'!Q25=1,'3. Rate Classes'!C25, 0) -> General Service Less Than 50 kW | D26: =IF(ISERROR(VLOOKUP($B26, '3. Rate Classes'!$C$24:$H$45,6,0)), "", VLOOKUP($B26, '3. Rate Classes'!$C$24:$H$45,6,0)) -> kWh | F26: =IF(ISERROR(VLOOKUP($B26,'3. Rate Classes'!$C$24:$N$45, 8,0)), "", VLOOKUP($B26,'3. Rate Classes'!$C$24:$N$45, 8,0)) -> 0.0067 | H26: =VLOOKUP('9. Adj Network to Current WS'!$B26, '4. RRR Data'!$B$27:$M$49,11,0) -> 1054180707 | J26: =VLOOKUP('9. Adj Network to Current WS'!$B26, '4. RRR Data'!$B$27:$M$49,12,0) -> 0 | L26: =IF(F26="", "", IF(D26="kWh", F26*H26, F26*J26)) -> 7063010.734 | N26: =IF(ISERROR(L26/$L$49), "", L26/$L$49) -> 0.1125357066 | P26: =IF(ISERROR('7. Current Wholesale'!$F$113*N26), "", '7. Current Wholesale'!$F$113*N26) -> 7002266.105 | R26: =IF(D26="","",IF(D26="kWh",IF(H26<>0,P26/H26,),IF(J26<>0,P26/J26,0))) -> 0.006642377403
B27: =IF('3. Rate Classes'!Q26=1,'3. Rate Classes'!C26, 0) -> General Service 50 to 4,999 kW | D27: =IF(ISERROR(VLOOKUP($B27, '3. Rate Classes'!$C$24:$H$45,6,0)), "", VLOOKUP($B27, '3. Rate Classes'!$C$24:$H$45,6,0)) -> kW | F27: =IF(ISERROR(VLOOKUP($B27,'3. Rate Classes'!$C$24:$N$45, 8,0)), "", VLOOKUP($B27,'3. Rate Classes'!$C$24:$N$45, 8,0)) -> 2.7151 | H27: =VLOOKUP('9. Adj Network to Current WS'!$B27, '4. RRR Data'!$B$27:$M$49,11,0) -> 0 | J27: =VLOOKUP('9. Adj Network to Current WS'!$B27, '4. RRR Data'!$B$27:$M$49,12,0) -> 6730682.85 | L27: 18274477.01 | N27: 0.2911691996 | P27: =IF(ISERROR('7. Current Wholesale'!$F$113*N27), "", '7. Current Wholesale'!$F$113*N27) -> 18117309.42 | R27: 2.691749088
B28: =IF('3. Rate Classes'!Q27=1,'3. Rate Classes'!C27, 0) -> General Service 50 to 4,999 kW – Interval Metered | D28: =IF(ISERROR(VLOOKUP($B28, '3. Rate Classes'!$C$24:$H$45,6,0)), "", VLOOKUP($B28, '3. Rate Classes'!$C$24:$H$45,6,0)) -> kW | F28: =IF(ISERROR(VLOOKUP($B28,'3. Rate Classes'!$C$24:$N$45, 8,0)), "", VLOOKUP($B28,'3. Rate Classes'!$C$24:$N$45, 8,0)) -> 2.8462 | H28: =VLOOKUP('9. Adj Network to Current WS'!$B28, '4. RRR Data'!$B$27:$M$49,11,0) -> 0 | J28: =VLOOKUP('9. Adj Network to Current WS'!$B28, '4. RRR Data'!$B$27:$M$49,12,0) -> 5358368.3 | L28: 15250987.86 | N28: 0.2429956231 | P28: =IF(ISERROR('7. Current Wholesale'!$F$113*N28), "", '7. Current Wholesale'!$F$113*N28) -> 15119823.45 | R28: 2.821721577
B29: =IF('3. Rate Classes'!Q28=1,'3. Rate Classes'!C28, 0) -> Large Use | D29: =IF(ISERROR(VLOOKUP($B29, '3. Rate Classes'!$C$24:$H$45,6,0)), "", VLOOKUP($B29, '3. Rate Classes'!$C$24:$H$45,6,0)) -> kW | F29: =IF(ISERROR(VLOOKUP($B29,'3. Rate Classes'!$C$24:$N$45, 8,0)), "", VLOOKUP($B29,'3. Rate Classes'!$C$24:$N$45, 8,0)) -> 3.2216 | H29: =VLOOKUP('9. Adj Network to Current WS'!$B29, '4. RRR Data'!$B$27:$M$49,11,0) -> 0 | J29: =VLOOKUP('9. Adj Network to Current WS'!$B29, '4. RRR Data'!$B$27:$M$49,12,0) -> 159258.46 | L29: 513067.0547 | N29: 0.008174752341 | P29: =IF(ISERROR('7. Current Wholesale'!$F$113*N29), "", '7. Current Wholesale'!$F$113*N29) -> 508654.4792 | R29: 3.193892991
B30: =IF('3. Rate Classes'!Q29=1,'3. Rate Classes'!C29, 0) -> Unmetered Scattered Load | D30: =IF(ISERROR(VLOOKUP($B30, '3. Rate Classes'!$C$24:$H$45,6,0)), "", VLOOKUP($B30, '3. Rate Classes'!$C$24:$H$45,6,0)) -> kWh | F30: =IF(ISERROR(VLOOKUP($B30,'3. Rate Classes'!$C$24:$N$45, 8,0)), "", VLOOKUP($B30,'3. Rate Classes'!$C$24:$N$45, 8,0)) -> 0.0067 | H30: =VLOOKUP('9. Adj Network to Current WS'!$B30, '4. RRR Data'!$B$27:$M$49,11,0) -> 13418413.85 | J30: =VLOOKUP('9. Adj Network to Current WS'!$B30, '4. RRR Data'!$B$27:$M$49,12,0) -> 0 | L30: 89903.37276 | N30: 0.001432440068 | P30: =IF(ISERROR('7. Current Wholesale'!$F$113*N30), "", '7. Current Wholesale'!$F$113*N30) -> 89130.16891 | R30: 0.006642377403
B31: =IF('3. Rate Classes'!Q30=1,'3. Rate Classes'!C30, 0) -> Sentinel Lighting | D31: =IF(ISERROR(VLOOKUP($B31, '3. Rate Classes'!$C$24:$H$45,6,0)), "", VLOOKUP($B31, '3. Rate Classes'!$C$24:$H$45,6,0)) -> kW | F31: =IF(ISERROR(VLOOKUP($B31,'3. Rate Classes'!$C$24:$N$45, 8,0)), "", VLOOKUP($B31,'3. Rate Classes'!$C$24:$N$45, 8,0)) -> 2.0984 | H31: =VLOOKUP('9. Adj Network to Current WS'!$B31, '4. RRR Data'!$B$27:$M$49,11,0) -> 0 | J31: =VLOOKUP('9. Adj Network to Current WS'!$B31, '4. RRR Data'!$B$27:$M$49,12,0) -> 1072.67 | L31: 2250.890728 | N31: 3.586368308e-05 | P31: =IF(ISERROR('7. Current Wholesale'!$F$113*N31), "", '7. Current Wholesale'!$F$113*N31) -> 2231.532195 | R31: 2.080352947
B32: =IF('3. Rate Classes'!Q31=1,'3. Rate Classes'!C31, 0) -> Street Lighting | D32: =IF(ISERROR(VLOOKUP($B32, '3. Rate Classes'!$C$24:$H$45,6,0)), "", VLOOKUP($B32, '3. Rate Classes'!$C$24:$H$45,6,0)) -> kW | F32: =IF(ISERROR(VLOOKUP($B32,'3. Rate Classes'!$C$24:$N$45, 8,0)), "", VLOOKUP($B32,'3. Rate Classes'!$C$24:$N$45, 8,0)) -> 2.065 | H32: =VLOOKUP('9. Adj Network to Current WS'!$B32, '4. RRR Data'!$B$27:$M$49,11,0) -> 0 | J32: =VLOOKUP('9. Adj Network to Current WS'!$B32, '4. RRR Data'!$B$27:$M$49,12,0) -> 167382.29 | L32: 345644.4289 | N32: 0.005507189709 | P32: =IF(ISERROR('7. Current Wholesale'!$F$113*N32), "", '7. Current Wholesale'!$F$113*N32) -> 342671.7528 | R32: 2.0472402
B33: =IF('3. Rate Classes'!Q32=1,'3. Rate Classes'!C32, 0) -> 0 | D33: =IF(ISERROR(VLOOKUP($B33, '3. Rate Classes'!$C$24:$H$45,6,0)), "", VLOOKUP($B33, '3. Rate Classes'!$C$24:$H$45,6,0)) ->  | F33: =IF(ISERROR(VLOOKUP($B33,'3. Rate Classes'!$C$24:$N$45, 8,0)), "", VLOOKUP($B33,'3. Rate Classes'!$C$24:$N$45, 8,0)) ->  | H33: =VLOOKUP('9. Adj Network to Current WS'!$B33, '4. RRR Data'!$B$27:$M$49,11,0) -> 0 | J33: =VLOOKUP('9. Adj Network to Current WS'!$B33, '4. RRR Data'!$B$27:$M$49,12,0) -> 0 | P33: =IF(ISERROR('7. Current Wholesale'!$F$113*N33), "", '7. Current Wholesale'!$F$113*N33) -> 
B34: =IF('3. Rate Classes'!Q33=1,'3. Rate Classes'!C33, 0) -> 0 | D34: =IF(ISERROR(VLOOKUP($B34, '3. Rate Classes'!$C$24:$H$45,6,0)), "", VLOOKUP($B34, '3. Rate Classes'!$C$24:$H$45,6,0)) ->  | F34: =IF(ISERROR(VLOOKUP($B34,'3. Rate Classes'!$C$24:$N$45, 8,0)), "", VLOOKUP($B34,'3. Rate Classes'!$C$24:$N$45, 8,0)) ->  | H34: =VLOOKUP('9. Adj Network to Current WS'!$B34, '4. RRR Data'!$B$27:$M$49,11,0) -> 0 | J34: =VLOOKUP('9. Adj Network to Current WS'!$B34, '4. RRR Data'!$B$27:$M$49,12,0) -> 0 | P34: =IF(ISERROR('7. Current Wholesale'!$F$113*N34), "", '7. Current Wholesale'!$F$113*N34) -> 
B35: =IF('3. Rate Classes'!Q34=1,'3. Rate Classes'!C34, 0) -> 0 | D35: =IF(ISERROR(VLOOKUP($B35, '3. Rate Classes'!$C$24:$H$45,6,0)), "", VLOOKUP($B35, '3. Rate Classes'!$C$24:$H$45,6,0)) ->  | F35: =IF(ISERROR(VLOOKUP($B35,'3. Rate Classes'!$C$24:$N$45, 8,0)), "", VLOOKUP($B35,'3. Rate Classes'!$C$24:$N$45, 8,0)) ->  | H35: =VLOOKUP('9. Adj Network to Current WS'!$B35, '4. RRR Data'!$B$27:$M$49,11,0) -> 0 | J35: =VLOOKUP('9. Adj Network to Current WS'!$B35, '4. RRR Data'!$B$27:$M$49,12,0) -> 0 | P35: =IF(ISERROR('7. Current Wholesale'!$F$113*N35), "", '7. Current Wholesale'!$F$113*N35) -> 
B36: =IF('3. Rate Classes'!Q35=1,'3. Rate Classes'!C35, 0) -> 0 | D36: =IF(ISERROR(VLOOKUP($B36, '3. Rate Classes'!$C$24:$H$45,6,0)), "", VLOOKUP($B36, '3. Rate Classes'!$C$24:$H$45,6,0)) ->  | F36: =IF(ISERROR(VLOOKUP($B36,'3. Rate Classes'!$C$24:$N$45, 8,0)), "", VLOOKUP($B36,'3. Rate Classes'!$C$24:$N$45, 8,0)) ->  | H36: =VLOOKUP('9. Adj Network to Current WS'!$B36, '4. RRR Data'!$B$27:$M$49,11,0) -> 0 | J36: =VLOOKUP('9. Adj Network to Current WS'!$B36, '4. RRR Data'!$B$27:$M$49,12,0) -> 0 | P36: =IF(ISERROR('7. Current Wholesale'!$F$113*N36), "", '7. Current Wholesale'!$F$113*N36) -> 
B37: =IF('3. Rate Classes'!Q36=1,'3. Rate Classes'!C36, 0) -> 0 | D37: =IF(ISERROR(VLOOKUP($B37, '3. Rate Classes'!$C$24:$H$45,6,0)), "", VLOOKUP($B37, '3. Rate Classes'!$C$24:$H$45,6,0)) ->  | F37: =IF(ISERROR(VLOOKUP($B37,'3. Rate Classes'!$C$24:$N$45, 8,0)), "", VLOOKUP($B37,'3. Rate Classes'!$C$24:$N$45, 8,0)) ->  | H37: =VLOOKUP('9. Adj Network to Current WS'!$B37, '4. RRR Data'!$B$27:$M$49,11,0) -> 0 | J37: =VLOOKUP('9. Adj Network to Current WS'!$B37, '4. RRR Data'!$B$27:$M$49,12,0) -> 0 | P37: =IF(ISERROR('7. Current Wholesale'!$F$113*N37), "", '7. Current Wholesale'!$F$113*N37) -> 
B38: =IF('3. Rate Classes'!Q37=1,'3. Rate Classes'!C37, 0) -> 0 | D38: =IF(ISERROR(VLOOKUP($B38, '3. Rate Classes'!$C$24:$H$45,6,0)), "", VLOOKUP($B38, '3. Rate Classes'!$C$24:$H$45,6,0)) ->  | F38: =IF(ISERROR(VLOOKUP($B38,'3. Rate Classes'!$C$24:$N$45, 8,0)), "", VLOOKUP($B38,'3. Rate Classes'!$C$24:$N$45, 8,0)) ->  | H38: =VLOOKUP('9. Adj Network to Current WS'!$B38, '4. RRR Data'!$B$27:$M$49,11,0) -> 0 | J38: =VLOOKUP('9. Adj Network to Current WS'!$B38, '4. RRR Data'!$B$27:$M$49,12,0) -> 0 | P38: =IF(ISERROR('7. Current Wholesale'!$F$113*N38), "", '7. Current Wholesale'!$F$113*N38) -> 
B39: =IF('3. Rate Classes'!Q38=1,'3. Rate Classes'!C38, 0) -> 0 | D39: =IF(ISERROR(VLOOKUP($B39, '3. Rate Classes'!$C$24:$H$45,6,0)), "", VLOOKUP($B39, '3. Rate Classes'!$C$24:$H$45,6,0)) ->  | F39: =IF(ISERROR(VLOOKUP($B39,'3. Rate Classes'!$C$24:$N$45, 8,0)), "", VLOOKUP($B39,'3. Rate Classes'!$C$24:$N$45, 8,0)) ->  | H39: =VLOOKUP('9. Adj Network to Current WS'!$B39, '4. RRR Data'!$B$27:$M$49,11,0) -> 0 | J39: =VLOOKUP('9. Adj Network to Current WS'!$B39, '4. RRR Data'!$B$27:$M$49,12,0) -> 0 | L39: =IF(F39="", "", IF(D39="kWh", F39*H39, F39*J39)) ->  | P39: =IF(ISERROR('7. Current Wholesale'!$F$113*N39), "", '7. Current Wholesale'!$F$113*N39) -> 
B40: =IF('3. Rate Classes'!Q39=1,'3. Rate Classes'!C39, 0) -> 0 | D40: =IF(ISERROR(VLOOKUP($B40, '3. Rate Classes'!$C$24:$H$45,6,0)), "", VLOOKUP($B40, '3. Rate Classes'!$C$24:$H$45,6,0)) ->  | F40: =IF(ISERROR(VLOOKUP($B40,'3. Rate Classes'!$C$24:$N$45, 8,0)), "", VLOOKUP($B40,'3. Rate Classes'!$C$24:$N$45, 8,0)) ->  | H40: =VLOOKUP('9. Adj Network to Current WS'!$B40, '4. RRR Data'!$B$27:$M$49,11,0) -> 0 | J40: =VLOOKUP('9. Adj Network to Current WS'!$B40, '4. RRR Data'!$B$27:$M$49,12,0) -> 0 | P40: =IF(ISERROR('7. Current Wholesale'!$F$113*N40), "", '7. Current Wholesale'!$F$113*N40) -> 
B41: =IF('3. Rate Classes'!Q40=1,'3. Rate Classes'!C40, 0) -> 0 | D41: =IF(ISERROR(VLOOKUP($B41, '3. Rate Classes'!$C$24:$H$45,6,0)), "", VLOOKUP($B41, '3. Rate Classes'!$C$24:$H$45,6,0)) ->  | F41: =IF(ISERROR(VLOOKUP($B41,'3. Rate Classes'!$C$24:$N$45, 8,0)), "", VLOOKUP($B41,'3. Rate Classes'!$C$24:$N$45, 8,0)) ->  | H41: =VLOOKUP('9. Adj Network to Current WS'!$B41, '4. RRR Data'!$B$27:$M$49,11,0) -> 0 | J41: =VLOOKUP('9. Adj Network to Current WS'!$B41, '4. RRR Data'!$B$27:$M$49,12,0) -> 0 | P41: =IF(ISERROR('7. Current Wholesale'!$F$113*N41), "", '7. Current Wholesale'!$F$113*N41) -> 
B42: =IF('3. Rate Classes'!Q41=1,'3. Rate Classes'!C41, 0) -> 0 | D42: =IF(ISERROR(VLOOKUP($B42, '3. Rate Classes'!$C$24:$H$45,6,0)), "", VLOOKUP($B42, '3. Rate Classes'!$C$24:$H$45,6,0)) ->  | F42: =IF(ISERROR(VLOOKUP($B42,'3. Rate Classes'!$C$24:$N$45, 8,0)), "", VLOOKUP($B42,'3. Rate Classes'!$C$24:$N$45, 8,0)) ->  | H42: =VLOOKUP('9. Adj Network to Current WS'!$B42, '4. RRR Data'!$B$27:$M$49,11,0) -> 0 | J42: =VLOOKUP('9. Adj Network to Current WS'!$B42, '4. RRR Data'!$B$27:$M$49,12,0) -> 0 | P42: =IF(ISERROR('7. Current Wholesale'!$F$113*N42), "", '7. Current Wholesale'!$F$113*N42) -> 
B43: =IF('3. Rate Classes'!Q42=1,'3. Rate Classes'!C42, 0) -> 0 | D43: =IF(ISERROR(VLOOKUP($B43, '3. Rate Classes'!$C$24:$H$45,6,0)), "", VLOOKUP($B43, '3. Rate Classes'!$C$24:$H$45,6,0)) ->  | F43: =IF(ISERROR(VLOOKUP($B43,'3. Rate Classes'!$C$24:$N$45, 8,0)), "", VLOOKUP($B43,'3. Rate Classes'!$C$24:$N$45, 8,0)) ->  | H43: =VLOOKUP('9. Adj Network to Current WS'!$B43, '4. RRR Data'!$B$27:$M$49,11,0) -> 0 | J43: =VLOOKUP('9. Adj Network to Current WS'!$B43, '4. RRR Data'!$B$27:$M$49,12,0) -> 0 | P43: =IF(ISERROR('7. Current Wholesale'!$F$113*N43), "", '7. Current Wholesale'!$F$113*N43) -> 
B44: =IF('3. Rate Classes'!Q43=1,'3. Rate Classes'!C43, 0) -> 0 | D44: =IF(ISERROR(VLOOKUP($B44, '3. Rate Classes'!$C$24:$H$45,6,0)), "", VLOOKUP($B44, '3. Rate Classes'!$C$24:$H$45,6,0)) ->  | F44: =IF(ISERROR(VLOOKUP($B44,'3. Rate Classes'!$C$24:$N$45, 8,0)), "", VLOOKUP($B44,'3. Rate Classes'!$C$24:$N$45, 8,0)) ->  | H44: =VLOOKUP('9. Adj Network to Current WS'!$B44, '4. RRR Data'!$B$27:$M$49,11,0) -> 0 | J44: =VLOOKUP('9. Adj Network to Current WS'!$B44, '4. RRR Data'!$B$27:$M$49,12,0) -> 0 | P44: =IF(ISERROR('7. Current Wholesale'!$F$113*N44), "", '7. Current Wholesale'!$F$113*N44) -> 
B45: =IF('3. Rate Classes'!Q44=1,'3. Rate Classes'!C44, 0) -> 0 | D45: =IF(ISERROR(VLOOKUP($B45, '3. Rate Classes'!$C$24:$H$45,6,0)), "", VLOOKUP($B45, '3. Rate Classes'!$C$24:$H$45,6,0)) ->  | F45: =IF(ISERROR(VLOOKUP($B45,'3. Rate Classes'!$C$24:$N$45, 8,0)), "", VLOOKUP($B45,'3. Rate Classes'!$C$24:$N$45, 8,0)) ->  | H45: =VLOOKUP('9. Adj Network to Current WS'!$B45, '4. RRR Data'!$B$27:$M$49,11,0) -> 0 | J45: =VLOOKUP('9. Adj Network to Current WS'!$B45, '4. RRR Data'!$B$27:$M$49,12,0) -> 0 | P45: =IF(ISERROR('7. Current Wholesale'!$F$113*N45), "", '7. Current Wholesale'!$F$113*N45) -> 
B46: =IF('3. Rate Classes'!Q45=1,'3. Rate Classes'!C45, 0) -> 0 | D46: =IF(ISERROR(VLOOKUP($B46, '3. Rate Classes'!$C$24:$H$45,6,0)), "", VLOOKUP($B46, '3. Rate Classes'!$C$24:$H$45,6,0)) ->  | F46: =IF(ISERROR(VLOOKUP($B46,'3. Rate Classes'!$C$24:$N$45, 8,0)), "", VLOOKUP($B46,'3. Rate Classes'!$C$24:$N$45, 8,0)) ->  | H46: =VLOOKUP('9. Adj Network to Current WS'!$B46, '4. RRR Data'!$B$27:$M$49,11,0) -> 0 | J46: =VLOOKUP('9. Adj Network to Current WS'!$B46, '4. RRR Data'!$B$27:$M$49,12,0) -> 0 | P46: =IF(ISERROR('7. Current Wholesale'!$F$113*N46), "", '7. Current Wholesale'!$F$113*N46) -> 
L49: =SUM(L25:L46) -> 62762397.36

Sheet 10. Adj Conn. to Current WS
B13: The purpose of this sheet is to re-align the current RTS Connection Rates to recover current wholesale connection costs.
B22: Rate Class | D22: Unit | F22: Current RTSR-Connection | H22: Loss Adjusted Billed kWh | J22: Loss Adjusted Billed kW | L22: Billed Amount | N22: Billed Amount % | P22: Current Wholesale Billing | R22: Proposed RTSR Connection
B25: =IF('3. Rate Classes'!Q24=1,'3. Rate Classes'!C24, 0) -> Residential | D25: =IF(ISERROR(VLOOKUP($B25, '3. Rate Classes'!$C$24:$H$45,6,0)), "", VLOOKUP($B25, '3. Rate Classes'!$C$24:$H$45,6,0)) -> kWh | F25: =IF(ISERROR(VLOOKUP($B25,'3. Rate Classes'!$C$24:$N$45, 11,0)), "", VLOOKUP($B25,'3. Rate Classes'!$C$24:$N$45, 11,0)) -> 0.0032 | H25: =VLOOKUP('9. Adj Network to Current WS'!$B25, '4. RRR Data'!$B$27:$M$49,11,0) -> 2867980543 | J25: =VLOOKUP('9. Adj Network to Current WS'!$B25, '4. RRR Data'!$B$27:$M$49,12,0) -> 0 | L25: =IF(F25="", "", IF(D25="kWh", F25*H25, F25*J25)) -> 9177537.737 | N25: =IF(ISERROR(L25/$L$49), "", L25/$L$49) -> 0.3508577791 | P25: =IF(ISERROR('7. Current Wholesale'!$P$117*N25), "", '7. Current Wholesale'!$P$117*N25) -> 9094955.591 | R25: =IF(D25="","",IF(D25="kWh",IF(H25<>0,P25/H25,),IF(J25<>0,P25/J25,0))) -> 0.003171205472
B26: =IF('3. Rate Classes'!Q25=1,'3. Rate Classes'!C25, 0) -> General Service Less Than 50 kW | D26: =IF(ISERROR(VLOOKUP($B26, '3. Rate Classes'!$C$24:$H$45,6,0)), "", VLOOKUP($B26, '3. Rate Classes'!$C$24:$H$45,6,0)) -> kWh | F26: =IF(ISERROR(VLOOKUP($B26,'3. Rate Classes'!$C$24:$N$45, 11,0)), "", VLOOKUP($B26,'3. Rate Classes'!$C$24:$N$45, 11,0)) -> 0.0028 | H26: =VLOOKUP('9. Adj Network to Current WS'!$B26, '4. RRR Data'!$B$27:$M$49,11,0) -> 1054180707 | J26: =VLOOKUP('9. Adj Network to Current WS'!$B26, '4. RRR Data'!$B$27:$M$49,12,0) -> 0 | L26: 2951705.979 | N26: 0.112843884 | P26: =IF(ISERROR('7. Current Wholesale'!$P$117*N26), "", '7. Current Wholesale'!$P$117*N26) -> 2925145.672 | R26: 0.002774804788
B27: =IF('3. Rate Classes'!Q26=1,'3. Rate Classes'!C26, 0) -> General Service 50 to 4,999 kW | D27: =IF(ISERROR(VLOOKUP($B27, '3. Rate Classes'!$C$24:$H$45,6,0)), "", VLOOKUP($B27, '3. Rate Classes'!$C$24:$H$45,6,0)) -> kW | F27: =IF(ISERROR(VLOOKUP($B27,'3. Rate Classes'!$C$24:$N$45, 11,0)), "", VLOOKUP($B27,'3. Rate Classes'!$C$24:$N$45, 11,0)) -> 1.0903 | H27: =VLOOKUP('9. Adj Network to Current WS'!$B27, '4. RRR Data'!$B$27:$M$49,11,0) -> 0 | J27: =VLOOKUP('9. Adj Network to Current WS'!$B27, '4. RRR Data'!$B$27:$M$49,12,0) -> 6730682.85 | L27: 7338463.511 | N27: 0.280549869 | P27: =IF(ISERROR('7. Current Wholesale'!$P$117*N27), "", '7. Current Wholesale'!$P$117*N27) -> 7272429.888 | R27: 1.080489164
B28: =IF('3. Rate Classes'!Q27=1,'3. Rate Classes'!C27, 0) -> General Service 50 to 4,999 kW – Interval Metered | D28: =IF(ISERROR(VLOOKUP($B28, '3. Rate Classes'!$C$24:$H$45,6,0)), "", VLOOKUP($B28, '3. Rate Classes'!$C$24:$H$45,6,0)) -> kW | F28: =IF(ISERROR(VLOOKUP($B28,'3. Rate Classes'!$C$24:$N$45, 11,0)), "", VLOOKUP($B28,'3. Rate Classes'!$C$24:$N$45, 11,0)) -> 1.1797 | H28: =VLOOKUP('9. Adj Network to Current WS'!$B28, '4. RRR Data'!$B$27:$M$49,11,0) -> 0 | J28: =VLOOKUP('9. Adj Network to Current WS'!$B28, '4. RRR Data'!$B$27:$M$49,12,0) -> 5358368.3 | L28: 6321267.084 | N28: 0.2416623928 | P28: =IF(ISERROR('7. Current Wholesale'!$P$117*N28), "", '7. Current Wholesale'!$P$117*N28) -> 6264386.489 | R28: 1.169084717
B29: =IF('3. Rate Classes'!Q28=1,'3. Rate Classes'!C28, 0) -> Large Use | D29: =IF(ISERROR(VLOOKUP($B29, '3. Rate Classes'!$C$24:$H$45,6,0)), "", VLOOKUP($B29, '3. Rate Classes'!$C$24:$H$45,6,0)) -> kW | F29: =IF(ISERROR(VLOOKUP($B29,'3. Rate Classes'!$C$24:$N$45, 11,0)), "", VLOOKUP($B29,'3. Rate Classes'!$C$24:$N$45, 11,0)) -> 1.1183 | H29: =VLOOKUP('9. Adj Network to Current WS'!$B29, '4. RRR Data'!$B$27:$M$49,11,0) -> 0 | J29: =VLOOKUP('9. Adj Network to Current WS'!$B29, '4. RRR Data'!$B$27:$M$49,12,0) -> 159258.46 | L29: 178098.7358 | N29: 0.006808724594 | P29: =IF(ISERROR('7. Current Wholesale'!$P$117*N29), "", '7. Current Wholesale'!$P$117*N29) -> 176496.1517 | R29: 1.108237212
B30: =IF('3. Rate Classes'!Q29=1,'3. Rate Classes'!C29, 0) -> Unmetered Scattered Load | D30: =IF(ISERROR(VLOOKUP($B30, '3. Rate Classes'!$C$24:$H$45,6,0)), "", VLOOKUP($B30, '3. Rate Classes'!$C$24:$H$45,6,0)) -> kWh | F30: =IF(ISERROR(VLOOKUP($B30,'3. Rate Classes'!$C$24:$N$45, 11,0)), "", VLOOKUP($B30,'3. Rate Classes'!$C$24:$N$45, 11,0)) -> 0.0031 | H30: =VLOOKUP('9. Adj Network to Current WS'!$B30, '4. RRR Data'!$B$27:$M$49,11,0) -> 13418413.85 | J30: =VLOOKUP('9. Adj Network to Current WS'!$B30, '4. RRR Data'!$B$27:$M$49,12,0) -> 0 | L30: 41597.08292 | N30: 0.001590258798 | P30: =IF(ISERROR('7. Current Wholesale'!$P$117*N30), "", '7. Current Wholesale'!$P$117*N30) -> 41222.7803 | R30: 0.003072105301
B31: =IF('3. Rate Classes'!Q30=1,'3. Rate Classes'!C30, 0) -> Sentinel Lighting | D31: =IF(ISERROR(VLOOKUP($B31, '3. Rate Classes'!$C$24:$H$45,6,0)), "", VLOOKUP($B31, '3. Rate Classes'!$C$24:$H$45,6,0)) -> kW | F31: =IF(ISERROR(VLOOKUP($B31,'3. Rate Classes'!$C$24:$N$45, 11,0)), "", VLOOKUP($B31,'3. Rate Classes'!$C$24:$N$45, 11,0)) -> 0.8024 | H31: =VLOOKUP('9. Adj Network to Current WS'!$B31, '4. RRR Data'!$B$27:$M$49,11,0) -> 0 | J31: =VLOOKUP('9. Adj Network to Current WS'!$B31, '4. RRR Data'!$B$27:$M$49,12,0) -> 1072.67 | L31: 860.710408 | N31: 3.290500686e-05 | P31: =IF(ISERROR('7. Current Wholesale'!$P$117*N31), "", '7. Current Wholesale'!$P$117*N31) -> 852.9654861 | R31: 0.7951797721
B32: =IF('3. Rate Classes'!Q31=1,'3. Rate Classes'!C31, 0) -> Street Lighting | D32: =IF(ISERROR(VLOOKUP($B32, '3. Rate Classes'!$C$24:$H$45,6,0)), "", VLOOKUP($B32, '3. Rate Classes'!$C$24:$H$45,6,0)) -> kW | F32: =IF(ISERROR(VLOOKUP($B32,'3. Rate Classes'!$C$24:$N$45, 11,0)), "", VLOOKUP($B32,'3. Rate Classes'!$C$24:$N$45, 11,0)) -> 0.8836 | H32: =VLOOKUP('9. Adj Network to Current WS'!$B32, '4. RRR Data'!$B$27:$M$49,11,0) -> 0 | J32: =VLOOKUP('9. Adj Network to Current WS'!$B32, '4. RRR Data'!$B$27:$M$49,12,0) -> 167382.29 | L32: 147898.9914 | N32: 0.005654186684 | P32: =IF(ISERROR('7. Current Wholesale'!$P$117*N32), "", '7. Current Wholesale'!$P$117*N32) -> 146568.1534 | R32: 0.8756491109
B33: =IF('3. Rate Classes'!Q32=1,'3. Rate Classes'!C32, 0) -> 0 | D33: =IF(ISERROR(VLOOKUP($B33, '3. Rate Classes'!$C$24:$H$45,6,0)), "", VLOOKUP($B33, '3. Rate Classes'!$C$24:$H$45,6,0)) ->  | F33: =IF(ISERROR(VLOOKUP($B33,'3. Rate Classes'!$C$24:$N$45, 11,0)), "", VLOOKUP($B33,'3. Rate Classes'!$C$24:$N$45, 11,0)) ->  | H33: =VLOOKUP('9. Adj Network to Current WS'!$B33, '4. RRR Data'!$B$27:$M$49,11,0) -> 0 | J33: =VLOOKUP('9. Adj Network to Current WS'!$B33, '4. RRR Data'!$B$27:$M$49,12,0) -> 0 | P33: =IF(ISERROR('7. Current Wholesale'!$P$117*N33), "", '7. Current Wholesale'!$P$117*N33) -> 
B34: =IF('3. Rate Classes'!Q33=1,'3. Rate Classes'!C33, 0) -> 0 | D34: =IF(ISERROR(VLOOKUP($B34, '3. Rate Classes'!$C$24:$H$45,6,0)), "", VLOOKUP($B34, '3. Rate Classes'!$C$24:$H$45,6,0)) ->  | F34: =IF(ISERROR(VLOOKUP($B34,'3. Rate Classes'!$C$24:$N$45, 11,0)), "", VLOOKUP($B34,'3. Rate Classes'!$C$24:$N$45, 11,0)) ->  | H34: =VLOOKUP('9. Adj Network to Current WS'!$B34, '4. RRR Data'!$B$27:$M$49,11,0) -> 0 | J34: =VLOOKUP('9. Adj Network to Current WS'!$B34, '4. RRR Data'!$B$27:$M$49,12,0) -> 0 | P34: =IF(ISERROR('7. Current Wholesale'!$P$117*N34), "", '7. Current Wholesale'!$P$117*N34) -> 
B35: =IF('3. Rate Classes'!Q34=1,'3. Rate Classes'!C34, 0) -> 0 | D35: =IF(ISERROR(VLOOKUP($B35, '3. Rate Classes'!$C$24:$H$45,6,0)), "", VLOOKUP($B35, '3. Rate Classes'!$C$24:$H$45,6,0)) ->  | F35: =IF(ISERROR(VLOOKUP($B35,'3. Rate Classes'!$C$24:$N$45, 11,0)), "", VLOOKUP($B35,'3. Rate Classes'!$C$24:$N$45, 11,0)) ->  | H35: =VLOOKUP('9. Adj Network to Current WS'!$B35, '4. RRR Data'!$B$27:$M$49,11,0) -> 0 | J35: =VLOOKUP('9. Adj Network to Current WS'!$B35, '4. RRR Data'!$B$27:$M$49,12,0) -> 0 | P35: =IF(ISERROR('7. Current Wholesale'!$P$117*N35), "", '7. Current Wholesale'!$P$117*N35) -> 
B36: =IF('3. Rate Classes'!Q35=1,'3. Rate Classes'!C35, 0) -> 0 | D36: =IF(ISERROR(VLOOKUP($B36, '3. Rate Classes'!$C$24:$H$45,6,0)), "", VLOOKUP($B36, '3. Rate Classes'!$C$24:$H$45,6,0)) ->  | F36: =IF(ISERROR(VLOOKUP($B36,'3. Rate Classes'!$C$24:$N$45, 11,0)), "", VLOOKUP($B36,'3. Rate Classes'!$C$24:$N$45, 11,0)) ->  | H36: =VLOOKUP('9. Adj Network to Current WS'!$B36, '4. RRR Data'!$B$27:$M$49,11,0) -> 0 | J36: =VLOOKUP('9. Adj Network to Current WS'!$B36, '4. RRR Data'!$B$27:$M$49,12,0) -> 0 | P36: =IF(ISERROR('7. Current Wholesale'!$P$117*N36), "", '7. Current Wholesale'!$P$117*N36) -> 
B37: =IF('3. Rate Classes'!Q36=1,'3. Rate Classes'!C36, 0) -> 0 | D37: =IF(ISERROR(VLOOKUP($B37, '3. Rate Classes'!$C$24:$H$45,6,0)), "", VLOOKUP($B37, '3. Rate Classes'!$C$24:$H$45,6,0)) ->  | F37: =IF(ISERROR(VLOOKUP($B37,'3. Rate Classes'!$C$24:$N$45, 11,0)), "", VLOOKUP($B37,'3. Rate Classes'!$C$24:$N$45, 11,0)) ->  | H37: =VLOOKUP('9. Adj Network to Current WS'!$B37, '4. RRR Data'!$B$27:$M$49,11,0) -> 0 | J37: =VLOOKUP('9. Adj Network to Current WS'!$B37, '4. RRR Data'!$B$27:$M$49,12,0) -> 0 | P37: =IF(ISERROR('7. Current Wholesale'!$P$117*N37), "", '7. Current Wholesale'!$P$117*N37) -> 
B38: =IF('3. Rate Classes'!Q37=1,'3. Rate Classes'!C37, 0) -> 0 | D38: =IF(ISERROR(VLOOKUP($B38, '3. Rate Classes'!$C$24:$H$45,6,0)), "", VLOOKUP($B38, '3. Rate Classes'!$C$24:$H$45,6,0)) ->  | F38: =IF(ISERROR(VLOOKUP($B38,'3. Rate Classes'!$C$24:$N$45, 11,0)), "", VLOOKUP($B38,'3. Rate Classes'!$C$24:$N$45, 11,0)) ->  | H38: =VLOOKUP('9. Adj Network to Current WS'!$B38, '4. RRR Data'!$B$27:$M$49,11,0) -> 0 | J38: =VLOOKUP('9. Adj Network to Current WS'!$B38, '4. RRR Data'!$B$27:$M$49,12,0) -> 0 | P38: =IF(ISERROR('7. Current Wholesale'!$P$117*N38), "", '7. Current Wholesale'!$P$117*N38) -> 
B39: =IF('3. Rate Classes'!Q38=1,'3. Rate Classes'!C38, 0) -> 0 | D39: =IF(ISERROR(VLOOKUP($B39, '3. Rate Classes'!$C$24:$H$45,6,0)), "", VLOOKUP($B39, '3. Rate Classes'!$C$24:$H$45,6,0)) ->  | F39: =IF(ISERROR(VLOOKUP($B39,'3. Rate Classes'!$C$24:$N$45, 11,0)), "", VLOOKUP($B39,'3. Rate Classes'!$C$24:$N$45, 11,0)) ->  | H39: =VLOOKUP('9. Adj Network to Current WS'!$B39, '4. RRR Data'!$B$27:$M$49,11,0) -> 0 | J39: =VLOOKUP('9. Adj Network to Current WS'!$B39, '4. RRR Data'!$B$27:$M$49,12,0) -> 0 | P39: =IF(ISERROR('7. Current Wholesale'!$P$117*N39), "", '7. Current Wholesale'!$P$117*N39) -> 
B40: =IF('3. Rate Classes'!Q39=1,'3. Rate Classes'!C39, 0) -> 0 | D40: =IF(ISERROR(VLOOKUP($B40, '3. Rate Classes'!$C$24:$H$45,6,0)), "", VLOOKUP($B40, '3. Rate Classes'!$C$24:$H$45,6,0)) ->  | F40: =IF(ISERROR(VLOOKUP($B40,'3. Rate Classes'!$C$24:$N$45, 11,0)), "", VLOOKUP($B40,'3. Rate Classes'!$C$24:$N$45, 11,0)) ->  | H40: =VLOOKUP('9. Adj Network to Current WS'!$B40, '4. RRR Data'!$B$27:$M$49,11,0) -> 0 | J40: =VLOOKUP('9. Adj Network to Current WS'!$B40, '4. RRR Data'!$B$27:$M$49,12,0) -> 0 | P40: =IF(ISERROR('7. Current Wholesale'!$P$117*N40), "", '7. Current Wholesale'!$P$117*N40) -> 
B41: =IF('3. Rate Classes'!Q40=1,'3. Rate Classes'!C40, 0) -> 0 | D41: =IF(ISERROR(VLOOKUP($B41, '3. Rate Classes'!$C$24:$H$45,6,0)), "", VLOOKUP($B41, '3. Rate Classes'!$C$24:$H$45,6,0)) ->  | F41: =IF(ISERROR(VLOOKUP($B41,'3. Rate Classes'!$C$24:$N$45, 11,0)), "", VLOOKUP($B41,'3. Rate Classes'!$C$24:$N$45, 11,0)) ->  | H41: =VLOOKUP('9. Adj Network to Current WS'!$B41, '4. RRR Data'!$B$27:$M$49,11,0) -> 0 | J41: =VLOOKUP('9. Adj Network to Current WS'!$B41, '4. RRR Data'!$B$27:$M$49,12,0) -> 0 | P41: =IF(ISERROR('7. Current Wholesale'!$P$117*N41), "", '7. Current Wholesale'!$P$117*N41) -> 
B42: =IF('3. Rate Classes'!Q41=1,'3. Rate Classes'!C41, 0) -> 0 | D42: =IF(ISERROR(VLOOKUP($B42, '3. Rate Classes'!$C$24:$H$45,6,0)), "", VLOOKUP($B42, '3. Rate Classes'!$C$24:$H$45,6,0)) ->  | F42: =IF(ISERROR(VLOOKUP($B42,'3. Rate Classes'!$C$24:$N$45, 11,0)), "", VLOOKUP($B42,'3. Rate Classes'!$C$24:$N$45, 11,0)) ->  | H42: =VLOOKUP('9. Adj Network to Current WS'!$B42, '4. RRR Data'!$B$27:$M$49,11,0) -> 0 | J42: =VLOOKUP('9. Adj Network to Current WS'!$B42, '4. RRR Data'!$B$27:$M$49,12,0) -> 0 | P42: =IF(ISERROR('7. Current Wholesale'!$P$117*N42), "", '7. Current Wholesale'!$P$117*N42) -> 
B43: =IF('3. Rate Classes'!Q42=1,'3. Rate Classes'!C42, 0) -> 0 | D43: =IF(ISERROR(VLOOKUP($B43, '3. Rate Classes'!$C$24:$H$45,6,0)), "", VLOOKUP($B43, '3. Rate Classes'!$C$24:$H$45,6,0)) ->  | F43: =IF(ISERROR(VLOOKUP($B43,'3. Rate Classes'!$C$24:$N$45, 11,0)), "", VLOOKUP($B43,'3. Rate Classes'!$C$24:$N$45, 11,0)) ->  | H43: =VLOOKUP('9. Adj Network to Current WS'!$B43, '4. RRR Data'!$B$27:$M$49,11,0) -> 0 | J43: =VLOOKUP('9. Adj Network to Current WS'!$B43, '4. RRR Data'!$B$27:$M$49,12,0) -> 0 | P43: =IF(ISERROR('7. Current Wholesale'!$P$117*N43), "", '7. Current Wholesale'!$P$117*N43) -> 
B44: =IF('3. Rate Classes'!Q43=1,'3. Rate Classes'!C43, 0) -> 0 | D44: =IF(ISERROR(VLOOKUP($B44, '3. Rate Classes'!$C$24:$H$45,6,0)), "", VLOOKUP($B44, '3. Rate Classes'!$C$24:$H$45,6,0)) ->  | F44: =IF(ISERROR(VLOOKUP($B44,'3. Rate Classes'!$C$24:$N$45, 11,0)), "", VLOOKUP($B44,'3. Rate Classes'!$C$24:$N$45, 11,0)) ->  | H44: =VLOOKUP('9. Adj Network to Current WS'!$B44, '4. RRR Data'!$B$27:$M$49,11,0) -> 0 | J44: =VLOOKUP('9. Adj Network to Current WS'!$B44, '4. RRR Data'!$B$27:$M$49,12,0) -> 0 | P44: =IF(ISERROR('7. Current Wholesale'!$P$117*N44), "", '7. Current Wholesale'!$P$117*N44) -> 
B45: =IF('3. Rate Classes'!Q44=1,'3. Rate Classes'!C44, 0) -> 0 | D45: =IF(ISERROR(VLOOKUP($B45, '3. Rate Classes'!$C$24:$H$45,6,0)), "", VLOOKUP($B45, '3. Rate Classes'!$C$24:$H$45,6,0)) ->  | F45: =IF(ISERROR(VLOOKUP($B45,'3. Rate Classes'!$C$24:$N$45, 11,0)), "", VLOOKUP($B45,'3. Rate Classes'!$C$24:$N$45, 11,0)) ->  | H45: =VLOOKUP('9. Adj Network to Current WS'!$B45, '4. RRR Data'!$B$27:$M$49,11,0) -> 0 | J45: =VLOOKUP('9. Adj Network to Current WS'!$B45, '4. RRR Data'!$B$27:$M$49,12,0) -> 0 | P45: =IF(ISERROR('7. Current Wholesale'!$P$117*N45), "", '7. Current Wholesale'!$P$117*N45) -> 
B46: =IF('3. Rate Classes'!Q45=1,'3. Rate Classes'!C45, 0) -> 0 | D46: =IF(ISERROR(VLOOKUP($B46, '3. Rate Classes'!$C$24:$H$45,6,0)), "", VLOOKUP($B46, '3. Rate Classes'!$C$24:$H$45,6,0)) ->  | F46: =IF(ISERROR(VLOOKUP($B46,'3. Rate Classes'!$C$24:$N$45, 11,0)), "", VLOOKUP($B46,'3. Rate Classes'!$C$24:$N$45, 11,0)) ->  | H46: =VLOOKUP('9. Adj Network to Current WS'!$B46, '4. RRR Data'!$B$27:$M$49,11,0) -> 0 | J46: =VLOOKUP('9. Adj Network to Current WS'!$B46, '4. RRR Data'!$B$27:$M$49,12,0) -> 0 | P46: =IF(ISERROR('7. Current Wholesale'!$P$117*N46), "", '7. Current Wholesale'!$P$117*N46) -> 
L49: =SUM(L25:L46) -> 26157429.83

Sheet 11. Adj Network to Forecast WS
B13: The purpose of this sheet is to update the re-align RTS Network Rates to recover forecast wholesale network costs.
B22: Rate Class | D22: Unit | F22: Adjusted RTSR-Network | H22: Loss Adjusted Billed kWh | J22: Loss Adjusted Billed kW | L22: Billed Amount | N22: Billed Amount % | P22: Forecast Wholesale Billing | R22: Proposed RTSR Network
B25: =IF('3. Rate Classes'!Q24=1,'3. Rate Classes'!C24, 0) -> Residential | D25: =IF(ISERROR(VLOOKUP($B25, '3. Rate Classes'!$C$24:$H$45,6,0)), "", VLOOKUP($B25, '3. Rate Classes'!$C$24:$H$45,6,0)) -> kWh | F25: =VLOOKUP($B25, '9. Adj Network to Current WS'!$B$25:$R$47, 17,0) -> 0.007336357132 | H25: =VLOOKUP('9. Adj Network to Current WS'!$B25, '4. RRR Data'!$B$27:$M$49,11,0) -> 2867980543 | J25: =VLOOKUP('9. Adj Network to Current WS'!$B25, '4. RRR Data'!$B$27:$M$49,12,0) -> 0 | L25: =IF(F25="", "", IF(D25="kWh", F25*H25, F25*J25)) -> 21040529.51 | N25: =IF(ISERROR(L25/$L$49), "", L25/$L$49) -> 0.3381492249 | P25: =IF(ISERROR('8. Forecast Wholesale'!$F$113*N25), "", '8. Forecast Wholesale'!$F$113*N25) -> 22036540.52 | R25: =IF(D25="","",IF(D25="kWh",IF(H25<>0,P25/H25,),IF(J25<>0,P25/J25,0))) -> 0.007683643663
B26: =IF('3. Rate Classes'!Q25=1,'3. Rate Classes'!C25, 0) -> General Service Less Than 50 kW | D26: =IF(ISERROR(VLOOKUP($B26, '3. Rate Classes'!$C$24:$H$45,6,0)), "", VLOOKUP($B26, '3. Rate Classes'!$C$24:$H$45,6,0)) -> kWh | F26: =VLOOKUP($B26, '9. Adj Network to Current WS'!$B$25:$R$47, 17,0) -> 0.006642377403 | H26: =VLOOKUP('9. Adj Network to Current WS'!$B26, '4. RRR Data'!$B$27:$M$49,11,0) -> 1054180707 | J26: =VLOOKUP('9. Adj Network to Current WS'!$B26, '4. RRR Data'!$B$27:$M$49,12,0) -> 0 | L26: =IF(F26="", "", IF(D26="kWh", F26*H26, F26*J26)) -> 7002266.105 | N26: 0.1125357066 | P26: =IF(ISERROR('8. Forecast Wholesale'!$F$113*N26), "", '8. Forecast Wholesale'!$F$113*N26) -> 7333737.523 | R26: 0.006956812505
B27: =IF('3. Rate Classes'!Q26=1,'3. Rate Classes'!C26, 0) -> General Service 50 to 4,999 kW | D27: =IF(ISERROR(VLOOKUP($B27, '3. Rate Classes'!$C$24:$H$45,6,0)), "", VLOOKUP($B27, '3. Rate Classes'!$C$24:$H$45,6,0)) -> kW | F27: =VLOOKUP($B27, '9. Adj Network to Current WS'!$B$25:$R$47, 17,0) -> 2.691749088 | H27: =VLOOKUP('9. Adj Network to Current WS'!$B27, '4. RRR Data'!$B$27:$M$49,11,0) -> 0 | J27: =VLOOKUP('9. Adj Network to Current WS'!$B27, '4. RRR Data'!$B$27:$M$49,12,0) -> 6730682.85 | L27: 18117309.42 | N27: 0.2911691996 | P27: =IF(ISERROR('8. Forecast Wholesale'!$F$113*N27), "", '8. Forecast Wholesale'!$F$113*N27) -> 18974941.82 | R27: 2.819170393
B28: =IF('3. Rate Classes'!Q27=1,'3. Rate Classes'!C27, 0) -> General Service 50 to 4,999 kW – Interval Metered | D28: =IF(ISERROR(VLOOKUP($B28, '3. Rate Classes'!$C$24:$H$45,6,0)), "", VLOOKUP($B28, '3. Rate Classes'!$C$24:$H$45,6,0)) -> kW | F28: =VLOOKUP($B28, '9. Adj Network to Current WS'!$B$25:$R$47, 17,0) -> 2.821721577 | H28: =VLOOKUP('9. Adj Network to Current WS'!$B28, '4. RRR Data'!$B$27:$M$49,11,0) -> 0 | J28: =VLOOKUP('9. Adj Network to Current WS'!$B28, '4. RRR Data'!$B$27:$M$49,12,0) -> 5358368.3 | L28: 15119823.45 | N28: 0.2429956231 | P28: =IF(ISERROR('8. Forecast Wholesale'!$F$113*N28), "", '8. Forecast Wholesale'!$F$113*N28) -> 15835561.65 | R28: 2.955295485
B29: =IF('3. Rate Classes'!Q28=1,'3. Rate Classes'!C28, 0) -> Large Use | D29: =IF(ISERROR(VLOOKUP($B29, '3. Rate Classes'!$C$24:$H$45,6,0)), "", VLOOKUP($B29, '3. Rate Classes'!$C$24:$H$45,6,0)) -> kW | F29: =VLOOKUP($B29, '9. Adj Network to Current WS'!$B$25:$R$47, 17,0) -> 3.193892991 | H29: =VLOOKUP('9. Adj Network to Current WS'!$B29, '4. RRR Data'!$B$27:$M$49,11,0) -> 0 | J29: =VLOOKUP('9. Adj Network to Current WS'!$B29, '4. RRR Data'!$B$27:$M$49,12,0) -> 159258.46 | L29: 508654.4792 | N29: 0.008174752341 | P29: =IF(ISERROR('8. Forecast Wholesale'!$F$113*N29), "", '8. Forecast Wholesale'!$F$113*N29) -> 532733.0302 | R29: 3.345084652
B30: =IF('3. Rate Classes'!Q29=1,'3. Rate Classes'!C29, 0) -> Unmetered Scattered Load | D30: =IF(ISERROR(VLOOKUP($B30, '3. Rate Classes'!$C$24:$H$45,6,0)), "", VLOOKUP($B30, '3. Rate Classes'!$C$24:$H$45,6,0)) -> kWh | F30: =VLOOKUP($B30, '9. Adj Network to Current WS'!$B$25:$R$47, 17,0) -> 0.006642377403 | H30: =VLOOKUP('9. Adj Network to Current WS'!$B30, '4. RRR Data'!$B$27:$M$49,11,0) -> 13418413.85 | J30: =VLOOKUP('9. Adj Network to Current WS'!$B30, '4. RRR Data'!$B$27:$M$49,12,0) -> 0 | L30: 89130.16891 | N30: 0.001432440068 | P30: =IF(ISERROR('8. Forecast Wholesale'!$F$113*N30), "", '8. Forecast Wholesale'!$F$113*N30) -> 93349.38924 | R30: 0.006956812505
B31: =IF('3. Rate Classes'!Q30=1,'3. Rate Classes'!C30, 0) -> Sentinel Lighting | D31: =IF(ISERROR(VLOOKUP($B31, '3. Rate Classes'!$C$24:$H$45,6,0)), "", VLOOKUP($B31, '3. Rate Classes'!$C$24:$H$45,6,0)) -> kW | F31: =VLOOKUP($B31, '9. Adj Network to Current WS'!$B$25:$R$47, 17,0) -> 2.080352947 | H31: =VLOOKUP('9. Adj Network to Current WS'!$B31, '4. RRR Data'!$B$27:$M$49,11,0) -> 0 | J31: =VLOOKUP('9. Adj Network to Current WS'!$B31, '4. RRR Data'!$B$27:$M$49,12,0) -> 1072.67 | L31: 2231.532195 | N31: 3.586368308e-05 | P31: =IF(ISERROR('8. Forecast Wholesale'!$F$113*N31), "", '8. Forecast Wholesale'!$F$113*N31) -> 2337.167875 | R31: 2.178832143
B32: =IF('3. Rate Classes'!Q31=1,'3. Rate Classes'!C31, 0) -> Street Lighting | D32: =IF(ISERROR(VLOOKUP($B32, '3. Rate Classes'!$C$24:$H$45,6,0)), "", VLOOKUP($B32, '3. Rate Classes'!$C$24:$H$45,6,0)) -> kW | F32: =VLOOKUP($B32, '9. Adj Network to Current WS'!$B$25:$R$47, 17,0) -> 2.0472402 | H32: =VLOOKUP('9. Adj Network to Current WS'!$B32, '4. RRR Data'!$B$27:$M$49,11,0) -> 0 | J32: =VLOOKUP('9. Adj Network to Current WS'!$B32, '4. RRR Data'!$B$27:$M$49,12,0) -> 167382.29 | L32: 342671.7528 | N32: 0.005507189709 | P32: =IF(ISERROR('8. Forecast Wholesale'!$F$113*N32), "", '8. Forecast Wholesale'!$F$113*N32) -> 358893.0575 | R32: 2.144151914
B33: =IF('3. Rate Classes'!Q32=1,'3. Rate Classes'!C32, 0) -> 0 | D33: =IF(ISERROR(VLOOKUP($B33, '3. Rate Classes'!$C$24:$H$45,6,0)), "", VLOOKUP($B33, '3. Rate Classes'!$C$24:$H$45,6,0)) ->  | F33: =VLOOKUP($B33, '9. Adj Network to Current WS'!$B$25:$R$47, 17,0) ->  | H33: =VLOOKUP('9. Adj Network to Current WS'!$B33, '4. RRR Data'!$B$27:$M$49,11,0) -> 0 | J33: =VLOOKUP('9. Adj Network to Current WS'!$B33, '4. RRR Data'!$B$27:$M$49,12,0) -> 0 | P33: =IF(ISERROR('8. Forecast Wholesale'!$F$113*N33), "", '8. Forecast Wholesale'!$F$113*N33) -> 
B34: =IF('3. Rate Classes'!Q33=1,'3. Rate Classes'!C33, 0) -> 0 | D34: =IF(ISERROR(VLOOKUP($B34, '3. Rate Classes'!$C$24:$H$45,6,0)), "", VLOOKUP($B34, '3. Rate Classes'!$C$24:$H$45,6,0)) ->  | F34: =VLOOKUP($B34, '9. Adj Network to Current WS'!$B$25:$R$47, 17,0) ->  | H34: =VLOOKUP('9. Adj Network to Current WS'!$B34, '4. RRR Data'!$B$27:$M$49,11,0) -> 0 | J34: =VLOOKUP('9. Adj Network to Current WS'!$B34, '4. RRR Data'!$B$27:$M$49,12,0) -> 0 | P34: =IF(ISERROR('8. Forecast Wholesale'!$F$113*N34), "", '8. Forecast Wholesale'!$F$113*N34) -> 
B35: =IF('3. Rate Classes'!Q34=1,'3. Rate Classes'!C34, 0) -> 0 | D35: =IF(ISERROR(VLOOKUP($B35, '3. Rate Classes'!$C$24:$H$45,6,0)), "", VLOOKUP($B35, '3. Rate Classes'!$C$24:$H$45,6,0)) ->  | F35: =VLOOKUP($B35, '9. Adj Network to Current WS'!$B$25:$R$47, 17,0) ->  | H35: =VLOOKUP('9. Adj Network to Current WS'!$B35, '4. RRR Data'!$B$27:$M$49,11,0) -> 0 | J35: =VLOOKUP('9. Adj Network to Current WS'!$B35, '4. RRR Data'!$B$27:$M$49,12,0) -> 0 | P35: =IF(ISERROR('8. Forecast Wholesale'!$F$113*N35), "", '8. Forecast Wholesale'!$F$113*N35) -> 
B36: =IF('3. Rate Classes'!Q35=1,'3. Rate Classes'!C35, 0) -> 0 | D36: =IF(ISERROR(VLOOKUP($B36, '3. Rate Classes'!$C$24:$H$45,6,0)), "", VLOOKUP($B36, '3. Rate Classes'!$C$24:$H$45,6,0)) ->  | F36: =VLOOKUP($B36, '9. Adj Network to Current WS'!$B$25:$R$47, 17,0) ->  | H36: =VLOOKUP('9. Adj Network to Current WS'!$B36, '4. RRR Data'!$B$27:$M$49,11,0) -> 0 | J36: =VLOOKUP('9. Adj Network to Current WS'!$B36, '4. RRR Data'!$B$27:$M$49,12,0) -> 0 | P36: =IF(ISERROR('8. Forecast Wholesale'!$F$113*N36), "", '8. Forecast Wholesale'!$F$113*N36) -> 
B37: =IF('3. Rate Classes'!Q36=1,'3. Rate Classes'!C36, 0) -> 0 | D37: =IF(ISERROR(VLOOKUP($B37, '3. Rate Classes'!$C$24:$H$45,6,0)), "", VLOOKUP($B37, '3. Rate Classes'!$C$24:$H$45,6,0)) ->  | F37: =VLOOKUP($B37, '9. Adj Network to Current WS'!$B$25:$R$47, 17,0) ->  | H37: =VLOOKUP('9. Adj Network to Current WS'!$B37, '4. RRR Data'!$B$27:$M$49,11,0) -> 0 | J37: =VLOOKUP('9. Adj Network to Current WS'!$B37, '4. RRR Data'!$B$27:$M$49,12,0) -> 0 | P37: =IF(ISERROR('8. Forecast Wholesale'!$F$113*N37), "", '8. Forecast Wholesale'!$F$113*N37) -> 
B38: =IF('3. Rate Classes'!Q37=1,'3. Rate Classes'!C37, 0) -> 0 | D38: =IF(ISERROR(VLOOKUP($B38, '3. Rate Classes'!$C$24:$H$45,6,0)), "", VLOOKUP($B38, '3. Rate Classes'!$C$24:$H$45,6,0)) ->  | F38: =VLOOKUP($B38, '9. Adj Network to Current WS'!$B$25:$R$47, 17,0) ->  | H38: =VLOOKUP('9. Adj Network to Current WS'!$B38, '4. RRR Data'!$B$27:$M$49,11,0) -> 0 | J38: =VLOOKUP('9. Adj Network to Current WS'!$B38, '4. RRR Data'!$B$27:$M$49,12,0) -> 0 | P38: =IF(ISERROR('8. Forecast Wholesale'!$F$113*N38), "", '8. Forecast Wholesale'!$F$113*N38) -> 
B39: =IF('3. Rate Classes'!Q38=1,'3. Rate Classes'!C38, 0) -> 0 | D39: =IF(ISERROR(VLOOKUP($B39, '3. Rate Classes'!$C$24:$H$45,6,0)), "", VLOOKUP($B39, '3. Rate Classes'!$C$24:$H$45,6,0)) ->  | F39: =VLOOKUP($B39, '9. Adj Network to Current WS'!$B$25:$R$47, 17,0) ->  | H39: =VLOOKUP('9. Adj Network to Current WS'!$B39, '4. RRR Data'!$B$27:$M$49,11,0) -> 0 | J39: =VLOOKUP('9. Adj Network to Current WS'!$B39, '4. RRR Data'!$B$27:$M$49,12,0) -> 0 | P39: =IF(ISERROR('8. Forecast Wholesale'!$F$113*N39), "", '8. Forecast Wholesale'!$F$113*N39) -> 
B40: =IF('3. Rate Classes'!Q39=1,'3. Rate Classes'!C39, 0) -> 0 | D40: =IF(ISERROR(VLOOKUP($B40, '3. Rate Classes'!$C$24:$H$45,6,0)), "", VLOOKUP($B40, '3. Rate Classes'!$C$24:$H$45,6,0)) ->  | F40: =VLOOKUP($B40, '9. Adj Network to Current WS'!$B$25:$R$47, 17,0) ->  | H40: =VLOOKUP('9. Adj Network to Current WS'!$B40, '4. RRR Data'!$B$27:$M$49,11,0) -> 0 | J40: =VLOOKUP('9. Adj Network to Current WS'!$B40, '4. RRR Data'!$B$27:$M$49,12,0) -> 0 | P40: =IF(ISERROR('8. Forecast Wholesale'!$F$113*N40), "", '8. Forecast Wholesale'!$F$113*N40) -> 
B41: =IF('3. Rate Classes'!Q40=1,'3. Rate Classes'!C40, 0) -> 0 | D41: =IF(ISERROR(VLOOKUP($B41, '3. Rate Classes'!$C$24:$H$45,6,0)), "", VLOOKUP($B41, '3. Rate Classes'!$C$24:$H$45,6,0)) ->  | F41: =VLOOKUP($B41, '9. Adj Network to Current WS'!$B$25:$R$47, 17,0) ->  | H41: =VLOOKUP('9. Adj Network to Current WS'!$B41, '4. RRR Data'!$B$27:$M$49,11,0) -> 0 | J41: =VLOOKUP('9. Adj Network to Current WS'!$B41, '4. RRR Data'!$B$27:$M$49,12,0) -> 0 | P41: =IF(ISERROR('8. Forecast Wholesale'!$F$113*N41), "", '8. Forecast Wholesale'!$F$113*N41) -> 
B42: =IF('3. Rate Classes'!Q41=1,'3. Rate Classes'!C41, 0) -> 0 | D42: =IF(ISERROR(VLOOKUP($B42, '3. Rate Classes'!$C$24:$H$45,6,0)), "", VLOOKUP($B42, '3. Rate Classes'!$C$24:$H$45,6,0)) ->  | F42: =VLOOKUP($B42, '9. Adj Network to Current WS'!$B$25:$R$47, 17,0) ->  | H42: =VLOOKUP('9. Adj Network to Current WS'!$B42, '4. RRR Data'!$B$27:$M$49,11,0) -> 0 | J42: =VLOOKUP('9. Adj Network to Current WS'!$B42, '4. RRR Data'!$B$27:$M$49,12,0) -> 0 | P42: =IF(ISERROR('8. Forecast Wholesale'!$F$113*N42), "", '8. Forecast Wholesale'!$F$113*N42) -> 
B43: =IF('3. Rate Classes'!Q42=1,'3. Rate Classes'!C42, 0) -> 0 | D43: =IF(ISERROR(VLOOKUP($B43, '3. Rate Classes'!$C$24:$H$45,6,0)), "", VLOOKUP($B43, '3. Rate Classes'!$C$24:$H$45,6,0)) ->  | F43: =VLOOKUP($B43, '9. Adj Network to Current WS'!$B$25:$R$47, 17,0) ->  | H43: =VLOOKUP('9. Adj Network to Current WS'!$B43, '4. RRR Data'!$B$27:$M$49,11,0) -> 0 | J43: =VLOOKUP('9. Adj Network to Current WS'!$B43, '4. RRR Data'!$B$27:$M$49,12,0) -> 0 | P43: =IF(ISERROR('8. Forecast Wholesale'!$F$113*N43), "", '8. Forecast Wholesale'!$F$113*N43) -> 
B44: =IF('3. Rate Classes'!Q43=1,'3. Rate Classes'!C43, 0) -> 0 | D44: =IF(ISERROR(VLOOKUP($B44, '3. Rate Classes'!$C$24:$H$45,6,0)), "", VLOOKUP($B44, '3. Rate Classes'!$C$24:$H$45,6,0)) ->  | F44: =VLOOKUP($B44, '9. Adj Network to Current WS'!$B$25:$R$47, 17,0) ->  | H44: =VLOOKUP('9. Adj Network to Current WS'!$B44, '4. RRR Data'!$B$27:$M$49,11,0) -> 0 | J44: =VLOOKUP('9. Adj Network to Current WS'!$B44, '4. RRR Data'!$B$27:$M$49,12,0) -> 0 | P44: =IF(ISERROR('8. Forecast Wholesale'!$F$113*N44), "", '8. Forecast Wholesale'!$F$113*N44) -> 
B45: =IF('3. Rate Classes'!Q44=1,'3. Rate Classes'!C44, 0) -> 0 | D45: =IF(ISERROR(VLOOKUP($B45, '3. Rate Classes'!$C$24:$H$45,6,0)), "", VLOOKUP($B45, '3. Rate Classes'!$C$24:$H$45,6,0)) ->  | F45: =VLOOKUP($B45, '9. Adj Network to Current WS'!$B$25:$R$47, 17,0) ->  | H45: =VLOOKUP('9. Adj Network to Current WS'!$B45, '4. RRR Data'!$B$27:$M$49,11,0) -> 0 | J45: =VLOOKUP('9. Adj Network to Current WS'!$B45, '4. RRR Data'!$B$27:$M$49,12,0) -> 0 | P45: =IF(ISERROR('8. Forecast Wholesale'!$F$113*N45), "", '8. Forecast Wholesale'!$F$113*N45) -> 
B46: =IF('3. Rate Classes'!Q45=1,'3. Rate Classes'!C45, 0) -> 0 | D46: =IF(ISERROR(VLOOKUP($B46, '3. Rate Classes'!$C$24:$H$45,6,0)), "", VLOOKUP($B46, '3. Rate Classes'!$C$24:$H$45,6,0)) ->  | F46: =VLOOKUP($B46, '9. Adj Network to Current WS'!$B$25:$R$47, 17,0) ->  | H46: =VLOOKUP('9. Adj Network to Current WS'!$B46, '4. RRR Data'!$B$27:$M$49,11,0) -> 0 | J46: =VLOOKUP('9. Adj Network to Current WS'!$B46, '4. RRR Data'!$B$27:$M$49,12,0) -> 0 | P46: =IF(ISERROR('8. Forecast Wholesale'!$F$113*N46), "", '8. Forecast Wholesale'!$F$113*N46) -> 
L49: =SUM(L25:L46) -> 62222616.42

Sheet 12. Adj Conn. to Forecast WS
B13: The purpose of this sheet is to update the re-aligned RTS Connection Rates to recover forecast wholesale connection costs.
B19: Rate Class
B22: Rate Class | D22: Unit | F22: Adjusted RTSR-Connection | H22: Loss Adjusted Billed kWh | J22: Loss Adjusted Billed kW | L22: Billed Amount | N22: Billed Amount % | P22: Forecast Wholesale Billing | R22: Proposed RTSR Connection
B25: =IF('3. Rate Classes'!Q24=1,'3. Rate Classes'!C24, 0) -> Residential | D25: =IF(ISERROR(VLOOKUP($B25, '3. Rate Classes'!$C$24:$H$45,6,0)), "", VLOOKUP($B25, '3. Rate Classes'!$C$24:$H$45,6,0)) -> kWh | F25: =VLOOKUP($B25, '10. Adj Conn. to Current WS'!$B$25:$R$47, 17,0) -> 0.003171205472 | H25: =VLOOKUP('9. Adj Network to Current WS'!$B25, '4. RRR Data'!$B$27:$M$49,11,0) -> 2867980543 | J25: =VLOOKUP('9. Adj Network to Current WS'!$B25, '4. RRR Data'!$B$27:$M$49,12,0) -> 0 | L25: =IF(F25="", "", IF(D25="kWh", F25*H25, F25*J25)) -> 9094955.591 | N25: =IF(ISERROR(L25/$L$49), "", L25/$L$49) -> 0.3508577791 | P25: =IF(ISERROR('8. Forecast Wholesale'!$P$117*N25), "", '8. Forecast Wholesale'!$P$117*N25) -> 9628321.415 | R25: =IF(D25="","",IF(D25="kWh",IF(H25<>0,P25/H25,),IF(J25<>0,P25/J25,0))) -> 0.003357178081
B26: =IF('3. Rate Classes'!Q25=1,'3. Rate Classes'!C25, 0) -> General Service Less Than 50 kW | D26: =IF(ISERROR(VLOOKUP($B26, '3. Rate Classes'!$C$24:$H$45,6,0)), "", VLOOKUP($B26, '3. Rate Classes'!$C$24:$H$45,6,0)) -> kWh | F26: =VLOOKUP($B26, '10. Adj Conn. to Current WS'!$B$25:$R$47, 17,0) -> 0.002774804788 | H26: =VLOOKUP('9. Adj Network to Current WS'!$B26, '4. RRR Data'!$B$27:$M$49,11,0) -> 1054180707 | J26: =VLOOKUP('9. Adj Network to Current WS'!$B26, '4. RRR Data'!$B$27:$M$49,12,0) -> 0 | L26: 2925145.672 | N26: 0.112843884 | P26: =IF(ISERROR('8. Forecast Wholesale'!$P$117*N26), "", '8. Forecast Wholesale'!$P$117*N26) -> 3096688.316 | R26: 0.002937530821
B27: =IF('3. Rate Classes'!Q26=1,'3. Rate Classes'!C26, 0) -> General Service 50 to 4,999 kW | D27: =IF(ISERROR(VLOOKUP($B27, '3. Rate Classes'!$C$24:$H$45,6,0)), "", VLOOKUP($B27, '3. Rate Classes'!$C$24:$H$45,6,0)) -> kW | F27: =VLOOKUP($B27, '10. Adj Conn. to Current WS'!$B$25:$R$47, 17,0) -> 1.080489164 | H27: =VLOOKUP('9. Adj Network to Current WS'!$B27, '4. RRR Data'!$B$27:$M$49,11,0) -> 0 | J27: =VLOOKUP('9. Adj Network to Current WS'!$B27, '4. RRR Data'!$B$27:$M$49,12,0) -> 6730682.85 | L27: 7272429.888 | N27: 0.280549869 | P27: =IF(ISERROR('8. Forecast Wholesale'!$P$117*N27), "", '8. Forecast Wholesale'!$P$117*N27) -> 7698915.265 | R27: 1.143853519
B28: =IF('3. Rate Classes'!Q27=1,'3. Rate Classes'!C27, 0) -> General Service 50 to 4,999 kW – Interval Metered | D28: =IF(ISERROR(VLOOKUP($B28, '3. Rate Classes'!$C$24:$H$45,6,0)), "", VLOOKUP($B28, '3. Rate Classes'!$C$24:$H$45,6,0)) -> kW | F28: =VLOOKUP($B28, '10. Adj Conn. to Current WS'!$B$25:$R$47, 17,0) -> 1.169084717 | H28: =VLOOKUP('9. Adj Network to Current WS'!$B28, '4. RRR Data'!$B$27:$M$49,11,0) -> 0 | J28: =VLOOKUP('9. Adj Network to Current WS'!$B28, '4. RRR Data'!$B$27:$M$49,12,0) -> 5358368.3 | L28: 6264386.489 | N28: 0.2416623928 | P28: =IF(ISERROR('8. Forecast Wholesale'!$P$117*N28), "", '8. Forecast Wholesale'!$P$117*N28) -> 6631756.03 | R28: 1.237644682
B29: =IF('3. Rate Classes'!Q28=1,'3. Rate Classes'!C28, 0) -> Large Use | D29: =IF(ISERROR(VLOOKUP($B29, '3. Rate Classes'!$C$24:$H$45,6,0)), "", VLOOKUP($B29, '3. Rate Classes'!$C$24:$H$45,6,0)) -> kW | F29: =VLOOKUP($B29, '10. Adj Conn. to Current WS'!$B$25:$R$47, 17,0) -> 1.108237212 | H29: =VLOOKUP('9. Adj Network to Current WS'!$B29, '4. RRR Data'!$B$27:$M$49,11,0) -> 0 | J29: =VLOOKUP('9. Adj Network to Current WS'!$B29, '4. RRR Data'!$B$27:$M$49,12,0) -> 159258.46 | L29: 176496.1517 | N29: 0.006808724594 | P29: =IF(ISERROR('8. Forecast Wholesale'!$P$117*N29), "", '8. Forecast Wholesale'!$P$117*N29) -> 186846.6163 | R29: 1.173228827
B30: =IF('3. Rate Classes'!Q29=1,'3. Rate Classes'!C29, 0) -> Unmetered Scattered Load | D30: =IF(ISERROR(VLOOKUP($B30, '3. Rate Classes'!$C$24:$H$45,6,0)), "", VLOOKUP($B30, '3. Rate Classes'!$C$24:$H$45,6,0)) -> kWh | F30: =VLOOKUP($B30, '10. Adj Conn. to Current WS'!$B$25:$R$47, 17,0) -> 0.003072105301 | H30: =VLOOKUP('9. Adj Network to Current WS'!$B30, '4. RRR Data'!$B$27:$M$49,11,0) -> 13418413.85 | J30: =VLOOKUP('9. Adj Network to Current WS'!$B30, '4. RRR Data'!$B$27:$M$49,12,0) -> 0 | L30: 41222.7803 | N30: 0.001590258798 | P30: =IF(ISERROR('8. Forecast Wholesale'!$P$117*N30), "", '8. Forecast Wholesale'!$P$117*N30) -> 43640.25469 | R30: 0.003252266266
B31: =IF('3. Rate Classes'!Q30=1,'3. Rate Classes'!C30, 0) -> Sentinel Lighting | D31: =IF(ISERROR(VLOOKUP($B31, '3. Rate Classes'!$C$24:$H$45,6,0)), "", VLOOKUP($B31, '3. Rate Classes'!$C$24:$H$45,6,0)) -> kW | F31: =VLOOKUP($B31, '10. Adj Conn. to Current WS'!$B$25:$R$47, 17,0) -> 0.7951797721 | H31: =VLOOKUP('9. Adj Network to Current WS'!$B31, '4. RRR Data'!$B$27:$M$49,11,0) -> 0 | J31: =VLOOKUP('9. Adj Network to Current WS'!$B31, '4. RRR Data'!$B$27:$M$49,12,0) -> 1072.67 | L31: 852.9654861 | N31: 3.290500686e-05 | P31: =IF(ISERROR('8. Forecast Wholesale'!$P$117*N31), "", '8. Forecast Wholesale'!$P$117*N31) -> 902.9869112 | R31: 0.8418124038
B32: =IF('3. Rate Classes'!Q31=1,'3. Rate Classes'!C31, 0) -> Street Lighting | D32: =IF(ISERROR(VLOOKUP($B32, '3. Rate Classes'!$C$24:$H$45,6,0)), "", VLOOKUP($B32, '3. Rate Classes'!$C$24:$H$45,6,0)) -> kW | F32: =VLOOKUP($B32, '10. Adj Conn. to Current WS'!$B$25:$R$47, 17,0) -> 0.8756491109 | H32: =VLOOKUP('9. Adj Network to Current WS'!$B32, '4. RRR Data'!$B$27:$M$49,11,0) -> 0 | J32: =VLOOKUP('9. Adj Network to Current WS'!$B32, '4. RRR Data'!$B$27:$M$49,12,0) -> 167382.29 | L32: 146568.1534 | N32: 0.005654186684 | P32: =IF(ISERROR('8. Forecast Wholesale'!$P$117*N32), "", '8. Forecast Wholesale'!$P$117*N32) -> 155163.5163 | R32: 0.9270007976
B33: =IF('3. Rate Classes'!Q32=1,'3. Rate Classes'!C32, 0) -> 0 | D33: =IF(ISERROR(VLOOKUP($B33, '3. Rate Classes'!$C$24:$H$45,6,0)), "", VLOOKUP($B33, '3. Rate Classes'!$C$24:$H$45,6,0)) ->  | F33: =VLOOKUP($B33, '10. Adj Conn. to Current WS'!$B$25:$R$47, 17,0) ->  | H33: =VLOOKUP('9. Adj Network to Current WS'!$B33, '4. RRR Data'!$B$27:$M$49,11,0) -> 0 | J33: =VLOOKUP('9. Adj Network to Current WS'!$B33, '4. RRR Data'!$B$27:$M$49,12,0) -> 0 | P33: =IF(ISERROR('8. Forecast Wholesale'!$P$117*N33), "", '8. Forecast Wholesale'!$P$117*N33) -> 
B34: =IF('3. Rate Classes'!Q33=1,'3. Rate Classes'!C33, 0) -> 0 | D34: =IF(ISERROR(VLOOKUP($B34, '3. Rate Classes'!$C$24:$H$45,6,0)), "", VLOOKUP($B34, '3. Rate Classes'!$C$24:$H$45,6,0)) ->  | F34: =VLOOKUP($B34, '10. Adj Conn. to Current WS'!$B$25:$R$47, 17,0) ->  | H34: =VLOOKUP('9. Adj Network to Current WS'!$B34, '4. RRR Data'!$B$27:$M$49,11,0) -> 0 | J34: =VLOOKUP('9. Adj Network to Current WS'!$B34, '4. RRR Data'!$B$27:$M$49,12,0) -> 0 | P34: =IF(ISERROR('8. Forecast Wholesale'!$P$117*N34), "", '8. Forecast Wholesale'!$P$117*N34) -> 
B35: =IF('3. Rate Classes'!Q34=1,'3. Rate Classes'!C34, 0) -> 0 | D35: =IF(ISERROR(VLOOKUP($B35, '3. Rate Classes'!$C$24:$H$45,6,0)), "", VLOOKUP($B35, '3. Rate Classes'!$C$24:$H$45,6,0)) ->  | F35: =VLOOKUP($B35, '10. Adj Conn. to Current WS'!$B$25:$R$47, 17,0) ->  | H35: =VLOOKUP('9. Adj Network to Current WS'!$B35, '4. RRR Data'!$B$27:$M$49,11,0) -> 0 | J35: =VLOOKUP('9. Adj Network to Current WS'!$B35, '4. RRR Data'!$B$27:$M$49,12,0) -> 0 | P35: =IF(ISERROR('8. Forecast Wholesale'!$P$117*N35), "", '8. Forecast Wholesale'!$P$117*N35) -> 
B36: =IF('3. Rate Classes'!Q35=1,'3. Rate Classes'!C35, 0) -> 0 | D36: =IF(ISERROR(VLOOKUP($B36, '3. Rate Classes'!$C$24:$H$45,6,0)), "", VLOOKUP($B36, '3. Rate Classes'!$C$24:$H$45,6,0)) ->  | F36: =VLOOKUP($B36, '10. Adj Conn. to Current WS'!$B$25:$R$47, 17,0) ->  | H36: =VLOOKUP('9. Adj Network to Current WS'!$B36, '4. RRR Data'!$B$27:$M$49,11,0) -> 0 | J36: =VLOOKUP('9. Adj Network to Current WS'!$B36, '4. RRR Data'!$B$27:$M$49,12,0) -> 0 | P36: =IF(ISERROR('8. Forecast Wholesale'!$P$117*N36), "", '8. Forecast Wholesale'!$P$117*N36) -> 
B37: =IF('3. Rate Classes'!Q36=1,'3. Rate Classes'!C36, 0) -> 0 | D37: =IF(ISERROR(VLOOKUP($B37, '3. Rate Classes'!$C$24:$H$45,6,0)), "", VLOOKUP($B37, '3. Rate Classes'!$C$24:$H$45,6,0)) ->  | F37: =VLOOKUP($B37, '10. Adj Conn. to Current WS'!$B$25:$R$47, 17,0) ->  | H37: =VLOOKUP('9. Adj Network to Current WS'!$B37, '4. RRR Data'!$B$27:$M$49,11,0) -> 0 | J37: =VLOOKUP('9. Adj Network to Current WS'!$B37, '4. RRR Data'!$B$27:$M$49,12,0) -> 0 | P37: =IF(ISERROR('8. Forecast Wholesale'!$P$117*N37), "", '8. Forecast Wholesale'!$P$117*N37) -> 
B38: =IF('3. Rate Classes'!Q37=1,'3. Rate Classes'!C37, 0) -> 0 | D38: =IF(ISERROR(VLOOKUP($B38, '3. Rate Classes'!$C$24:$H$45,6,0)), "", VLOOKUP($B38, '3. Rate Classes'!$C$24:$H$45,6,0)) ->  | F38: =VLOOKUP($B38, '10. Adj Conn. to Current WS'!$B$25:$R$47, 17,0) ->  | H38: =VLOOKUP('9. Adj Network to Current WS'!$B38, '4. RRR Data'!$B$27:$M$49,11,0) -> 0 | J38: =VLOOKUP('9. Adj Network to Current WS'!$B38, '4. RRR Data'!$B$27:$M$49,12,0) -> 0 | P38: =IF(ISERROR('8. Forecast Wholesale'!$P$117*N38), "", '8. Forecast Wholesale'!$P$117*N38) -> 
B39: =IF('3. Rate Classes'!Q38=1,'3. Rate Classes'!C38, 0) -> 0 | D39: =IF(ISERROR(VLOOKUP($B39, '3. Rate Classes'!$C$24:$H$45,6,0)), "", VLOOKUP($B39, '3. Rate Classes'!$C$24:$H$45,6,0)) ->  | F39: =VLOOKUP($B39, '10. Adj Conn. to Current WS'!$B$25:$R$47, 17,0) ->  | H39: =VLOOKUP('9. Adj Network to Current WS'!$B39, '4. RRR Data'!$B$27:$M$49,11,0) -> 0 | J39: =VLOOKUP('9. Adj Network to Current WS'!$B39, '4. RRR Data'!$B$27:$M$49,12,0) -> 0 | P39: =IF(ISERROR('8. Forecast Wholesale'!$P$117*N39), "", '8. Forecast Wholesale'!$P$117*N39) -> 
B40: =IF('3. Rate Classes'!Q39=1,'3. Rate Classes'!C39, 0) -> 0 | D40: =IF(ISERROR(VLOOKUP($B40, '3. Rate Classes'!$C$24:$H$45,6,0)), "", VLOOKUP($B40, '3. Rate Classes'!$C$24:$H$45,6,0)) ->  | F40: =VLOOKUP($B40, '10. Adj Conn. to Current WS'!$B$25:$R$47, 17,0) ->  | H40: =VLOOKUP('9. Adj Network to Current WS'!$B40, '4. RRR Data'!$B$27:$M$49,11,0) -> 0 | J40: =VLOOKUP('9. Adj Network to Current WS'!$B40, '4. RRR Data'!$B$27:$M$49,12,0) -> 0 | P40: =IF(ISERROR('8. Forecast Wholesale'!$P$117*N40), "", '8. Forecast Wholesale'!$P$117*N40) -> 
B41: =IF('3. Rate Classes'!Q40=1,'3. Rate Classes'!C40, 0) -> 0 | D41: =IF(ISERROR(VLOOKUP($B41, '3. Rate Classes'!$C$24:$H$45,6,0)), "", VLOOKUP($B41, '3. Rate Classes'!$C$24:$H$45,6,0)) ->  | F41: =VLOOKUP($B41, '10. Adj Conn. to Current WS'!$B$25:$R$47, 17,0) ->  | H41: =VLOOKUP('9. Adj Network to Current WS'!$B41, '4. RRR Data'!$B$27:$M$49,11,0) -> 0 | J41: =VLOOKUP('9. Adj Network to Current WS'!$B41, '4. RRR Data'!$B$27:$M$49,12,0) -> 0 | P41: =IF(ISERROR('8. Forecast Wholesale'!$P$117*N41), "", '8. Forecast Wholesale'!$P$117*N41) -> 
B42: =IF('3. Rate Classes'!Q41=1,'3. Rate Classes'!C41, 0) -> 0 | D42: =IF(ISERROR(VLOOKUP($B42, '3. Rate Classes'!$C$24:$H$45,6,0)), "", VLOOKUP($B42, '3. Rate Classes'!$C$24:$H$45,6,0)) ->  | F42: =VLOOKUP($B42, '10. Adj Conn. to Current WS'!$B$25:$R$47, 17,0) ->  | H42: =VLOOKUP('9. Adj Network to Current WS'!$B42, '4. RRR Data'!$B$27:$M$49,11,0) -> 0 | J42: =VLOOKUP('9. Adj Network to Current WS'!$B42, '4. RRR Data'!$B$27:$M$49,12,0) -> 0 | P42: =IF(ISERROR('8. Forecast Wholesale'!$P$117*N42), "", '8. Forecast Wholesale'!$P$117*N42) -> 
B43: =IF('3. Rate Classes'!Q42=1,'3. Rate Classes'!C42, 0) -> 0 | D43: =IF(ISERROR(VLOOKUP($B43, '3. Rate Classes'!$C$24:$H$45,6,0)), "", VLOOKUP($B43, '3. Rate Classes'!$C$24:$H$45,6,0)) ->  | F43: =VLOOKUP($B43, '10. Adj Conn. to Current WS'!$B$25:$R$47, 17,0) ->  | H43: =VLOOKUP('9. Adj Network to Current WS'!$B43, '4. RRR Data'!$B$27:$M$49,11,0) -> 0 | J43: =VLOOKUP('9. Adj Network to Current WS'!$B43, '4. RRR Data'!$B$27:$M$49,12,0) -> 0 | P43: =IF(ISERROR('8. Forecast Wholesale'!$P$117*N43), "", '8. Forecast Wholesale'!$P$117*N43) -> 
B44: =IF('3. Rate Classes'!Q43=1,'3. Rate Classes'!C43, 0) -> 0 | D44: =IF(ISERROR(VLOOKUP($B44, '3. Rate Classes'!$C$24:$H$45,6,0)), "", VLOOKUP($B44, '3. Rate Classes'!$C$24:$H$45,6,0)) ->  | F44: =VLOOKUP($B44, '10. Adj Conn. to Current WS'!$B$25:$R$47, 17,0) ->  | H44: =VLOOKUP('9. Adj Network to Current WS'!$B44, '4. RRR Data'!$B$27:$M$49,11,0) -> 0 | J44: =VLOOKUP('9. Adj Network to Current WS'!$B44, '4. RRR Data'!$B$27:$M$49,12,0) -> 0 | P44: =IF(ISERROR('8. Forecast Wholesale'!$P$117*N44), "", '8. Forecast Wholesale'!$P$117*N44) -> 
B45: =IF('3. Rate Classes'!Q44=1,'3. Rate Classes'!C44, 0) -> 0 | D45: =IF(ISERROR(VLOOKUP($B45, '3. Rate Classes'!$C$24:$H$45,6,0)), "", VLOOKUP($B45, '3. Rate Classes'!$C$24:$H$45,6,0)) ->  | F45: =VLOOKUP($B45, '10. Adj Conn. to Current WS'!$B$25:$R$47, 17,0) ->  | H45: =VLOOKUP('9. Adj Network to Current WS'!$B45, '4. RRR Data'!$B$27:$M$49,11,0) -> 0 | J45: =VLOOKUP('9. Adj Network to Current WS'!$B45, '4. RRR Data'!$B$27:$M$49,12,0) -> 0 | P45: =IF(ISERROR('8. Forecast Wholesale'!$P$117*N45), "", '8. Forecast Wholesale'!$P$117*N45) -> 
B46: =IF('3. Rate Classes'!Q45=1,'3. Rate Classes'!C45, 0) -> 0 | D46: =IF(ISERROR(VLOOKUP($B46, '3. Rate Classes'!$C$24:$H$45,6,0)), "", VLOOKUP($B46, '3. Rate Classes'!$C$24:$H$45,6,0)) ->  | F46: =VLOOKUP($B46, '10. Adj Conn. to Current WS'!$B$25:$R$47, 17,0) ->  | H46: =VLOOKUP('9. Adj Network to Current WS'!$B46, '4. RRR Data'!$B$27:$M$49,11,0) -> 0 | J46: =VLOOKUP('9. Adj Network to Current WS'!$B46, '4. RRR Data'!$B$27:$M$49,12,0) -> 0 | P46: =IF(ISERROR('8. Forecast Wholesale'!$P$117*N46), "", '8. Forecast Wholesale'!$P$117*N46) -> 
L49: =SUM(L25:L46) -> 25922057.69

Sheet 13. Final 2014 RTS Rates
B13: For Cost of Service Applicants, please enter the following Proposed RTS rates into your rates model. For IRM applicants, please enter these rates into the 2013 IRM Rate Generator, Sheet 11 "Proposed Rates", column I. Please note that the rate descriptions for the RTSRs are transfered automatically from Sheet 4 to Sheet 11, Column A.
B23: Rate Class | D23: Unit | F23: Proposed RTSR Network | H23: Proposed RTSR Connection
B26: =IF('3. Rate Classes'!Q24=1,'3. Rate Classes'!C24, 0) -> Residential | D26: =IF(ISERROR(VLOOKUP($B26, '3. Rate Classes'!$C$24:$H$45,6,0)), "", VLOOKUP($B26, '3. Rate Classes'!$C$24:$H$45,6,0)) -> kWh | F26: =VLOOKUP($B26, '11. Adj Network to Forecast WS'!$B$25:$R$48,17,0) -> 0.007683643663 | H26: =VLOOKUP($B26, '12. Adj Conn. to Forecast WS'!$B$25:$R$48,17,0) -> 0.003357178081
B27: =IF('3. Rate Classes'!Q25=1,'3. Rate Classes'!C25, 0) -> General Service Less Than 50 kW | D27: =IF(ISERROR(VLOOKUP($B27, '3. Rate Classes'!$C$24:$H$45,6,0)), "", VLOOKUP($B27, '3. Rate Classes'!$C$24:$H$45,6,0)) -> kWh | F27: =VLOOKUP($B27, '11. Adj Network to Forecast WS'!$B$25:$R$48,17,0) -> 0.006956812505 | H27: =VLOOKUP($B27, '12. Adj Conn. to Forecast WS'!$B$25:$R$48,17,0) -> 0.002937530821
B28: =IF('3. Rate Classes'!Q26=1,'3. Rate Classes'!C26, 0) -> General Service 50 to 4,999 kW | D28: =IF(ISERROR(VLOOKUP($B28, '3. Rate Classes'!$C$24:$H$45,6,0)), "", VLOOKUP($B28, '3. Rate Classes'!$C$24:$H$45,6,0)) -> kW | F28: =VLOOKUP($B28, '11. Adj Network to Forecast WS'!$B$25:$R$48,17,0) -> 2.819170393 | H28: =VLOOKUP($B28, '12. Adj Conn. to Forecast WS'!$B$25:$R$48,17,0) -> 1.143853519
B29: =IF('3. Rate Classes'!Q27=1,'3. Rate Classes'!C27, 0) -> General Service 50 to 4,999 kW – Interval Metered | D29: =IF(ISERROR(VLOOKUP($B29, '3. Rate Classes'!$C$24:$H$45,6,0)), "", VLOOKUP($B29, '3. Rate Classes'!$C$24:$H$45,6,0)) -> kW | F29: =VLOOKUP($B29, '11. Adj Network to Forecast WS'!$B$25:$R$48,17,0) -> 2.955295485 | H29: =VLOOKUP($B29, '12. Adj Conn. to Forecast WS'!$B$25:$R$48,17,0) -> 1.237644682
B30: =IF('3. Rate Classes'!Q28=1,'3. Rate Classes'!C28, 0) -> Large Use | D30: =IF(ISERROR(VLOOKUP($B30, '3. Rate Classes'!$C$24:$H$45,6,0)), "", VLOOKUP($B30, '3. Rate Classes'!$C$24:$H$45,6,0)) -> kW | F30: =VLOOKUP($B30, '11. Adj Network to Forecast WS'!$B$25:$R$48,17,0) -> 3.345084652 | H30: =VLOOKUP($B30, '12. Adj Conn. to Forecast WS'!$B$25:$R$48,17,0) -> 1.173228827
B31: =IF('3. Rate Classes'!Q29=1,'3. Rate Classes'!C29, 0) -> Unmetered Scattered Load | D31: =IF(ISERROR(VLOOKUP($B31, '3. Rate Classes'!$C$24:$H$45,6,0)), "", VLOOKUP($B31, '3. Rate Classes'!$C$24:$H$45,6,0)) -> kWh | F31: =VLOOKUP($B31, '11. Adj Network to Forecast WS'!$B$25:$R$48,17,0) -> 0.006956812505 | H31: =VLOOKUP($B31, '12. Adj Conn. to Forecast WS'!$B$25:$R$48,17,0) -> 0.003252266266
B32: =IF('3. Rate Classes'!Q30=1,'3. Rate Classes'!C30, 0) -> Sentinel Lighting | D32: =IF(ISERROR(VLOOKUP($B32, '3. Rate Classes'!$C$24:$H$45,6,0)), "", VLOOKUP($B32, '3. Rate Classes'!$C$24:$H$45,6,0)) -> kW | F32: =VLOOKUP($B32, '11. Adj Network to Forecast WS'!$B$25:$R$48,17,0) -> 2.178832143 | H32: =VLOOKUP($B32, '12. Adj Conn. to Forecast WS'!$B$25:$R$48,17,0) -> 0.8418124038
B33: =IF('3. Rate Classes'!Q31=1,'3. Rate Classes'!C31, 0) -> Street Lighting | D33: =IF(ISERROR(VLOOKUP($B33, '3. Rate Classes'!$C$24:$H$45,6,0)), "", VLOOKUP($B33, '3. Rate Classes'!$C$24:$H$45,6,0)) -> kW | F33: =VLOOKUP($B33, '11. Adj Network to Forecast WS'!$B$25:$R$48,17,0) -> 2.144151914 | H33: =VLOOKUP($B33, '12. Adj Conn. to Forecast WS'!$B$25:$R$48,17,0) -> 0.9270007976
B34: =IF('3. Rate Classes'!Q32=1,'3. Rate Classes'!C32, 0) -> 0 | D34: =IF(ISERROR(VLOOKUP($B34, '3. Rate Classes'!$C$24:$H$45,6,0)), "", VLOOKUP($B34, '3. Rate Classes'!$C$24:$H$45,6,0)) ->  | F34: =VLOOKUP($B34, '11. Adj Network to Forecast WS'!$B$25:$R$48,17,0) ->  | H34: =VLOOKUP($B34, '12. Adj Conn. to Forecast WS'!$B$25:$R$48,17,0) -> 
B35: =IF('3. Rate Classes'!Q33=1,'3. Rate Classes'!C33, 0) -> 0 | D35: =IF(ISERROR(VLOOKUP($B35, '3. Rate Classes'!$C$24:$H$45,6,0)), "", VLOOKUP($B35, '3. Rate Classes'!$C$24:$H$45,6,0)) ->  | F35: =VLOOKUP($B35, '11. Adj Network to Forecast WS'!$B$25:$R$48,17,0) ->  | H35: =VLOOKUP($B35, '12. Adj Conn. to Forecast WS'!$B$25:$R$48,17,0) -> 
B36: =IF('3. Rate Classes'!Q34=1,'3. Rate Classes'!C34, 0) -> 0 | D36: =IF(ISERROR(VLOOKUP($B36, '3. Rate Classes'!$C$24:$H$45,6,0)), "", VLOOKUP($B36, '3. Rate Classes'!$C$24:$H$45,6,0)) ->  | F36: =VLOOKUP($B36, '11. Adj Network to Forecast WS'!$B$25:$R$48,17,0) ->  | H36: =VLOOKUP($B36, '12. Adj Conn. to Forecast WS'!$B$25:$R$48,17,0) -> 
B37: =IF('3. Rate Classes'!Q35=1,'3. Rate Classes'!C35, 0) -> 0 | D37: =IF(ISERROR(VLOOKUP($B37, '3. Rate Classes'!$C$24:$H$45,6,0)), "", VLOOKUP($B37, '3. Rate Classes'!$C$24:$H$45,6,0)) ->  | F37: =VLOOKUP($B37, '11. Adj Network to Forecast WS'!$B$25:$R$48,17,0) ->  | H37: =VLOOKUP($B37, '12. Adj Conn. to Forecast WS'!$B$25:$R$48,17,0) -> 
B38: =IF('3. Rate Classes'!Q36=1,'3. Rate Classes'!C36, 0) -> 0 | D38: =IF(ISERROR(VLOOKUP($B38, '3. Rate Classes'!$C$24:$H$45,6,0)), "", VLOOKUP($B38, '3. Rate Classes'!$C$24:$H$45,6,0)) ->  | F38: =VLOOKUP($B38, '11. Adj Network to Forecast WS'!$B$25:$R$48,17,0) ->  | H38: =VLOOKUP($B38, '12. Adj Conn. to Forecast WS'!$B$25:$R$48,17,0) -> 
B39: =IF('3. Rate Classes'!Q37=1,'3. Rate Classes'!C37, 0) -> 0 | D39: =IF(ISERROR(VLOOKUP($B39, '3. Rate Classes'!$C$24:$H$45,6,0)), "", VLOOKUP($B39, '3. Rate Classes'!$C$24:$H$45,6,0)) ->  | F39: =VLOOKUP($B39, '11. Adj Network to Forecast WS'!$B$25:$R$48,17,0) ->  | H39: =VLOOKUP($B39, '12. Adj Conn. to Forecast WS'!$B$25:$R$48,17,0) -> 
B40: =IF('3. Rate Classes'!Q38=1,'3. Rate Classes'!C38, 0) -> 0 | D40: =IF(ISERROR(VLOOKUP($B40, '3. Rate Classes'!$C$24:$H$45,6,0)), "", VLOOKUP($B40, '3. Rate Classes'!$C$24:$H$45,6,0)) ->  | F40: =VLOOKUP($B40, '11. Adj Network to Forecast WS'!$B$25:$R$48,17,0) ->  | H40: =VLOOKUP($B40, '12. Adj Conn. to Forecast WS'!$B$25:$R$48,17,0) -> 
B41: =IF('3. Rate Classes'!Q39=1,'3. Rate Classes'!C39, 0) -> 0 | D41: =IF(ISERROR(VLOOKUP($B41, '3. Rate Classes'!$C$24:$H$45,6,0)), "", VLOOKUP($B41, '3. Rate Classes'!$C$24:$H$45,6,0)) ->  | F41: =VLOOKUP($B41, '11. Adj Network to Forecast WS'!$B$25:$R$48,17,0) ->  | H41: =VLOOKUP($B41, '12. Adj Conn. to Forecast WS'!$B$25:$R$48,17,0) -> 
B42: =IF('3. Rate Classes'!Q40=1,'3. Rate Classes'!C40, 0) -> 0 | D42: =IF(ISERROR(VLOOKUP($B42, '3. Rate Classes'!$C$24:$H$45,6,0)), "", VLOOKUP($B42, '3. Rate Classes'!$C$24:$H$45,6,0)) ->  | F42: =VLOOKUP($B42, '11. Adj Network to Forecast WS'!$B$25:$R$48,17,0) ->  | H42: =VLOOKUP($B42, '12. Adj Conn. to Forecast WS'!$B$25:$R$48,17,0) -> 
B43: =IF('3. Rate Classes'!Q41=1,'3. Rate Classes'!C41, 0) -> 0 | D43: =IF(ISERROR(VLOOKUP($B43, '3. Rate Classes'!$C$24:$H$45,6,0)), "", VLOOKUP($B43, '3. Rate Classes'!$C$24:$H$45,6,0)) ->  | F43: =VLOOKUP($B43, '11. Adj Network to Forecast WS'!$B$25:$R$48,17,0) ->  | H43: =VLOOKUP($B43, '12. Adj Conn. to Forecast WS'!$B$25:$R$48,17,0) -> 
B44: =IF('3. Rate Classes'!Q42=1,'3. Rate Classes'!C42, 0) -> 0 | D44: =IF(ISERROR(VLOOKUP($B44, '3. Rate Classes'!$C$24:$H$45,6,0)), "", VLOOKUP($B44, '3. Rate Classes'!$C$24:$H$45,6,0)) ->  | F44: =VLOOKUP($B44, '11. Adj Network to Forecast WS'!$B$25:$R$48,17,0) ->  | H44: =VLOOKUP($B44, '12. Adj Conn. to Forecast WS'!$B$25:$R$48,17,0) -> 
B45: =IF('3. Rate Classes'!Q43=1,'3. Rate Classes'!C43, 0) -> 0 | D45: =IF(ISERROR(VLOOKUP($B45, '3. Rate Classes'!$C$24:$H$45,6,0)), "", VLOOKUP($B45, '3. Rate Classes'!$C$24:$H$45,6,0)) ->  | F45: =VLOOKUP($B45, '11. Adj Network to Forecast WS'!$B$25:$R$48,17,0) ->  | H45: =VLOOKUP($B45, '12. Adj Conn. to Forecast WS'!$B$25:$R$48,17,0) -> 
B46: =IF('3. Rate Classes'!Q44=1,'3. Rate Classes'!C44, 0) -> 0 | D46: =IF(ISERROR(VLOOKUP($B46, '3. Rate Classes'!$C$24:$H$45,6,0)), "", VLOOKUP($B46, '3. Rate Classes'!$C$24:$H$45,6,0)) ->  | F46: =VLOOKUP($B46, '11. Adj Network to Forecast WS'!$B$25:$R$48,17,0) ->  | H46: =VLOOKUP($B46, '12. Adj Conn. to Forecast WS'!$B$25:$R$48,17,0) -> 
B47: =IF('3. Rate Classes'!Q45=1,'3. Rate Classes'!C45, 0) -> 0 | D47: =IF(ISERROR(VLOOKUP($B47, '3. Rate Classes'!$C$24:$H$45,6,0)), "", VLOOKUP($B47, '3. Rate Classes'!$C$24:$H$45,6,0)) ->  | F47: =VLOOKUP($B47, '11. Adj Network to Forecast WS'!$B$25:$R$48,17,0) ->  | H47: =VLOOKUP($B47, '12. Adj Conn. to Forecast WS'!$B$25:$R$48,17,0) -> 

Sheet hidden1 (hidden)
A1: =IF('3. Rate Classes'!Q24=1, '3. Rate Classes'!C24, "") -> Residential | B1: 1
A2: =IF('3. Rate Classes'!Q25=1, '3. Rate Classes'!C25, "") -> General Service Less Than 50 kW | B2: 2
A3: =IF('3. Rate Classes'!Q26=1, '3. Rate Classes'!C26, "") -> General Service 50 to 4,999 kW | B3: 3
A4: =IF('3. Rate Classes'!Q27=1, '3. Rate Classes'!C27, "") -> General Service 50 to 4,999 kW – Interval Metered | B4: 4
A5: =IF('3. Rate Classes'!Q28=1, '3. Rate Classes'!C28, "") -> Large Use | B5: 5
A6: =IF('3. Rate Classes'!Q29=1, '3. Rate Classes'!C29, "") -> Unmetered Scattered Load | B6: 6
A7: =IF('3. Rate Classes'!Q30=1, '3. Rate Classes'!C30, "") -> Sentinel Lighting | B7: 7
A8: =IF('3. Rate Classes'!Q31=1, '3. Rate Classes'!C31, "") -> Street Lighting | B8: 8
A9: =IF('3. Rate Classes'!Q32=1, '3. Rate Classes'!C32, "") ->  | B9: 9
A10: =IF('3. Rate Classes'!Q33=1, '3. Rate Classes'!C33, "") ->  | B10: 10
A11: =IF('3. Rate Classes'!Q34=1, '3. Rate Classes'!C34, "") ->  | B11: 11
A12: =IF('3. Rate Classes'!Q35=1, '3. Rate Classes'!C35, "") ->  | B12: 12
A13: =IF('3. Rate Classes'!Q36=1, '3. Rate Classes'!C36, "") ->  | B13: 13
A14: =IF('3. Rate Classes'!Q37=1, '3. Rate Classes'!C37, "") ->  | B14: 14
A15: =IF('3. Rate Classes'!Q38=1, '3. Rate Classes'!C38, "") ->  | B15: 15
A16: =IF('3. Rate Classes'!Q39=1, '3. Rate Classes'!C39, "") ->  | B16: 16
A17: =IF('3. Rate Classes'!Q40=1, '3. Rate Classes'!C40, "") ->  | B17: 17
A18: =IF('3. Rate Classes'!Q41=1, '3. Rate Classes'!C41, "") ->  | B18: 18
A19: =IF('3. Rate Classes'!Q42=1, '3. Rate Classes'!C42, "") ->  | B19: 19
A20: =IF('3. Rate Classes'!Q43=1, '3. Rate Classes'!C43, "") ->  | B20: 20
A21: =IF('3. Rate Classes'!Q44=1, '3. Rate Classes'!C44, "") ->  | B21: 21
A22: =IF('3. Rate Classes'!Q45=1, '3. Rate Classes'!C45, "") ->  | B22: 22
